Transaction Number,Service - Fund ,Service  - Function ,Service - Cost Centre,Expense Type ,Expense Description,Supplier Name,Supplier Post Code (first 4 digits),Payment Date,Amount �
23930233,Physical Support,Adults,Physical Support 18 - 64,3rd Party Payments,Personal Budget - Domiciliary care,247 HOME CARE LTD,SN5 ,20/05/2022,-3.80
23928243,Physical Support,Adults,Physical Support 18 - 64,3rd Party Payments,Personal Budget - Domiciliary care,247 HOME CARE LTD,SN5 ,20/05/2022,-4.34
23930233,Physical Support,Adults,Physical Support 18 - 64,3rd Party Payments,Personal Budget - Domiciliary care,247 HOME CARE LTD,SN5 ,20/05/2022,974.76
23930234,Physical Support,Adults,Physical Support 18 - 64,3rd Party Payments,Personal Budget - Domiciliary care,247 HOME CARE LTD,SN5 ,20/05/2022,"1,189.18"
23928238,Physical Support,Adults,Physical Support 18 - 64,3rd Party Payments,Personal Budget - Domiciliary care,247 HOME CARE LTD,SN5 ,20/05/2022,-3.80
23928238,Physical Support,Adults,Physical Support 18 - 64,3rd Party Payments,Personal Budget - Domiciliary care,247 HOME CARE LTD,SN5 ,20/05/2022,"1,228.77"
24398236,Physical Support,Adults,Physical Support 18 - 64,3rd Party Payments,Personal Budget - Domiciliary care,247 HOME CARE LTD,SN5 ,27/05/2022,-3.80
24398236,Physical Support,Adults,Physical Support 18 - 64,3rd Party Payments,Personal Budget - Domiciliary care,247 HOME CARE LTD,SN5 ,27/05/2022,"1,161.18"
23928243,Physical Support,Adults,Physical Support 18 - 64,3rd Party Payments,Personal Budget - Domiciliary care,247 HOME CARE LTD,SN5 ,20/05/2022,"1,189.72"
23928240,Physical Support,Adults,Physical Support 18 - 64,3rd Party Payments,Personal Budget - Domiciliary care,247 HOME CARE LTD,SN5 ,20/05/2022,"1,267.22"
23930234,Physical Support,Adults,Physical Support 18 - 64,3rd Party Payments,Personal Budget - Domiciliary care,247 HOME CARE LTD,SN5 ,20/05/2022,-3.80
23928240,Physical Support,Adults,Physical Support 18 - 64,3rd Party Payments,Personal Budget - Domiciliary care,247 HOME CARE LTD,SN5 ,20/05/2022,-3.80
22539233,School Transport,Inclusion and Achievement,Special Educational Needs Transport,Transport Costs,Home to School Transport,4K TRAVEL,SN2 ,16/05/2022,"4,015.33"
21291233,School Transport,Inclusion and Achievement,Special Educational Needs Transport,Employees,Temporary / Agency - by Accounts Payable,4K TRAVEL,SN2 ,06/05/2022,950.00
21209233,School Transport,Inclusion and Achievement,Special Educational Needs Transport,Transport Costs,Home to School Transport,4K TRAVEL,SN2 ,06/05/2022,"2,483.33"
24665233,Highways & Transport,Highways & Transport,Traffic Signalling,Employees,Temporary / Agency - by Accounts Payable,4WAY CONSULTING LTD,SK4 ,25/05/2022,"1,669.90"
21387233,Sheltered Accomodation,Special Services,Sheltered Housing Management General,Employees,Training,A PLUS SAFETY & TRAINING SERVICES LTD,SN3 ,09/05/2022,735.00
24307304,Homelessness and Travellers,Housing Services,Leased Private Managed Accommodation,Transfer Payments,Payment of Costs,REDACTED PERSONAL DATA,SN3 ,25/05/2022,800.00
24307315,Homelessness and Travellers,Housing Services,Leased Private Managed Accommodation,Transfer Payments,Payment of Costs,REDACTED PERSONAL DATA,SN3 ,25/05/2022,800.00
21196233,Sheltered Accomodation,Special Services,Snowdon Place,Premises Costs,Contract Cleaning,AAFD SERVICES LTD,SO14,06/05/2022,75.00
21196233,Property Estates,Property,Workshed,Premises Costs,Contract Cleaning,AAFD SERVICES LTD,SO14,06/05/2022,388.00
21196233,Sheltered Accomodation,Special Services,Harold Thorpe Gardens,Premises Costs,Contract Cleaning,AAFD SERVICES LTD,SO14,06/05/2022,100.00
21196233,Sheltered Accomodation,Special Services,Markham Place,Premises Costs,Contract Cleaning,AAFD SERVICES LTD,SO14,06/05/2022,150.00
21196233,Facilities Management,"People, Culture and Organisational Resilience",Office Accommodation,Premises Costs,Contract Cleaning,AAFD SERVICES LTD,SO14,06/05/2022,250.00
24377233,Early Years Block,DSG Skills and Attainment,Free Nursery Education Commissioning - three & four  year olds,3rd Party Payments,Contracts - Child Care,ABBEY MEADS COMMUNITY PRIMARY SCHOOL,SN25,25/05/2022,800.00
22942234,High Needs Block,DSG Skills and Attainment,SEN Resourcing Assessment Panel,3rd Party Payments,Top up funding - Academies and Free Schools Pre 16,ABBEY MEADS COMMUNITY PRIMARY SCHOOL,SN25,18/05/2022,"7,558.08"
21711233,Early Years Block,DSG Skills and Attainment,Free Nursery Education Commissioning - three & four  year olds,3rd Party Payments,Contracts - Child Care,ABBEY MEADS COMMUNITY PRIMARY SCHOOL,SN25,11/05/2022,"11,273.04"
20848233,Public Protection,Public Health,Food Safety,Supplies and Services,Materials,ABC FOOD LAW LIMITED,NR4 ,06/05/2022,"1,170.00"
22745234,Physical Support,Adults,Physical Support 18 - 64,3rd Party Payments,Personal Budget - Domiciliary care,ABICARE SERVICES LTD,BS32,18/05/2022,571.78
20574233,Physical Support,Adults,Physical Support 18 - 64,3rd Party Payments,Personal Budget - Domiciliary care,ABICARE SERVICES LTD,BS32,04/05/2022,571.78
22035233,Physical Support,Adults,Physical Support 18 - 64,3rd Party Payments,Personal Budget - Domiciliary care,ABICARE SERVICES LTD,BS32,13/05/2022,598.48
24442239,Physical Support,Adults,Physical Support 18 - 64,3rd Party Payments,Personal Budget - Domiciliary care,ABICARE SERVICES LTD,BS32,25/05/2022,571.78
22036235,Physical Support,Adults,Physical Support 18 - 64,3rd Party Payments,Personal Budget - Domiciliary care,ABICARE SERVICES LTD (LIVE IN),SP2 ,13/05/2022,988.68
20579233,Mental Health,Adults,Mental Health 65 and over,3rd Party Payments,Personal Budget - Domiciliary care,ABICARE SERVICES LTD (LIVE IN),SP2 ,04/05/2022,988.68
22749233,Physical Support,Adults,Physical Support 18 - 64,3rd Party Payments,Personal Budget - Domiciliary care,ABICARE SERVICES LTD (LIVE IN),SP2 ,18/05/2022,988.68
24444234,Mental Health,Adults,Mental Health 65 and over,3rd Party Payments,Personal Budget - Domiciliary care,ABICARE SERVICES LTD (LIVE IN),SP2 ,25/05/2022,"1,106.00"
22036236,Memory & Cognition,Adults,Support for Memory and Cognition 65 and over,3rd Party Payments,Personal Budget - Domiciliary care,ABICARE SERVICES LTD (LIVE IN),SP2 ,13/05/2022,"1,106.00"
20582233,Mental Health,Adults,Mental Health 65 and over,3rd Party Payments,Personal Budget - Domiciliary care,ABICARE SERVICES LTD (LIVE IN),SP2 ,04/05/2022,"1,106.00"
22036237,Mental Health,Adults,Mental Health 65 and over,3rd Party Payments,Personal Budget - Domiciliary care,ABICARE SERVICES LTD (LIVE IN),SP2 ,13/05/2022,"1,106.00"
22751233,Mental Health,Adults,Mental Health 65 and over,3rd Party Payments,Personal Budget - Domiciliary care,ABICARE SERVICES LTD (LIVE IN),SP2 ,18/05/2022,"1,106.00"
22036234,Mental Health,Adults,Mental Health 65 and over,3rd Party Payments,Personal Budget - Domiciliary care,ABICARE SERVICES LTD (LIVE IN),SP2 ,13/05/2022,988.68
20580233,Physical Support,Adults,Physical Support 18 - 64,3rd Party Payments,Personal Budget - Domiciliary care,ABICARE SERVICES LTD (LIVE IN),SP2 ,04/05/2022,988.68
22750233,Memory & Cognition,Adults,Support for Memory and Cognition 65 and over,3rd Party Payments,Personal Budget - Domiciliary care,ABICARE SERVICES LTD (LIVE IN),SP2 ,18/05/2022,"1,106.00"
24444233,Memory & Cognition,Adults,Support for Memory and Cognition 65 and over,3rd Party Payments,Personal Budget - Domiciliary care,ABICARE SERVICES LTD (LIVE IN),SP2 ,25/05/2022,"1,106.00"
24443233,Physical Support,Adults,Physical Support 18 - 64,3rd Party Payments,Personal Budget - Domiciliary care,ABICARE SERVICES LTD (LIVE IN),SP2 ,25/05/2022,988.68
20581233,Memory & Cognition,Adults,Support for Memory and Cognition 65 and over,3rd Party Payments,Personal Budget - Domiciliary care,ABICARE SERVICES LTD (LIVE IN),SP2 ,04/05/2022,"1,106.00"
24442242,Mental Health,Adults,Mental Health 65 and over,3rd Party Payments,Personal Budget - Domiciliary care,ABICARE SERVICES LTD (LIVE IN),SP2 ,25/05/2022,988.68
22748233,Mental Health,Adults,Mental Health 65 and over,3rd Party Payments,Personal Budget - Domiciliary care,ABICARE SERVICES LTD (LIVE IN),SP2 ,18/05/2022,988.68
25032233,Schools Maintenance,Skills & Attainment,Capita One education,Capital,Contractor Payments,ACCESS UK LTD,CO7 ,27/05/2022,"27,050.00"
25101233,Schools Maintenance,Skills & Attainment,Capita One education,Capital,Contractor Payments,ACCESS UK LTD,CO7 ,27/05/2022,"28,782.00"
25100233,Digital & Business Change,Digital & Business Change,IT Systems,Supplies and Services,License Costs,ACCESS UK LTD,CO7 ,27/05/2022,"9,906.71"
22360237,Physical Support,Adults,Physical Support 18 - 64,3rd Party Payments,Residential Care,ACCOMPLISH,B45 ,13/05/2022,"12,257.50"
22360237,Physical Support,Adults,Physical Support 18 - 64,3rd Party Payments,Residential Care,ACCOMPLISH,B45 ,13/05/2022,"-11,743.19"
22360237,Physical Support,Adults,Physical Support 18 - 64,Income,Client Contribution - Residential,ACCOMPLISH,B45 ,13/05/2022,-517.75
22360237,Physical Support,Adults,Physical Support 18 - 64,3rd Party Payments,Residential Care,ACCOMPLISH,B45 ,13/05/2022,"7,271.40"
22958233,High Needs Block,DSG Skills and Attainment,SEN Resourcing Assessment Panel,3rd Party Payments,Top up funding - Academies and Free Schools Pre 16,ACTIVATE LEARNING EDUCATION TRUST,OX1 ,18/05/2022,"1,140.84"
22973233,High Needs Block,DSG Skills and Attainment,SEN Resourcing Assessment Panel,3rd Party Payments,Top up funding - Academies and Free Schools Post 16,ACTIVATE LEARNING EDUCATION TRUST,OX1 ,18/05/2022,"2,372.83"
23354236,Social Care,"Children, Families and Community Health Services",External Placements,3rd Party Payments,Independent Fostering Agency Placements,ACTIVE CARE SOLUTIONS LTD,B60 ,18/05/2022,"3,365.36"
23354233,Social Care,"Children, Families and Community Health Services",External Placements,3rd Party Payments,Independent Fostering Agency Placements,ACTIVE CARE SOLUTIONS LTD,B60 ,18/05/2022,"6,394.68"
24584234,Social Care,"Children, Families and Community Health Services",Unaccompanied Asylum Seeking Children (UASC),3rd Party Payments,Independent Fostering Agency Placements,ACTIVE CARE SOLUTIONS LTD,B60 ,25/05/2022,"2,803.60"
23354235,Social Care,"Children, Families and Community Health Services",External Placements,3rd Party Payments,Independent Fostering Agency Placements,ACTIVE CARE SOLUTIONS LTD,B60 ,18/05/2022,"3,277.01"
25132244,Learning Disabilities,Adults,Learning Disability 26 - 64,Transfer Payments,Personal Budget - Direct Payments - Domiciliary Care,REDACTED PERSONAL DATA,SN4 ,30/05/2022,"1,146.29"
25156242,Learning Disabilities,Adults,Learning Disability 26 - 64,Transfer Payments,Personal Budget - Direct Payments - Domiciliary Care,REDACTED PERSONAL DATA,SN3 ,30/05/2022,"2,026.16"
24307330,Homelessness and Travellers,Housing Services,Leased Private Managed Accommodation,Transfer Payments,Payment of Costs,ADVANCE HOUSING & SUPPORT LTD,OX28,25/05/2022,"1,074.00"
23640234,Responsive Repairs,Repairs,Responsive Repairs,3rd Party Payments,Contract Payments,AIRTECH ENVIRONMENTAL SYSTEMS,TA7 ,20/05/2022,"1,454.79"
23639233,Responsive Repairs,Repairs,Responsive Repairs,3rd Party Payments,Contract Payments,AIRTECH ENVIRONMENTAL SYSTEMS,TA7 ,20/05/2022,"1,664.43"
21444233,School Transport,Inclusion and Achievement,Special Educational Needs Transport,Employees,Temporary / Agency - by Accounts Payable,AKCESS LTD,SN2 ,09/05/2022,"1,982.50"
21147233,School Transport,Inclusion and Achievement,Mainstream School Transport,Transport Costs,Home to School Transport,AKCESS LTD,SN2 ,06/05/2022,"2,580.83"
21295233,Physical Support,Adults,Physical Support 65 and over,Transport Costs,Home to Centre Transport,AKCESS LTD,SN2 ,06/05/2022,"2,604.17"
21105233,School Transport,Inclusion and Achievement,Special Educational Needs Transport,Transport Costs,Home to School Transport,AKCESS LTD,SN2 ,06/05/2022,"63,666.67"
21097233,School Transport,Inclusion and Achievement,Mainstream School Transport,Transport Costs,Home to School Transport,AKCESS LTD,SN2 ,06/05/2022,"1,889.58"
21097233,School Transport,Inclusion and Achievement,Special Educational Needs Transport,Transport Costs,Home to School Transport,AKCESS LTD,SN2 ,06/05/2022,"92,589.19"
21148236,School Transport,Inclusion and Achievement,Special Educational Needs Transport,Transport Costs,Home to School Transport,AKCESS LTD,SN2 ,06/05/2022,"1,430.00"
21096233,School Transport,Inclusion and Achievement,Special Educational Needs Transport,Employees,Temporary / Agency - by Accounts Payable,AKCESS LTD,SN2 ,06/05/2022,"3,800.00"
23716233,Travel,Highways & Transport,Public Transport,3rd Party Payments,Contract Payments,AKCESS LTD,SN2 ,20/05/2022,"14,680.14"
21295233,Learning Disabilities,Adults,Learning Disability 26 - 64,Transport Costs,Home to Centre Transport,AKCESS LTD,SN2 ,06/05/2022,"18,229.17"
21096233,School Transport,Inclusion and Achievement,Special Educational Needs Transport,Employees,Temporary / Agency - by Accounts Payable,AKCESS LTD,SN2 ,06/05/2022,"1,995.00"
22529233,School Transport,Inclusion and Achievement,Special Educational Needs Transport,Transport Costs,Home to School Transport,AKCESS LTD,SN2 ,16/05/2022,"17,690.83"
21295233,Learning Disabilities,Adults,Learning Disability 26 - 64,Transport Costs,Home to Centre Transport,AKCESS LTD,SN2 ,06/05/2022,"5,208.33"
21295233,Physical Support,Adults,Physical Support 65 and over,Transport Costs,Home to Centre Transport,AKCESS LTD,SN2 ,06/05/2022,"5,208.33"
21295233,Physical Support,Adults,Physical Support 65 and over,Transport Costs,Home to Centre Transport,AKCESS LTD,SN2 ,06/05/2022,"5,208.33"
21451249,School Transport,Inclusion and Achievement,Special Educational Needs Transport,Transport Costs,Home to School Transport,AKCESS LTD,SN2 ,09/05/2022,500.00
22531233,School Transport,Inclusion and Achievement,Special Educational Needs Transport,Employees,Temporary / Agency - by Accounts Payable,AKCESS LTD,SN2 ,16/05/2022,506.00
24666233,Responsive Repairs,Repairs,Responsive Repairs,Supplies and Services,Materials,AKW MEDI-CARE LTD,WR9 ,25/05/2022,548.50
22114233,Social Care,"Children, Families and Community Health Services",Placement - Care Leaver Team,3rd Party Payments,Supported Living,ALABARE CHRISTIAN DAY CENTRES,SP2 ,13/05/2022,"2,713.47"
22115233,Social Care,"Children, Families and Community Health Services",Placement - Care Leaver Team,3rd Party Payments,Supported Living,ALABARE CHRISTIAN DAY CENTRES,SP2 ,13/05/2022,"2,625.94"
22378233,Senior Management Team,"Children, Families and Community Health Services",Family Safeguarding Model,Supplies and Services,Services,ALASDAIR CANT & ASSOCIATES LIMITED,CB2 ,13/05/2022,"16,350.00"
21401240,Social Care,"Children, Families and Community Health Services",Placement Fostering Service,3rd Party Payments,Foster Care Basic Payments,REDACTED PERSONAL DATA,SN4 ,09/05/2022,520.20
21401240,Social Care,"Children, Families and Community Health Services",Placement Fostering Service,3rd Party Payments,Carers Skills Payments - Core,REDACTED PERSONAL DATA,SN4 ,09/05/2022,116.00
24237233,Social Care,"Children, Families and Community Health Services",Placement Fostering Service,3rd Party Payments,Carers Skills Payments - Core,REDACTED PERSONAL DATA,SN4 ,23/05/2022,116.00
24237233,Social Care,"Children, Families and Community Health Services",Placement Fostering Service,3rd Party Payments,Foster Care Basic Payments,REDACTED PERSONAL DATA,SN4 ,23/05/2022,520.20
23073233,Learning Disabilities,Adults,Learning Disability 26 - 64,3rd Party Payments,Supported Accommodation Scheme,REDACTED PERSONAL DATA,SN2 ,23/05/2022,108.54
23073233,Learning Disabilities,Adults,Learning Disability 26 - 64,3rd Party Payments,Supported Accommodation Scheme,REDACTED PERSONAL DATA,SN2 ,23/05/2022,"2,444.96"
25158235,Learning Disabilities,Adults,Learning Disability 26 - 64,Transfer Payments,Personal Budget - Direct Payments - Domiciliary Care,REDACTED PERSONAL DATA,SN25,30/05/2022,973.45
23177233,Learning Disabilities,Adults,Learning Disability 26 - 64,3rd Party Payments,Supported Accommodation Scheme,REDACTED PERSONAL DATA,SN1 ,23/05/2022,108.54
23177233,Learning Disabilities,Adults,Learning Disability 26 - 64,3rd Party Payments,Supported Accommodation Scheme,REDACTED PERSONAL DATA,SN1 ,23/05/2022,"2,444.96"
24900233,Streetsmart,Streetsmart,Refuse Collection,Employees,Temporary / Agency - by Accounts Payable,ALIGRA PERSONNEL LTD,SN25,27/05/2022,"2,495.91"
24893233,Streetsmart,Streetsmart,Refuse Collection,Employees,Temporary / Agency - by Accounts Payable,ALIGRA PERSONNEL LTD,SN25,27/05/2022,"2,407.20"
24898233,Streetsmart,Streetsmart,Refuse Collection,Employees,Temporary / Agency - by Accounts Payable,ALIGRA PERSONNEL LTD,SN25,27/05/2022,"2,407.20"
24901233,Streetsmart,Streetsmart,Refuse Collection,Employees,Temporary / Agency - by Accounts Payable,ALIGRA PERSONNEL LTD,SN25,27/05/2022,"2,366.04"
23715250,School Transport,Inclusion and Achievement,Special Educational Needs Transport,Transport Costs,Home to School Transport,REDACTED PERSONAL DATA,SN5 ,23/05/2022,528.55
23178233,Learning Disabilities,Adults,Learning Disability 26 - 64,3rd Party Payments,Supported Accommodation Scheme,REDACTED PERSONAL DATA,SN2 ,23/05/2022,69.66
23178233,Learning Disabilities,Adults,Learning Disability 26 - 64,3rd Party Payments,Supported Accommodation Scheme,REDACTED PERSONAL DATA,SN2 ,23/05/2022,"1,671.04"
23178233,Learning Disabilities,Adults,Learning Disability 26 - 64,3rd Party Payments,Supported Accommodation Scheme,REDACTED PERSONAL DATA,SN2 ,23/05/2022,"1,707.36"
23178233,Learning Disabilities,Adults,Learning Disability 26 - 64,3rd Party Payments,Supported Accommodation Scheme,REDACTED PERSONAL DATA,SN2 ,23/05/2022,88.08
23178233,Learning Disabilities,Adults,Learning Disability 26 - 64,3rd Party Payments,Supported Accommodation Scheme,REDACTED PERSONAL DATA,SN2 ,23/05/2022,"1,985.40"
25132246,Learning Disabilities,Adults,Learning Disability 26 - 64,Transfer Payments,Personal Budget - Direct Payments - Domiciliary Care,REDACTED PERSONAL DATA,SN5 ,30/05/2022,"8,839.97"
21717233,Early Years Block,DSG Skills and Attainment,Free Nursery Education Commissioning - three & four  year olds,3rd Party Payments,Contracts - Child Care,REDACTED PERSONAL DATA,SN1 ,11/05/2022,708.76
21718233,Early Years Block,DSG Skills and Attainment,Free Nursery Education Commissioning - three & four  year olds,3rd Party Payments,Contracts - Child Care,REDACTED PERSONAL DATA,SN1 ,11/05/2022,857.89
25144235,Learning Disabilities,Adults,Learning Disability 26 - 64,Transfer Payments,Personal Budget - Direct Payments - Domiciliary Care,REDACTED PERSONAL DATA,SN4 ,30/05/2022,"3,427.95"
25175233,Schools Maintenance,Skills & Attainment,Condition Works,Capital,Contractor Payments,ALL PUMP SOLUTIONS LLP,SY1 ,30/05/2022,"7,690.40"
25169233,Schools Maintenance,Skills & Attainment,Condition Works,Capital,Contractor Payments,ALL PUMP SOLUTIONS LLP,SY1 ,30/05/2022,"-1,460.00"
24744233,Streetsmart,Streetsmart,Waterside Fleet Workshops,Supplies and Services,Equipment,ALLIANCE AUTOMOTIVE UK T/A BRAYMARC,BD4 ,27/05/2022,988.40
24744233,Streetsmart,Streetsmart,Waterside Fleet Workshops,Supplies and Services,Materials,ALLIANCE AUTOMOTIVE UK T/A BRAYMARC,BD4 ,27/05/2022,150.00
24149233,Streetsmart,Streetsmart,Waterside Fleet Workshops,Supplies and Services,Equipment,ALLIANCE AUTOMOTIVE UK T/A BRAYMARC,BD4 ,23/05/2022,635.93
24869233,Treasury,Corporate Finance,Treasury,Supplies and Services,Bank Charges,ALLPAY-NET LIMITED,HR1 ,27/05/2022,"1,438.40"
21884233,Landlord Services,Supervision & Management,Estate Management Team,Supplies and Services,Contracts,ALLPAY-NET LIMITED,HR1 ,11/05/2022,"1,853.34"
23858233,Town Centre,"Economy, Growth and Place",Fleming Way Bus Boulevard,Capital,Contractor Payments,ALPHA HIGHWAY CONSULTANTS LIMITED,SG5 ,20/05/2022,"2,175.00"
22289233,Social Care,"Children, Families and Community Health Services",Legal Fees,Supplies and Services,Fees,ALPHABIOLABS,WA5 ,13/05/2022,449.00
23432233,Social Care,"Children, Families and Community Health Services",Legal Fees,Supplies and Services,Fees,ALPHABIOLABS,WA5 ,18/05/2022,500.00
22391233,Highways Schemes,Strategic Planning and Highways,Wichelstowe Southern Access,Capital,Contractor Payments,ALUN GRIFFITHS (CONTRACTORS ) LTD,NP7 ,13/05/2022,"85,874.70"
24584233,Social Care,"Children, Families and Community Health Services",External Placements,3rd Party Payments,Residential Care,AMEGREEN CHILDREN'S SERVICES LTD,RG7 ,25/05/2022,"17,437.50"
21163253,Social Care,"Children, Families and Community Health Services",External Placements,3rd Party Payments,Residential Care,AMEGREEN CHILDREN'S SERVICES LTD,RG7 ,06/05/2022,"16,875.00"
23333233,Responsive Repairs,Repairs,Responsive Repairs,Premises Costs,Repairs - Buildings,AMELIO UTILITIES(GLOU) LTD T/A 3 COUNTIES DRAIN SERVICES,GL1 ,18/05/2022,373.19
23333233,Responsive Repairs,Repairs,Responsive Repairs,Premises Costs,Repairs - Buildings,AMELIO UTILITIES(GLOU) LTD T/A 3 COUNTIES DRAIN SERVICES,GL1 ,18/05/2022,127.35
23333233,Responsive Repairs,Repairs,Responsive Repairs,Premises Costs,Repairs - Buildings,AMELIO UTILITIES(GLOU) LTD T/A 3 COUNTIES DRAIN SERVICES,GL1 ,18/05/2022,319.88
23333233,Responsive Repairs,Repairs,Responsive Repairs,Premises Costs,Repairs - Buildings,AMELIO UTILITIES(GLOU) LTD T/A 3 COUNTIES DRAIN SERVICES,GL1 ,18/05/2022,159.94
20642233,Responsive Repairs,Repairs,Responsive Repairs,Premises Costs,Repairs - Buildings,AMELIO UTILITIES(GLOU) LTD T/A 3 COUNTIES DRAIN SERVICES,GL1 ,04/05/2022,119.91
20641233,Responsive Repairs,Repairs,Responsive Repairs,Premises Costs,Repairs - Buildings,AMELIO UTILITIES(GLOU) LTD T/A 3 COUNTIES DRAIN SERVICES,GL1 ,04/05/2022,"7,650.00"
20642233,Responsive Repairs,Repairs,Responsive Repairs,Premises Costs,Repairs - Buildings,AMELIO UTILITIES(GLOU) LTD T/A 3 COUNTIES DRAIN SERVICES,GL1 ,04/05/2022,150.60
23333233,Responsive Repairs,Repairs,Responsive Repairs,Premises Costs,Repairs - Buildings,AMELIO UTILITIES(GLOU) LTD T/A 3 COUNTIES DRAIN SERVICES,GL1 ,18/05/2022,191.02
20642233,Responsive Repairs,Repairs,Responsive Repairs,Premises Costs,Repairs - Buildings,AMELIO UTILITIES(GLOU) LTD T/A 3 COUNTIES DRAIN SERVICES,GL1 ,04/05/2022,179.87
23600233,Highways & Transport,Highways & Transport,Project Delivery,Supplies and Services,Services,AMEY OW LTD,L19 ,20/05/2022,"80,896.73"
25134262,Mental Health,Adults,Mental Health 18-64,Transfer Payments,Personal Budget - Direct Payments - Domiciliary Care,REDACTED PERSONAL DATA,SN25,30/05/2022,555.51
21725233,Early Years Block,DSG Skills and Attainment,Free Nursery Education Commissioning - three & four  year olds,3rd Party Payments,Contracts - Child Care,REDACTED PERSONAL DATA,SN25,11/05/2022,916.50
22141233,Social Care,"Children, Families and Community Health Services",Legal Fees,Supplies and Services,Fees,REDACTED PERSONAL DATA,EC4Y,13/05/2022,250.00
22140233,Social Care,"Children, Families and Community Health Services",Legal Fees,Supplies and Services,Fees,REDACTED PERSONAL DATA,EC4Y,13/05/2022,800.00
22140233,Social Care,"Children, Families and Community Health Services",Legal Fees,Supplies and Services,Fees,REDACTED PERSONAL DATA,EC4Y,13/05/2022,250.00
22141233,Social Care,"Children, Families and Community Health Services",Legal Fees,Supplies and Services,Fees,REDACTED PERSONAL DATA,EC4Y,13/05/2022,450.00
25325233,"Volutary Sector, Equipment and Carers",Adults,Carers Short Term Breaks - Adults,3rd Party Payments,Carers,REDACTED PERSONAL DATA,SN3 ,30/05/2022,500.00
24280237,Homelessness and Travellers,Housing Services,Leased Private Managed Accommodation,Transfer Payments,Payment of Costs,REDACTED PERSONAL DATA,SN26,25/05/2022,675.00
24313235,High Needs Block,DSG Skills and Attainment,SEND Support,Supplies and Services,Payments to Educational Bodies,REDACTED PERSONAL DATA,SN25,23/05/2022,"2,280.00"
24313236,High Needs Block,DSG Skills and Attainment,SEND Support,Supplies and Services,Payments to Educational Bodies,REDACTED PERSONAL DATA,SN25,23/05/2022,"2,850.00"
24307318,Homelessness and Travellers,Housing Services,Leased Private Managed Accommodation,Transfer Payments,Payment of Costs,ANGELVIEW PROPERTIES LTD,ALBO,25/05/2022,548.51
24307317,Homelessness and Travellers,Housing Services,Leased Private Managed Accommodation,Transfer Payments,Payment of Costs,ANGELVIEW PROPERTIES LTD,ALBO,25/05/2022,548.45
21608233,Planned Maintenance Programme,HRA Capital Financing,Windows,Capital,Contractor Payments,ANGLIAN BUILDING PRODUCTS LIMITED,NR6 ,11/05/2022,378.29
21608233,Planned Maintenance Programme,HRA Capital Financing,Windows,Capital,Contractor Payments,ANGLIAN BUILDING PRODUCTS LIMITED,NR6 ,11/05/2022,"1,766.90"
21608233,Planned Maintenance Programme,HRA Capital Financing,Windows,Capital,Contractor Payments,ANGLIAN BUILDING PRODUCTS LIMITED,NR6 ,11/05/2022,"1,408.23"
21608233,Planned Maintenance Programme,HRA Capital Financing,Windows,Capital,Contractor Payments,ANGLIAN BUILDING PRODUCTS LIMITED,NR6 ,11/05/2022,"1,537.67"
21608233,Planned Maintenance Programme,HRA Capital Financing,Windows,Capital,Contractor Payments,ANGLIAN BUILDING PRODUCTS LIMITED,NR6 ,11/05/2022,"1,498.75"
21608233,Planned Maintenance Programme,HRA Capital Financing,Windows,Capital,Contractor Payments,ANGLIAN BUILDING PRODUCTS LIMITED,NR6 ,11/05/2022,"1,574.94"
21608233,Planned Maintenance Programme,HRA Capital Financing,Windows,Capital,Contractor Payments,ANGLIAN BUILDING PRODUCTS LIMITED,NR6 ,11/05/2022,"2,060.65"
21608233,Planned Maintenance Programme,HRA Capital Financing,Windows,Capital,Contractor Payments,ANGLIAN BUILDING PRODUCTS LIMITED,NR6 ,11/05/2022,"2,477.70"
21608233,Planned Maintenance Programme,HRA Capital Financing,Windows,Capital,Contractor Payments,ANGLIAN BUILDING PRODUCTS LIMITED,NR6 ,11/05/2022,"1,856.40"
21608233,Planned Maintenance Programme,HRA Capital Financing,Windows,Capital,Contractor Payments,ANGLIAN BUILDING PRODUCTS LIMITED,NR6 ,11/05/2022,"1,728.57"
21608233,Planned Maintenance Programme,HRA Capital Financing,Windows,Capital,Contractor Payments,ANGLIAN BUILDING PRODUCTS LIMITED,NR6 ,11/05/2022,"1,733.68"
21608233,Planned Maintenance Programme,HRA Capital Financing,Windows,Capital,Contractor Payments,ANGLIAN BUILDING PRODUCTS LIMITED,NR6 ,11/05/2022,"2,273.53"
25156244,Physical Support,Adults,Physical Support 18 - 64,Transfer Payments,Personal Budget - Direct Payments - Domiciliary Care,REDACTED PERSONAL DATA,SN25,30/05/2022,"2,385.10"
22298233,Early Help,"Children, Families and Community Health Services",On Trak Youth Counselling Service,3rd Party Payments,Contract Payments,REDACTED PERSONAL DATA,SN2 ,13/05/2022,540.00
Corporate Card Transaction,Lydiard Park,Streetsmart,Lydiard : Hotel Operations,Supplies and Services,Materials,Ao Retail Limited,,05/05/2022,780.50
23967233,HRA Overheads,Supervision & Management,Admin / Management General,Premises Costs,Insurance - Premises,AON UK LIMITED,EC3V,20/05/2022,"3,236.70"
20728233,Supported Employment,Housing Services,Community Meals,Supplies and Services,Food,APETITO LIMITED,BA14,04/05/2022,755.53
23488233,Supported Employment,Housing Services,Community Meals,Supplies and Services,Food,APETITO LIMITED,BA14,20/05/2022,619.06
21234233,Supported Employment,Housing Services,Community Meals,Supplies and Services,Food,APETITO LIMITED,BA14,06/05/2022,826.07
23303233,Responsive Repairs,Repairs,Responsive Repairs,3rd Party Payments,Contract Payments,APEX SCAFFOLDING SERVICES,SN2 ,18/05/2022,625.00
23304233,Responsive Repairs,Repairs,Responsive Repairs,3rd Party Payments,Contract Payments,APEX SCAFFOLDING SERVICES,SN2 ,18/05/2022,650.00
20483234,Responsive Repairs,Repairs,Responsive Repairs,3rd Party Payments,Contract Payments,APEX SCAFFOLDING SERVICES,SN2 ,04/05/2022,55.00
23302233,Responsive Repairs,Repairs,Responsive Repairs,3rd Party Payments,Contract Payments,APEX SCAFFOLDING SERVICES,SN2 ,18/05/2022,55.00
23834234,Responsive Repairs,Repairs,Responsive Repairs,Supplies and Services,Materials,APEX SCAFFOLDING SERVICES,SN2 ,20/05/2022,418.00
23306233,Responsive Repairs,Repairs,Responsive Repairs,3rd Party Payments,Contract Payments,APEX SCAFFOLDING SERVICES,SN2 ,18/05/2022,"2,035.71"
23834233,Responsive Repairs,Repairs,Responsive Repairs,3rd Party Payments,Contract Payments,APEX SCAFFOLDING SERVICES,SN2 ,20/05/2022,480.00
20483234,Responsive Repairs,Repairs,Responsive Repairs,3rd Party Payments,Contract Payments,APEX SCAFFOLDING SERVICES,SN2 ,04/05/2022,110.00
20485234,Responsive Repairs,Repairs,Responsive Repairs,3rd Party Payments,Contract Payments,APEX SCAFFOLDING SERVICES,SN2 ,04/05/2022,55.00
23302233,Responsive Repairs,Repairs,Responsive Repairs,3rd Party Payments,Contract Payments,APEX SCAFFOLDING SERVICES,SN2 ,18/05/2022,110.00
22136233,,,Balance Sheet,Balance Sheet & Recharge,MFD recharges,APOGEE CORPORATION LIMITED,ME16,13/05/2022,"10,077.19"
23909233,,,Balance Sheet,Balance Sheet & Recharge,Resources Recharges,APOGEE CORPORATION LIMITED,EC2A,20/05/2022,"7,899.84"
23907233,,,Balance Sheet,Balance Sheet & Recharge,Resources Recharges,APOGEE CORPORATION LIMITED,EC2A,20/05/2022,"1,164.84"
23907233,,,Balance Sheet,Balance Sheet & Recharge,Resources Recharges,APOGEE CORPORATION LIMITED,EC2A,20/05/2022,315.01
24650233,Libraries,Inclusion and Achievement,Library Development,Supplies and Services,Discretionary Costs,APPLAUSE RURAL TOURING,TN4 ,25/05/2022,650.00
22348233,Learning Disabilities,Adults,Learning Disability 26 - 64,Income,Client Contribution - Residential,APPLEFORD LTD T/A DANESWOOD,BS25,13/05/2022,-496.25
22348233,Learning Disabilities,Adults,Learning Disability 26 - 64,3rd Party Payments,Residential Care,APPLEFORD LTD T/A DANESWOOD,BS25,13/05/2022,"23,968.35"
25073233,Organisational Resilience,"People, Culture and Organisational Resilience",Emergency Planning,Employees,Training,APPLIED RESILIENCE LIMITED,W1W ,27/05/2022,"7,200.00"
20710233,Adults - Staffing and Supporting People,Adults,Blue Badges,Supplies and Services,Materials,APS GROUP,SK3 ,04/05/2022,"1,246.47"
21429233,Community Health & Wellbeing,Public Health,Community Navigators,Supplies and Services,Equipment,APT TRAINING & CONSULTANCY LTD,LE7 ,09/05/2022,"1,000.00"
22912233,Property & Assets,Property & Assets,General Enhancement Works Corporate Buildings,Capital,Contractor Payments,AQUA SOLVE WATER MANAGEMENT,OX44,18/05/2022,"1,662.50"
22116233,Social Care,"Children, Families and Community Health Services",External Placements,3rd Party Payments,Residential Care,REDACTED PERSONAL DATA,LL40,13/05/2022,"99,800.00"
25185233,Regeneration Schemes,Regeneration Schemes,Whitbourne House Demolition,Capital,Contractor Payments,ARBTECH CONSULTING LTD,CH4 ,30/05/2022,639.00
24837233,Highways & Transport,Highways & Transport,Bridge Inspection and Maintenance,Supplies and Services,Repairs & Maintenance,ARBUS LTD,PO20,27/05/2022,"3,707.88"
Corporate Card Transaction,Social Care,"Children, Families and Community Health Services",Placement - Care Leaver Team,Transfer Payments,Grants to Individuals,Argos Ltd,,25/05/2022,649.00
22894233,High Needs Block,DSG Skills and Attainment,SEN Resourcing Assessment Panel,3rd Party Payments,Top up funding - Maintained providers Pre 16,REDACTED PERSONAL DATA,SN2 ,18/05/2022,"22,309.06"
22497233,Early Years Block,DSG Skills and Attainment,Free Nursery Education Commissioning - three & four  year olds,3rd Party Payments,Contracts - Child Care,REDACTED PERSONAL DATA,SN2 ,18/05/2022,"22,309.06"
21359233,Public Health,Public Health,Public Health Other,3rd Party Payments,Contract Payments,ARTSITE LIMITED,SN1 ,09/05/2022,800.00
Corporate Card Transaction,Community Health & Wellbeing,Public Health,Swindon Circles,Supplies and Services,Food,Asda Superstore,,06/05/2022,650.00
22349233,Mental Health,Adults,Mental Health 18-64,3rd Party Payments,Residential Care,ASH VIEW HOUSE,BS15,13/05/2022,"-14,990.72"
22349233,Mental Health,Adults,Mental Health 18-64,Income,Client Contribution - Residential,ASH VIEW HOUSE,BS15,13/05/2022,-492.75
22349233,Mental Health,Adults,Mental Health 18-64,3rd Party Payments,Residential Care,ASH VIEW HOUSE,BS15,13/05/2022,"15,753.76"
22349233,Mental Health,Adults,Mental Health 18-64,3rd Party Payments,Residential Care,ASH VIEW HOUSE,BS15,13/05/2022,"9,345.45"
22320235,Physical Support,Adults,Physical Support 65 and over,3rd Party Payments,Residential Care,ASHBURY LODGE,SN3 ,13/05/2022,914.33
22320235,Mental Health,Adults,Mental Health 65 and over,3rd Party Payments,Residential Care,ASHBURY LODGE,SN3 ,13/05/2022,"5,623.37"
22320235,Physical Support,Adults,Physical Support 65 and over,Income,Client Contribution - Residential,ASHBURY LODGE,SN3 ,13/05/2022,-762.50
22320235,Physical Support,Adults,Physical Support 65 and over,3rd Party Payments,Residential Care,ASHBURY LODGE,SN3 ,13/05/2022,"4,480.21"
22320235,Memory & Cognition,Adults,Support for Memory and Cognition 65 and over,Income,Client Contribution - Residential,ASHBURY LODGE,SN3 ,13/05/2022,"-1,068.90"
22320235,Mental Health,Adults,Mental Health 65 and over,3rd Party Payments,Residential Care,ASHBURY LODGE,SN3 ,13/05/2022,"-5,355.60"
22320235,Mental Health,Adults,Mental Health 65 and over,3rd Party Payments,Residential Care,ASHBURY LODGE,SN3 ,13/05/2022,"3,335.90"
22320235,Physical Support,Adults,Physical Support 65 and over,3rd Party Payments,Residential Care,ASHBURY LODGE,SN3 ,13/05/2022,"-4,266.85"
22320235,Physical Support,Adults,Physical Support 65 and over,3rd Party Payments,Residential Care,ASHBURY LODGE,SN3 ,13/05/2022,"5,023.51"
22320235,Physical Support,Adults,Physical Support 65 and over,Income,Client Contribution - Residential,ASHBURY LODGE,SN3 ,13/05/2022,"-1,094.00"
22320235,Physical Support,Adults,Physical Support 65 and over,3rd Party Payments,Residential Care,ASHBURY LODGE,SN3 ,13/05/2022,"5,394.54"
22320235,Memory & Cognition,Adults,Support for Memory and Cognition 65 and over,3rd Party Payments,Residential Care,ASHBURY LODGE,SN3 ,13/05/2022,"-5,355.60"
22320235,Physical Support,Adults,Physical Support 65 and over,3rd Party Payments,Residential Care,ASHBURY LODGE,SN3 ,13/05/2022,"-5,137.64"
22320235,Physical Support,Adults,Physical Support 65 and over,3rd Party Payments,Residential Care,ASHBURY LODGE,SN3 ,13/05/2022,"3,177.05"
22320235,Physical Support,Adults,Physical Support 65 and over,Income,Client Contribution - Residential,ASHBURY LODGE,SN3 ,13/05/2022,"-1,290.80"
22320235,Physical Support,Adults,Physical Support 65 and over,Income,Client Contribution - Residential,ASHBURY LODGE,SN3 ,13/05/2022,-744.25
22320235,Physical Support,Adults,Physical Support 65 and over,Income,Client Contribution - Residential,ASHBURY LODGE,SN3 ,13/05/2022,-760.95
22320235,Physical Support,Adults,Physical Support 65 and over,3rd Party Payments,Residential Care,ASHBURY LODGE,SN3 ,13/05/2022,-870.79
22320235,Physical Support,Adults,Physical Support 65 and over,3rd Party Payments,Residential Care,ASHBURY LODGE,SN3 ,13/05/2022,"3,200.15"
22320235,Physical Support,Adults,Physical Support 65 and over,3rd Party Payments,Residential Care,ASHBURY LODGE,SN3 ,13/05/2022,"2,980.05"
22320235,Physical Support,Adults,Physical Support 65 and over,Income,Client Contribution - Residential,ASHBURY LODGE,SN3 ,13/05/2022,-784.75
22320235,Physical Support,Adults,Physical Support 65 and over,Income,Client Contribution - Residential,ASHBURY LODGE,SN3 ,13/05/2022,-761.00
22320235,Physical Support,Adults,Physical Support 65 and over,3rd Party Payments,Residential Care,ASHBURY LODGE,SN3 ,13/05/2022,"-4,784.31"
22320235,Mental Health,Adults,Mental Health 65 and over,Income,Client Contribution - Residential,ASHBURY LODGE,SN3 ,13/05/2022,"-1,006.65"
22320235,Physical Support,Adults,Physical Support 65 and over,Income,Client Contribution - Residential,ASHBURY LODGE,SN3 ,13/05/2022,"-1,041.90"
22320235,Physical Support,Adults,Physical Support 65 and over,Income,Client Contribution - Residential,ASHBURY LODGE,SN3 ,13/05/2022,-734.25
23428233,Customer Strategy & Operations,"People, Culture and Organisational Resilience",Cemeteries & Crematoria,Supplies and Services,Materials,ASHDOWN SUPPLIES,TN22,18/05/2022,"2,076.20"
23902233,Public Health,Public Health,Sexual Health & Health Protection Budget,3rd Party Payments,Contract Payments,ASHINGTON HOUSE SURGERY,SN5 ,23/05/2022,886.00
25158242,Physical Support,Adults,Physical Support 18 - 64,Transfer Payments,Personal Budget - Direct Payments - Domiciliary Care,REDACTED PERSONAL DATA,SN25,30/05/2022,"1,510.98"
24349233,Libraries,Inclusion and Achievement,Library Delivery,Supplies and Services,Materials,ASKEWS AND HOLTS LIBRARY SERVICES LIMITED,PR1 ,25/05/2022,639.82
20745233,Libraries,Inclusion and Achievement,Library Delivery,Supplies and Services,Materials,ASKEWS AND HOLTS LIBRARY SERVICES LIMITED,PR1 ,04/05/2022,702.73
21849233,Libraries,Inclusion and Achievement,Library Delivery,Supplies and Services,Materials,ASKEWS AND HOLTS LIBRARY SERVICES LIMITED,PR1 ,11/05/2022,502.99
24356233,Libraries,Inclusion and Achievement,Library Delivery,Supplies and Services,Materials,ASKEWS AND HOLTS LIBRARY SERVICES LIMITED,PR1 ,25/05/2022,758.70
25361233,Libraries,Inclusion and Achievement,Library Delivery,Supplies and Services,Materials,ASKEWS AND HOLTS LIBRARY SERVICES LIMITED,PR1 ,30/05/2022,"1,853.01"
21848233,Libraries,Inclusion and Achievement,Library Delivery,Supplies and Services,Materials,ASKEWS AND HOLTS LIBRARY SERVICES LIMITED,PR1 ,11/05/2022,"1,558.46"
24362233,Libraries,Inclusion and Achievement,Library Delivery,Supplies and Services,Materials,ASKEWS AND HOLTS LIBRARY SERVICES LIMITED,PR1 ,25/05/2022,"1,468.26"
24348233,Libraries,Inclusion and Achievement,Library Delivery,Supplies and Services,Materials,ASKEWS AND HOLTS LIBRARY SERVICES LIMITED,PR1 ,25/05/2022,"2,942.28"
20746233,Libraries,Inclusion and Achievement,Library Delivery,Supplies and Services,Materials,ASKEWS AND HOLTS LIBRARY SERVICES LIMITED,PR1 ,04/05/2022,"3,784.41"
22330233,Learning Disabilities,Adults,Learning Disability 26 - 64,3rd Party Payments,Residential Care,ASPECTS & MILESTONES TRUST,BS16,13/05/2022,"7,578.25"
22330233,Learning Disabilities,Adults,Learning Disability 26 - 64,Income,Client Contribution - Residential,ASPECTS & MILESTONES TRUST,BS16,13/05/2022,-532.00
22352234,Learning Disabilities,Adults,Learning Disability 26 - 64,3rd Party Payments,Residential Care,ASPECTS 2 LTD,B70 ,13/05/2022,"17,456.67"
22352234,Physical Support,Adults,Physical Support 18 - 64,3rd Party Payments,Supported Living,ASPECTS 2 LTD,B70 ,13/05/2022,"4,914.00"
22352234,Physical Support,Adults,Physical Support 18 - 64,3rd Party Payments,Supported Living,ASPECTS 2 LTD,B70 ,13/05/2022,"-2,062.08"
22352234,Learning Disabilities,Adults,Learning Disability 26 - 64,Income,Client Contribution - Residential,ASPECTS 2 LTD,B70 ,13/05/2022,-517.75
22352234,Learning Disabilities,Adults,Learning Disability 26 - 64,3rd Party Payments,Residential Care,ASPECTS 2 LTD,B70 ,13/05/2022,"-16,611.20"
22352234,Learning Disabilities,Adults,Learning Disability 26 - 64,3rd Party Payments,Residential Care,ASPECTS 2 LTD,B70 ,13/05/2022,"10,355.65"
22352234,Mental Health,Adults,Mental Health 65 and over,3rd Party Payments,Supported Living,ASPECTS 2 LTD,B70 ,13/05/2022,"3,816.00"
22352234,Physical Support,Adults,Physical Support 18 - 64,3rd Party Payments,Supported Living,ASPECTS 2 LTD,B70 ,13/05/2022,"2,246.40"
22352234,Mental Health,Adults,Mental Health 65 and over,3rd Party Payments,Supported Living,ASPECTS 2 LTD,B70 ,13/05/2022,"-1,608.69"
22352234,Mental Health,Adults,Mental Health 65 and over,3rd Party Payments,Supported Living,ASPECTS 2 LTD,B70 ,13/05/2022,"1,744.46"
Corporate Card Transaction,Responsive Repairs,Repairs,Responsive Repairs,Supplies and Services,Materials,Asphaltic Roofing,,20/05/2022,525.20
Corporate Card Transaction,Responsive Repairs,Repairs,Responsive Repairs,Supplies and Services,Materials,Asphaltic Roofing,,18/05/2022,545.60
Corporate Card Transaction,Responsive Repairs,Repairs,Responsive Repairs,Supplies and Services,Materials,Asphaltic Roofing,,11/05/2022,545.60
Corporate Card Transaction,Responsive Repairs,Repairs,Responsive Repairs,Supplies and Services,Materials,Asphaltic Roofing,,11/05/2022,661.21
22359233,Learning Disabilities,Adults,Learning Disability 26 - 64,3rd Party Payments,Residential Care,ASTON CARE LIMITED,RG30,13/05/2022,"-13,932.18"
22359234,Learning Disabilities,Adults,Learning Disability 26 - 64,3rd Party Payments,Residential Care,ASTON CARE LIMITED,RG30,13/05/2022,"-18,516.31"
22359233,Learning Disabilities,Adults,Learning Disability 26 - 64,3rd Party Payments,Residential Care,ASTON CARE LIMITED,RG30,13/05/2022,"-12,804.69"
22359233,Learning Disabilities,Adults,Learning Disability 26 - 64,3rd Party Payments,Residential Care,ASTON CARE LIMITED,RG30,13/05/2022,"7,937.80"
22359233,Learning Disabilities,Adults,Learning Disability 26 - 64,Income,Client Contribution - Residential,ASTON CARE LIMITED,RG30,13/05/2022,-436.25
22359233,Learning Disabilities,Adults,Learning Disability 26 - 64,3rd Party Payments,Residential Care,ASTON CARE LIMITED,RG30,13/05/2022,"11,381.00"
22359233,Learning Disabilities,Adults,Learning Disability 26 - 64,Income,Client Contribution - Residential,ASTON CARE LIMITED,RG30,13/05/2022,-742.95
22359233,Learning Disabilities,Adults,Learning Disability 26 - 64,3rd Party Payments,Residential Care,ASTON CARE LIMITED,RG30,13/05/2022,"-18,358.95"
22359233,Learning Disabilities,Adults,Learning Disability 26 - 64,3rd Party Payments,Residential Care,ASTON CARE LIMITED,RG30,13/05/2022,"14,559.09"
22359234,Learning Disabilities,Adults,Learning Disability 26 - 64,3rd Party Payments,Residential Care,ASTON CARE LIMITED,RG30,13/05/2022,"11,478.55"
22359234,Learning Disabilities,Adults,Learning Disability 26 - 64,Income,Client Contribution - Residential,ASTON CARE LIMITED,RG30,13/05/2022,-328.00
22359233,Learning Disabilities,Adults,Learning Disability 26 - 64,3rd Party Payments,Residential Care,ASTON CARE LIMITED,RG30,13/05/2022,"19,185.11"
22359234,Learning Disabilities,Adults,Learning Disability 26 - 64,3rd Party Payments,Residential Care,ASTON CARE LIMITED,RG30,13/05/2022,"19,349.56"
22359233,Learning Disabilities,Adults,Learning Disability 26 - 64,Income,Client Contribution - Residential,ASTON CARE LIMITED,RG30,13/05/2022,"-1,291.50"
22359233,Learning Disabilities,Adults,Learning Disability 26 - 64,3rd Party Payments,Residential Care,ASTON CARE LIMITED,RG30,13/05/2022,"8,636.75"
22359233,Learning Disabilities,Adults,Learning Disability 26 - 64,3rd Party Payments,Residential Care,ASTON CARE LIMITED,RG30,13/05/2022,"13,380.86"
20299233,Early Help,"Children, Families and Community Health Services","Holiday, Activities & Food Grant",3rd Party Payments,Contracts - Child Care,ATBSHOP LTD,SN2 ,04/05/2022,"2,700.00"
20303235,Early Help,"Children, Families and Community Health Services","Holiday, Activities & Food Grant",3rd Party Payments,Contracts - Child Care,ATBSHOP LTD,SN2 ,04/05/2022,"3,600.00"
25163247,Physical Support,Adults,Physical Support 65 and over,Transfer Payments,Personal Budget - Direct Payments - Domiciliary Care,REDACTED PERSONAL DATA,SP11,30/05/2022,"3,943.39"
22364234,Physical Support,Adults,Physical Support 65 and over,3rd Party Payments,Nursing Care,AURA CARE LIVING CIRENCESTER LTD,GL7 ,13/05/2022,"9,742.86"
22364234,Physical Support,Adults,Physical Support 65 and over,3rd Party Payments,Nursing Care,AURA CARE LIVING CIRENCESTER LTD,GL7 ,13/05/2022,"15,571.43"
22364234,Mental Health,Adults,Mental Health 18-64,3rd Party Payments,Residential Care,AURA CARE LIVING CIRENCESTER LTD,GL7 ,13/05/2022,"11,335.71"
22364234,Mental Health,Adults,Mental Health 18-64,3rd Party Payments,Residential Care,AURA CARE LIVING CIRENCESTER LTD,GL7 ,13/05/2022,"16,560.00"
22364234,Physical Support,Adults,Physical Support 65 and over,3rd Party Payments,Residential Care,AURA CARE LIVING CIRENCESTER LTD,GL7 ,13/05/2022,"14,928.57"
22364234,Care Management & Safeguarding,Adults,Community Response Hub,3rd Party Payments,Residential Care,AURA CARE LIVING CIRENCESTER LTD,GL7 ,13/05/2022,"1,028.57"
25072233,High Needs Block,DSG Skills and Attainment,Out of Borough School Fees,3rd Party Payments,Independent Special school- Post 16,AURORA FOXES ACADEMY,GL2 ,27/05/2022,"16,918.03"
25071233,High Needs Block,DSG Skills and Attainment,Out of Borough School Fees,3rd Party Payments,Independent Special school- Post 16,AURORA FOXES ACADEMY,GL2 ,27/05/2022,"19,718.00"
22360240,Learning Disabilities,Adults,Learning Disability 65 and over,3rd Party Payments,Residential Care,AUTONOMY LIFE LIMITED,SN12,13/05/2022,"19,623.48"
22360240,Learning Disabilities,Adults,Learning Disability 65 and over,Income,Client Contribution - Residential,AUTONOMY LIFE LIMITED,SN12,13/05/2022,-661.00
22360240,Learning Disabilities,Adults,Learning Disability 65 and over,3rd Party Payments,Residential Care,AUTONOMY LIFE LIMITED,SN12,13/05/2022,"11,641.05"
22360240,Learning Disabilities,Adults,Learning Disability 65 and over,3rd Party Payments,Residential Care,AUTONOMY LIFE LIMITED,SN12,13/05/2022,"-18,868.71"
23419233,Traded Services,Inclusion and Achievement,Plas Pencelli Outdoor Education Centre,Premises Costs,Gas,AVANTI GAS LTD,S43 ,18/05/2022,"2,310.67"
25171233,Social Care,"Children, Families and Community Health Services",Unaccompanied Asylum Seeking Children (UASC),3rd Party Payments,Supported Living,AVISANT CONSULTING LTD,EC1V,30/05/2022,"5,121.43"
20957233,Highways Schemes,Strategic Planning and Highways,John Street car park redevelopment (Parade),Capital,Professional Fees,AVISON YOUNG (UK) LTD,B1 2,06/05/2022,"5,220.00"
22324237,Learning Disabilities,Adults,Learning Disability 26 - 64,Income,Client Contribution - Residential,AVON AUTISTIC FOUNDATION LTD,BS11,13/05/2022,-517.75
22324238,Learning Disabilities,Adults,Learning Disability 26 - 64,3rd Party Payments,Residential Care,AVON AUTISTIC FOUNDATION LTD,BS11,13/05/2022,"8,529.90"
22324237,Learning Disabilities,Adults,Learning Disability 26 - 64,3rd Party Payments,Residential Care,AVON AUTISTIC FOUNDATION LTD,BS11,13/05/2022,"6,098.00"
22324238,Learning Disabilities,Adults,Learning Disability 26 - 64,Income,Client Contribution - Residential,AVON AUTISTIC FOUNDATION LTD,BS11,13/05/2022,-517.75
22369233,Landscaping & Open Space,Culture & Heritage & Art,GWCF - Trees for Climate,Capital,Contractor Payments,AVON NEEDS TREES,BS7 ,13/05/2022,"54,646.22"
24307246,Homelessness and Travellers,Housing Services,Leased Private Managed Accommodation,Transfer Payments,Payment of Costs,AVONPARK PROPERTIES LTD,NW1W,25/05/2022,650.00
24307359,Homelessness and Travellers,Housing Services,Leased Private Managed Accommodation,Transfer Payments,Payment of Costs,AVONPARK PROPERTIES LTD,NW1W,25/05/2022,550.00
24307245,Homelessness and Travellers,Housing Services,Leased Private Managed Accommodation,Transfer Payments,Payment of Costs,AVONPARK PROPERTIES LTD,NW1W,25/05/2022,615.00
20964233,Public Health,Public Health,Public Health Other,3rd Party Payments,Contract Payments,BACK CARE SOLUTIONS LTD,PR5 ,06/05/2022,421.20
21497233,Town Centre,"Economy, Growth and Place","No 7, 9 & 11 Carriage works @ Railway Village",Capital,Consultants,BAILEY PARTNERSHIP (CONSULTANTS) LLP,PL1 ,09/05/2022,"1,500.00"
21499233,Town Centre,"Economy, Growth and Place","No 7, 9 & 11 Carriage works @ Railway Village",Capital,Consultants,BAILEY PARTNERSHIP (CONSULTANTS) LLP,PL1 ,09/05/2022,"1,500.00"
22360235,Physical Support,Adults,Physical Support 65 and over,Income,Client Contribution - Nursing,BARCHESTER HEALTHCARE HOMES,GL7 ,13/05/2022,"-1,012.40"
22360235,Memory & Cognition,Adults,Support for Memory and Cognition 65 and over,3rd Party Payments,Nursing Care,BARCHESTER HEALTHCARE HOMES,GL7 ,13/05/2022,"13,215.66"
22360235,Memory & Cognition,Adults,Support for Memory and Cognition 65 and over,3rd Party Payments,Nursing Care,BARCHESTER HEALTHCARE HOMES,GL7 ,13/05/2022,"-12,575.60"
22360235,Physical Support,Adults,Physical Support 65 and over,3rd Party Payments,Nursing Care,BARCHESTER HEALTHCARE HOMES,GL7 ,13/05/2022,"4,268.75"
22360235,Physical Support,Adults,Physical Support 65 and over,3rd Party Payments,Nursing Care,BARCHESTER HEALTHCARE HOMES,GL7 ,13/05/2022,"7,195.89"
22360235,Memory & Cognition,Adults,Support for Memory and Cognition 65 and over,3rd Party Payments,Nursing Care,BARCHESTER HEALTHCARE HOMES,GL7 ,13/05/2022,"7,839.80"
22360235,Physical Support,Adults,Physical Support 65 and over,3rd Party Payments,Nursing Care,BARCHESTER HEALTHCARE HOMES,GL7 ,13/05/2022,"-6,847.37"
24879233,School Transport,Inclusion and Achievement,Special Educational Needs Transport,Transport Costs,Home to School Transport,BARNES COACHES LTD,SN3 ,27/05/2022,"2,240.00"
22619233,School Transport,Inclusion and Achievement,Mainstream School Transport,Employees,Temporary / Agency - by Accounts Payable,BARNES COACHES LTD,SN3 ,16/05/2022,145.00
22619233,School Transport,Inclusion and Achievement,Mainstream School Transport,Transport Costs,Home to School Transport,BARNES COACHES LTD,SN3 ,16/05/2022,"5,225.00"
22652234,Libraries,Inclusion and Achievement,Library Shop,Supplies and Services,Goods for resale,BARNES COACHES LTD,SN3 ,16/05/2022,531.92
24879233,School Transport,Inclusion and Achievement,Special Educational Needs Transport,Employees,Temporary / Agency - by Accounts Payable,BARNES COACHES LTD,SN3 ,27/05/2022,484.50
22619233,School Transport,Inclusion and Achievement,Mainstream School Transport,Employees,Temporary / Agency - by Accounts Payable,BARNES COACHES LTD,SN3 ,16/05/2022,410.96
20925233,Streetsmart,Streetsmart,Refuse Collection,Employees,Training,BARTEC MUNICIPAL TECHNOLOGIES LTD,S75 ,06/05/2022,"1,700.00"
22350234,Physical Support,Adults,Physical Support 65 and over,Income,Client Contribution - Nursing,BASSETT HOUSE CARE HOME,SN4 ,13/05/2022,"-1,099.40"
22350234,Physical Support,Adults,Physical Support 65 and over,3rd Party Payments,Nursing Care,BASSETT HOUSE CARE HOME,SN4 ,13/05/2022,"6,360.20"
22350234,Physical Support,Adults,Physical Support 65 and over,3rd Party Payments,Nursing Care,BASSETT HOUSE CARE HOME,SN4 ,13/05/2022,"3,773.00"
22350234,Physical Support,Adults,Physical Support 65 and over,3rd Party Payments,Nursing Care,BASSETT HOUSE CARE HOME,SN4 ,13/05/2022,"-6,000.22"
22694244,Schools - Primary,DSG Skills and Attainment,Primary School Budgets,3rd Party Payments,Mainstream Delegated Funding,BEECHCROFT INFANT SCHOOL,SN2 ,18/05/2022,"97,491.00"
22924233,High Needs Block,DSG Skills and Attainment,SEN Resourcing Assessment Panel,3rd Party Payments,Top up funding - Maintained providers Pre 16,BEECHCROFT INFANT SCHOOL,SN2 ,18/05/2022,"7,596.26"
22718254,DSG Other Funding,DSG Skills and Attainment,DFE Additional Grants,3rd Party Payments,Payment of Pupil Premium to school,BEECHCROFT INFANT SCHOOL,SN2 ,18/05/2022,"7,557.00"
22300233,Schools Maintenance,Skills & Attainment,Condition Works,Capital,Contractor Payments,BEECHCROFT INFANT SCHOOL,SN2 ,13/05/2022,"35,000.00"
22347234,Learning Disabilities,Adults,Learning Disability 26 - 64,3rd Party Payments,Residential Care,BEECHWOOD COURT LTD,CF10,13/05/2022,"14,630.60"
22347234,Learning Disabilities,Adults,Learning Disability 26 - 64,3rd Party Payments,Residential Care,BEECHWOOD COURT LTD,CF10,13/05/2022,"30,594.00"
22347234,Learning Disabilities,Adults,Learning Disability 26 - 64,Income,Client Contribution - Residential,BEECHWOOD COURT LTD,CF10,13/05/2022,-403.20
23288233,Other Repairs,Repairs,Delivery Team & Overheads,Supplies and Services,Materials,BEESLEYS TOOLS,SN2 ,18/05/2022,14.04
23288233,Other Repairs,Repairs,Delivery Team & Overheads,Supplies and Services,Materials,BEESLEYS TOOLS,SN2 ,18/05/2022,9.99
23288233,Other Repairs,Repairs,Delivery Team & Overheads,Supplies and Services,Materials,BEESLEYS TOOLS,SN2 ,18/05/2022,10.00
23013233,Other Repairs,Repairs,Delivery Team & Overheads,Supplies and Services,Materials,BEESLEYS TOOLS,SN2 ,18/05/2022,8.93
23013233,Other Repairs,Repairs,Delivery Team & Overheads,Supplies and Services,Materials,BEESLEYS TOOLS,SN2 ,18/05/2022,20.50
23013233,Other Repairs,Repairs,Delivery Team & Overheads,Supplies and Services,Materials,BEESLEYS TOOLS,SN2 ,18/05/2022,24.99
23014233,Void Repairs,Supervision & Management,Void Property Repairs,Supplies and Services,Materials,BEESLEYS TOOLS,SN2 ,18/05/2022,489.00
23288233,Other Repairs,Repairs,Delivery Team & Overheads,Supplies and Services,Materials,BEESLEYS TOOLS,SN2 ,18/05/2022,4.34
23288233,Other Repairs,Repairs,Delivery Team & Overheads,Supplies and Services,Materials,BEESLEYS TOOLS,SN2 ,18/05/2022,9.90
23288233,Other Repairs,Repairs,Delivery Team & Overheads,Supplies and Services,Materials,BEESLEYS TOOLS,SN2 ,18/05/2022,12.49
23022233,Other Repairs,Repairs,Delivery Team & Overheads,Supplies and Services,Materials,BEESLEYS TOOLS,SN2 ,18/05/2022,619.00
23013233,Other Repairs,Repairs,Delivery Team & Overheads,Supplies and Services,Materials,BEESLEYS TOOLS,SN2 ,18/05/2022,9.36
23013233,Other Repairs,Repairs,Delivery Team & Overheads,Supplies and Services,Materials,BEESLEYS TOOLS,SN2 ,18/05/2022,28.90
23013233,Other Repairs,Repairs,Delivery Team & Overheads,Supplies and Services,Materials,BEESLEYS TOOLS,SN2 ,18/05/2022,6.60
23013233,Other Repairs,Repairs,Delivery Team & Overheads,Supplies and Services,Materials,BEESLEYS TOOLS,SN2 ,18/05/2022,12.49
23016233,Other Repairs,Repairs,Asbestos Services,Supplies and Services,Materials,BEESLEYS TOOLS,SN2 ,18/05/2022,147.00
23288233,Other Repairs,Repairs,Delivery Team & Overheads,Supplies and Services,Materials,BEESLEYS TOOLS,SN2 ,18/05/2022,22.98
23288233,Other Repairs,Repairs,Delivery Team & Overheads,Supplies and Services,Materials,BEESLEYS TOOLS,SN2 ,18/05/2022,11.02
23019233,Other Repairs,Repairs,Delivery Team & Overheads,Supplies and Services,Materials,BEESLEYS TOOLS,SN2 ,18/05/2022,181.00
23019233,Other Repairs,Repairs,Delivery Team & Overheads,Supplies and Services,Materials,BEESLEYS TOOLS,SN2 ,18/05/2022,139.00
23013233,Other Repairs,Repairs,Delivery Team & Overheads,Supplies and Services,Materials,BEESLEYS TOOLS,SN2 ,18/05/2022,2.99
23013233,Other Repairs,Repairs,Delivery Team & Overheads,Supplies and Services,Materials,BEESLEYS TOOLS,SN2 ,18/05/2022,15.99
23013233,Other Repairs,Repairs,Delivery Team & Overheads,Supplies and Services,Materials,BEESLEYS TOOLS,SN2 ,18/05/2022,10.90
23013233,Other Repairs,Repairs,Delivery Team & Overheads,Supplies and Services,Materials,BEESLEYS TOOLS,SN2 ,18/05/2022,27.52
23013233,Other Repairs,Repairs,Delivery Team & Overheads,Supplies and Services,Materials,BEESLEYS TOOLS,SN2 ,18/05/2022,7.90
23013233,Other Repairs,Repairs,Delivery Team & Overheads,Supplies and Services,Materials,BEESLEYS TOOLS,SN2 ,18/05/2022,22.04
23013233,Other Repairs,Repairs,Delivery Team & Overheads,Supplies and Services,Materials,BEESLEYS TOOLS,SN2 ,18/05/2022,70.00
23013233,Other Repairs,Repairs,Delivery Team & Overheads,Supplies and Services,Materials,BEESLEYS TOOLS,SN2 ,18/05/2022,9.99
23013233,Other Repairs,Repairs,Delivery Team & Overheads,Supplies and Services,Materials,BEESLEYS TOOLS,SN2 ,18/05/2022,8.40
23013233,Other Repairs,Repairs,Delivery Team & Overheads,Supplies and Services,Materials,BEESLEYS TOOLS,SN2 ,18/05/2022,44.99
23013233,Other Repairs,Repairs,Asbestos Services,Supplies and Services,Materials,BEESLEYS TOOLS,SN2 ,18/05/2022,39.99
23288233,Other Repairs,Repairs,Delivery Team & Overheads,Supplies and Services,Materials,BEESLEYS TOOLS,SN2 ,18/05/2022,18.59
23288233,Other Repairs,Repairs,Delivery Team & Overheads,Supplies and Services,Materials,BEESLEYS TOOLS,SN2 ,18/05/2022,44.99
23017233,Other Repairs,Repairs,Delivery Team & Overheads,Supplies and Services,Materials,BEESLEYS TOOLS,SN2 ,18/05/2022,905.00
23013233,Other Repairs,Repairs,Delivery Team & Overheads,Supplies and Services,Materials,BEESLEYS TOOLS,SN2 ,18/05/2022,15.00
23013233,Other Repairs,Repairs,Delivery Team & Overheads,Supplies and Services,Materials,BEESLEYS TOOLS,SN2 ,18/05/2022,11.99
23013233,Other Repairs,Repairs,Delivery Team & Overheads,Supplies and Services,Materials,BEESLEYS TOOLS,SN2 ,18/05/2022,15.72
23013233,Other Repairs,Repairs,Delivery Team & Overheads,Supplies and Services,Materials,BEESLEYS TOOLS,SN2 ,18/05/2022,33.48
23020233,Other Repairs,Repairs,Delivery Team & Overheads,Supplies and Services,Equipment,BEESLEYS TOOLS,SN2 ,18/05/2022,289.00
23013233,Other Repairs,Repairs,Asbestos Services,Supplies and Services,Materials,BEESLEYS TOOLS,SN2 ,18/05/2022,19.00
23288233,Other Repairs,Repairs,Delivery Team & Overheads,Supplies and Services,Materials,BEESLEYS TOOLS,SN2 ,18/05/2022,22.99
23288233,Other Repairs,Repairs,Delivery Team & Overheads,Supplies and Services,Materials,BEESLEYS TOOLS,SN2 ,18/05/2022,4.99
23288233,Other Repairs,Repairs,Delivery Team & Overheads,Supplies and Services,Materials,BEESLEYS TOOLS,SN2 ,18/05/2022,19.99
23013233,Other Repairs,Repairs,Delivery Team & Overheads,Supplies and Services,Materials,BEESLEYS TOOLS,SN2 ,18/05/2022,5.90
23013233,Other Repairs,Repairs,Delivery Team & Overheads,Supplies and Services,Materials,BEESLEYS TOOLS,SN2 ,18/05/2022,8.80
23013233,Other Repairs,Repairs,Delivery Team & Overheads,Supplies and Services,Materials,BEESLEYS TOOLS,SN2 ,18/05/2022,42.00
23013233,Other Repairs,Repairs,Delivery Team & Overheads,Supplies and Services,Materials,BEESLEYS TOOLS,SN2 ,18/05/2022,11.21
23013233,Other Repairs,Repairs,Delivery Team & Overheads,Supplies and Services,Materials,BEESLEYS TOOLS,SN2 ,18/05/2022,19.98
23013233,Other Repairs,Repairs,Delivery Team & Overheads,Supplies and Services,Materials,BEESLEYS TOOLS,SN2 ,18/05/2022,216.00
23013233,Other Repairs,Repairs,Delivery Team & Overheads,Supplies and Services,Materials,BEESLEYS TOOLS,SN2 ,18/05/2022,32.50
23013233,Other Repairs,Repairs,Delivery Team & Overheads,Supplies and Services,Materials,BEESLEYS TOOLS,SN2 ,18/05/2022,10.99
23288233,Other Repairs,Repairs,Delivery Team & Overheads,Supplies and Services,Materials,BEESLEYS TOOLS,SN2 ,18/05/2022,28.00
23288233,Other Repairs,Repairs,Delivery Team & Overheads,Supplies and Services,Materials,BEESLEYS TOOLS,SN2 ,18/05/2022,29.99
23288233,Other Repairs,Repairs,Delivery Team & Overheads,Supplies and Services,Materials,BEESLEYS TOOLS,SN2 ,18/05/2022,11.66
23288233,Other Repairs,Repairs,Delivery Team & Overheads,Supplies and Services,Materials,BEESLEYS TOOLS,SN2 ,18/05/2022,45.45
23288233,Other Repairs,Repairs,Delivery Team & Overheads,Supplies and Services,Materials,BEESLEYS TOOLS,SN2 ,18/05/2022,9.00
23019233,Other Repairs,Repairs,Delivery Team & Overheads,Supplies and Services,Materials,BEESLEYS TOOLS,SN2 ,18/05/2022,131.00
23017233,Other Repairs,Repairs,Delivery Team & Overheads,Supplies and Services,Materials,BEESLEYS TOOLS,SN2 ,18/05/2022,655.00
23013233,Other Repairs,Repairs,Delivery Team & Overheads,Supplies and Services,Materials,BEESLEYS TOOLS,SN2 ,18/05/2022,37.50
23013233,Other Repairs,Repairs,Delivery Team & Overheads,Supplies and Services,Materials,BEESLEYS TOOLS,SN2 ,18/05/2022,19.84
23013233,Other Repairs,Repairs,Delivery Team & Overheads,Supplies and Services,Materials,BEESLEYS TOOLS,SN2 ,18/05/2022,7.49
23013233,Other Repairs,Repairs,Delivery Team & Overheads,Supplies and Services,Materials,BEESLEYS TOOLS,SN2 ,18/05/2022,6.90
23013233,Other Repairs,Repairs,Delivery Team & Overheads,Supplies and Services,Materials,BEESLEYS TOOLS,SN2 ,18/05/2022,16.00
23013233,Other Repairs,Repairs,Delivery Team & Overheads,Supplies and Services,Materials,BEESLEYS TOOLS,SN2 ,18/05/2022,20.30
23013233,Other Repairs,Repairs,Delivery Team & Overheads,Supplies and Services,Materials,BEESLEYS TOOLS,SN2 ,18/05/2022,18.40
23013233,Other Repairs,Repairs,Delivery Team & Overheads,Supplies and Services,Materials,BEESLEYS TOOLS,SN2 ,18/05/2022,44.95
23013233,Other Repairs,Repairs,Delivery Team & Overheads,Supplies and Services,Materials,BEESLEYS TOOLS,SN2 ,18/05/2022,14.99
23013233,Other Repairs,Repairs,Delivery Team & Overheads,Supplies and Services,Materials,BEESLEYS TOOLS,SN2 ,18/05/2022,27.48
23020233,Other Repairs,Repairs,Delivery Team & Overheads,Supplies and Services,Equipment,BEESLEYS TOOLS,SN2 ,18/05/2022,102.00
23288233,Other Repairs,Repairs,Delivery Team & Overheads,Supplies and Services,Materials,BEESLEYS TOOLS,SN2 ,18/05/2022,90.00
23017233,Other Repairs,Repairs,Delivery Team & Overheads,Supplies and Services,Materials,BEESLEYS TOOLS,SN2 ,18/05/2022,695.00
23013233,Other Repairs,Repairs,Delivery Team & Overheads,Supplies and Services,Materials,BEESLEYS TOOLS,SN2 ,18/05/2022,94.55
23013233,Other Repairs,Repairs,Delivery Team & Overheads,Supplies and Services,Materials,BEESLEYS TOOLS,SN2 ,18/05/2022,21.00
23013233,Other Repairs,Repairs,Delivery Team & Overheads,Supplies and Services,Materials,BEESLEYS TOOLS,SN2 ,18/05/2022,29.56
23013233,Other Repairs,Repairs,Delivery Team & Overheads,Supplies and Services,Materials,BEESLEYS TOOLS,SN2 ,18/05/2022,12.71
23013233,Other Repairs,Repairs,Delivery Team & Overheads,Supplies and Services,Materials,BEESLEYS TOOLS,SN2 ,18/05/2022,31.03
23013233,Other Repairs,Repairs,Delivery Team & Overheads,Supplies and Services,Materials,BEESLEYS TOOLS,SN2 ,18/05/2022,12.50
23013233,Other Repairs,Repairs,Delivery Team & Overheads,Supplies and Services,Materials,BEESLEYS TOOLS,SN2 ,18/05/2022,7.20
23014233,Void Repairs,Supervision & Management,Void Property Repairs,Supplies and Services,Materials,BEESLEYS TOOLS,SN2 ,18/05/2022,123.00
23288233,Other Repairs,Repairs,Delivery Team & Overheads,Supplies and Services,Materials,BEESLEYS TOOLS,SN2 ,18/05/2022,59.99
23288233,Other Repairs,Repairs,Delivery Team & Overheads,Supplies and Services,Materials,BEESLEYS TOOLS,SN2 ,18/05/2022,21.66
23288233,Other Repairs,Repairs,Delivery Team & Overheads,Supplies and Services,Materials,BEESLEYS TOOLS,SN2 ,18/05/2022,11.99
23288233,Other Repairs,Repairs,Delivery Team & Overheads,Supplies and Services,Materials,BEESLEYS TOOLS,SN2 ,18/05/2022,189.00
23013233,Other Repairs,Repairs,Delivery Team & Overheads,Supplies and Services,Materials,BEESLEYS TOOLS,SN2 ,18/05/2022,16.82
23013233,Other Repairs,Repairs,Delivery Team & Overheads,Supplies and Services,Materials,BEESLEYS TOOLS,SN2 ,18/05/2022,6.96
23013233,Other Repairs,Repairs,Delivery Team & Overheads,Supplies and Services,Materials,BEESLEYS TOOLS,SN2 ,18/05/2022,25.98
23013233,Other Repairs,Repairs,Delivery Team & Overheads,Supplies and Services,Materials,BEESLEYS TOOLS,SN2 ,18/05/2022,144.00
23013233,Other Repairs,Repairs,Delivery Team & Overheads,Supplies and Services,Materials,BEESLEYS TOOLS,SN2 ,18/05/2022,19.38
23013233,Other Repairs,Repairs,Delivery Team & Overheads,Supplies and Services,Materials,BEESLEYS TOOLS,SN2 ,18/05/2022,13.60
23020233,Other Repairs,Repairs,Delivery Team & Overheads,Supplies and Services,Equipment,BEESLEYS TOOLS,SN2 ,18/05/2022,105.00
23016233,Other Repairs,Repairs,Asbestos Services,Supplies and Services,Materials,BEESLEYS TOOLS,SN2 ,18/05/2022,"1,870.00"
23288233,Other Repairs,Repairs,Delivery Team & Overheads,Supplies and Services,Materials,BEESLEYS TOOLS,SN2 ,18/05/2022,39.99
23288233,Other Repairs,Repairs,Delivery Team & Overheads,Supplies and Services,Materials,BEESLEYS TOOLS,SN2 ,18/05/2022,27.48
23288233,Other Repairs,Repairs,Delivery Team & Overheads,Supplies and Services,Materials,BEESLEYS TOOLS,SN2 ,18/05/2022,3.99
23288233,Other Repairs,Repairs,Delivery Team & Overheads,Supplies and Services,Materials,BEESLEYS TOOLS,SN2 ,18/05/2022,16.76
23288233,Other Repairs,Repairs,Delivery Team & Overheads,Supplies and Services,Materials,BEESLEYS TOOLS,SN2 ,18/05/2022,15.24
22121233,Social Care,"Children, Families and Community Health Services",External Placements,3rd Party Payments,Residential Care,BENJAMIN UK LIMITED,HP23,13/05/2022,"20,127.68"
22120233,Social Care,"Children, Families and Community Health Services",External Placements,3rd Party Payments,Residential Care,BENJAMIN UK LIMITED,HP23,13/05/2022,"19,478.40"
23935239,Social Care,"Children, Families and Community Health Services",External Placements,3rd Party Payments,Residential Care,BENJAMIN UK LIMITED,HP23,20/05/2022,"16,071.30"
24804234,Social Care,"Children, Families and Community Health Services",External Placements,3rd Party Payments,Residential Care,BENJAMIN UK LIMITED,HP23,25/05/2022,"19,702.55"
23352237,Social Care,"Children, Families and Community Health Services",External Placements,3rd Party Payments,Residential Care,BENJAMIN UK LIMITED,HP23,18/05/2022,"17,121.30"
23352236,Social Care,"Children, Families and Community Health Services",External Placements,3rd Party Payments,Residential Care,BENJAMIN UK LIMITED,HP23,18/05/2022,"17,692.01"
20396233,Local Transport Plan Funded,Strategic Planning and Highways,Local Safety Schemes,Capital,Contractor Payments,BERNARD GEOMATICS LTD,SN2 ,04/05/2022,805.00
25002233,Town Centre,"Economy, Growth and Place",Fleming Way Bus Boulevard,Capital,Contractor Payments,BERNARD GEOMATICS LTD,SN2 ,27/05/2022,"15,293.00"
24192233,Social Care,"Children, Families and Community Health Services",CP & CIN Social Work - North,3rd Party Payments,Personal Needs,BESPOKE GUARDIANS LTD,SN6 ,23/05/2022,"2,625.00"
20440233,Social Care,"Children, Families and Community Health Services",CP & CIN Social Work - North,3rd Party Payments,Personal Needs,BESPOKE GUARDIANS LTD,SN6 ,04/05/2022,"2,625.00"
24343233,Social Care,"Children, Families and Community Health Services",Looked After Children Service,3rd Party Payments,Personal Needs,BESPOKE GUARDIANS LTD,SN6 ,25/05/2022,"1,500.00"
21926233,Lydiard Park,Streetsmart,Lydiard House & Park,Supplies and Services,Goods for resale,BILLY ROSS WHOLESALE,PA3 ,11/05/2022,"1,065.60"
22694235,Schools - Primary,DSG Skills and Attainment,Primary School Budgets,3rd Party Payments,Mainstream Delegated Funding,BISHOPSTONE C E PRIMARY SCHOOL,SN6 ,18/05/2022,"26,319.00"
22718245,DSG Other Funding,DSG Skills and Attainment,DFE Additional Grants,3rd Party Payments,Payment of Pupil Premium to school,BISHOPSTONE C E PRIMARY SCHOOL,SN6 ,18/05/2022,808.00
22099233,Social Care,"Children, Families and Community Health Services",External Placements,3rd Party Payments,Independent Fostering Agency Placements,BLUE SKY,HA1 ,13/05/2022,"6,300.00"
22098233,Social Care,"Children, Families and Community Health Services",External Placements,3rd Party Payments,Independent Fostering Agency Placements,BLUE SKY,HA1 ,13/05/2022,"5,292.90"
22097233,Social Care,"Children, Families and Community Health Services",External Placements,3rd Party Payments,Independent Fostering Agency Placements,BLUE SKY,HA1 ,13/05/2022,"3,318.90"
24797233,Social Care,"Children, Families and Community Health Services",External Placements,3rd Party Payments,Independent Fostering Agency Placements,BLUE SKY,HA1 ,25/05/2022,646.58
22099234,Social Care,"Children, Families and Community Health Services",External Placements,3rd Party Payments,Parent & Child Placements,BLUE SKY,HA1 ,13/05/2022,"6,546.60"
22320236,Physical Support,Adults,Physical Support 65 and over,3rd Party Payments,Residential Care,BLUEBELLS RESIDENTIAL HOME,SN25,13/05/2022,"6,150.00"
22320236,Physical Support,Adults,Physical Support 65 and over,3rd Party Payments,Residential Care,BLUEBELLS RESIDENTIAL HOME,SN25,13/05/2022,"-7,737.43"
22320236,Physical Support,Adults,Physical Support 65 and over,3rd Party Payments,Residential Care,BLUEBELLS RESIDENTIAL HOME,SN25,13/05/2022,"4,773.60"
22320236,Physical Support,Adults,Physical Support 65 and over,3rd Party Payments,Residential Care,BLUEBELLS RESIDENTIAL HOME,SN25,13/05/2022,"10,367.14"
22320236,Mental Health,Adults,Mental Health 65 and over,3rd Party Payments,Residential Care,BLUEBELLS RESIDENTIAL HOME,SN25,13/05/2022,"4,750.00"
22320236,Physical Support,Adults,Physical Support 65 and over,3rd Party Payments,Residential Care,BLUEBELLS RESIDENTIAL HOME,SN25,13/05/2022,"-10,114.29"
22320236,Physical Support,Adults,Physical Support 65 and over,Income,Client Contribution - Residential,BLUEBELLS RESIDENTIAL HOME,SN25,13/05/2022,-861.00
22320236,Physical Support,Adults,Physical Support 65 and over,Income,Client Contribution - Residential,BLUEBELLS RESIDENTIAL HOME,SN25,13/05/2022,"-1,425.85"
22320236,Physical Support,Adults,Physical Support 65 and over,3rd Party Payments,Residential Care,BLUEBELLS RESIDENTIAL HOME,SN25,13/05/2022,"8,046.93"
20150235,Learning Disabilities,Adults,Learning Disability 26 - 64,3rd Party Payments,Personal Budget - Domiciliary care,BLUEBIRD CARE (SWINDON),SN25,04/05/2022,567.28
20153234,Physical Support,Adults,Physical Support 65 and over,3rd Party Payments,Personal Budget - Domiciliary care,BLUEBIRD CARE (SWINDON),SN25,04/05/2022,797.04
21478235,Physical Support,Adults,Physical Support 65 and over,3rd Party Payments,Personal Budget - Domiciliary care,BLUEBIRD CARE (SWINDON),SN25,11/05/2022,807.72
20149234,Learning Disabilities,Adults,Learning Disability 26 - 64,3rd Party Payments,Personal Budget - Domiciliary care,BLUEBIRD CARE (SWINDON),SN25,04/05/2022,640.46
23588257,Learning Disabilities,Adults,Learning Disability 26 - 64,3rd Party Payments,Personal Budget - Domiciliary care,BLUEBIRD CARE (SWINDON),SN25,23/05/2022,516.12
23928235,Learning Disabilities,Adults,Learning Disability 26 - 64,3rd Party Payments,Personal Budget - Domiciliary care,BLUEBIRD CARE (SWINDON),SN25,23/05/2022,647.40
23588261,Physical Support,Adults,Physical Support 65 and over,3rd Party Payments,Personal Budget - Domiciliary care,BLUEBIRD CARE (SWINDON),SN25,23/05/2022,807.72
23588249,Learning Disabilities,Adults,Learning Disability 26 - 64,3rd Party Payments,Personal Budget - Domiciliary care,BLUEBIRD CARE (SWINDON),SN25,20/05/2022,644.40
Corporate Card Transaction,Learning Disabilities,Adults,Firethorn Close,Supplies and Services,Equipment,B&m 536 - Churchward,,09/05/2022,555.97
24375233,Digital & Business Change,Digital & Business Change,IT Operations,Supplies and Services,MFD Charges,BNP PARIBAS LEASING SOLUTIONS,RG21,25/05/2022,882.12
22356235,Mental Health,Adults,Mental Health 65 and over,3rd Party Payments,Residential Care,BOLEALLER HOUSE LTD,EX15,13/05/2022,"9,944.28"
22356235,Mental Health,Adults,Mental Health 65 and over,3rd Party Payments,Residential Care,BOLEALLER HOUSE LTD,EX15,13/05/2022,"-9,380.49"
22356235,Mental Health,Adults,Mental Health 65 and over,3rd Party Payments,Residential Care,BOLEALLER HOUSE LTD,EX15,13/05/2022,"5,899.15"
22327247,Physical Support,Adults,Physical Support 65 and over,3rd Party Payments,Nursing Care,BOTHWELLS LTD,HA6 ,13/05/2022,"3,650.40"
22327247,Physical Support,Adults,Physical Support 65 and over,Income,Client Contribution - Nursing,BOTHWELLS LTD,HA6 ,13/05/2022,-761.00
22327247,Physical Support,Adults,Physical Support 18 - 64,3rd Party Payments,Nursing Care,BOTHWELLS LTD,HA6 ,13/05/2022,"5,394.54"
22327247,Physical Support,Adults,Physical Support 65 and over,3rd Party Payments,Nursing Care,BOTHWELLS LTD,HA6 ,13/05/2022,"5,110.56"
22327247,Physical Support,Adults,Physical Support 65 and over,3rd Party Payments,Nursing Care,BOTHWELLS LTD,HA6 ,13/05/2022,"4,666.50"
22327247,Physical Support,Adults,Physical Support 65 and over,3rd Party Payments,Nursing Care,BOTHWELLS LTD,HA6 ,13/05/2022,"-1,002.86"
22327247,Physical Support,Adults,Physical Support 65 and over,3rd Party Payments,Nursing Care,BOTHWELLS LTD,HA6 ,13/05/2022,"-5,137.64"
22327247,Physical Support,Adults,Physical Support 18 - 64,3rd Party Payments,Nursing Care,BOTHWELLS LTD,HA6 ,13/05/2022,"3,200.15"
22327247,Physical Support,Adults,Physical Support 18 - 64,Income,Client Contribution - Nursing,BOTHWELLS LTD,HA6 ,13/05/2022,-532.00
22327247,Physical Support,Adults,Physical Support 65 and over,3rd Party Payments,Nursing Care,BOTHWELLS LTD,HA6 ,13/05/2022,"1,042.97"
22327247,Physical Support,Adults,Physical Support 65 and over,3rd Party Payments,Nursing Care,BOTHWELLS LTD,HA6 ,13/05/2022,"5,394.54"
22327247,Physical Support,Adults,Physical Support 65 and over,3rd Party Payments,Nursing Care,BOTHWELLS LTD,HA6 ,13/05/2022,"3,200.15"
22327247,Physical Support,Adults,Physical Support 65 and over,3rd Party Payments,Nursing Care,BOTHWELLS LTD,HA6 ,13/05/2022,"2,980.05"
22327247,Physical Support,Adults,Physical Support 65 and over,3rd Party Payments,Nursing Care,BOTHWELLS LTD,HA6 ,13/05/2022,"7,866.39"
22327247,Physical Support,Adults,Physical Support 65 and over,Income,Client Contribution - Nursing,BOTHWELLS LTD,HA6 ,13/05/2022,-654.75
22327247,Physical Support,Adults,Physical Support 65 and over,Income,Client Contribution - Nursing,BOTHWELLS LTD,HA6 ,13/05/2022,-762.50
22327247,Physical Support,Adults,Physical Support 18 - 64,3rd Party Payments,Nursing Care,BOTHWELLS LTD,HA6 ,13/05/2022,"-4,784.31"
22327247,Physical Support,Adults,Physical Support 18 - 64,3rd Party Payments,Nursing Care,BOTHWELLS LTD,HA6 ,13/05/2022,"-5,137.64"
22327247,Physical Support,Adults,Physical Support 18 - 64,3rd Party Payments,Nursing Care,BOTHWELLS LTD,HA6 ,13/05/2022,"2,980.05"
22327247,Learning Disabilities,Adults,Learning Disability 26 - 64,3rd Party Payments,Nursing Care,BOTHWELLS LTD,HA6 ,13/05/2022,"-8,264.64"
22327247,Physical Support,Adults,Physical Support 65 and over,3rd Party Payments,Nursing Care,BOTHWELLS LTD,HA6 ,13/05/2022,"-4,914.00"
22327247,Physical Support,Adults,Physical Support 65 and over,3rd Party Payments,Nursing Care,BOTHWELLS LTD,HA6 ,13/05/2022,"-4,784.31"
22327247,Physical Support,Adults,Physical Support 65 and over,3rd Party Payments,Nursing Care,BOTHWELLS LTD,HA6 ,13/05/2022,"30,511.60"
22327247,Physical Support,Adults,Physical Support 18 - 64,3rd Party Payments,Nursing Care,BOTHWELLS LTD,HA6 ,13/05/2022,"5,023.51"
22327247,Physical Support,Adults,Physical Support 18 - 64,Income,Client Contribution - Nursing,BOTHWELLS LTD,HA6 ,13/05/2022,-517.75
22327247,Physical Support,Adults,Physical Support 65 and over,3rd Party Payments,Nursing Care,BOTHWELLS LTD,HA6 ,13/05/2022,"5,023.51"
22327247,Physical Support,Adults,Physical Support 65 and over,Income,Client Contribution - Nursing,BOTHWELLS LTD,HA6 ,13/05/2022,"-1,285.36"
22327247,Physical Support,Adults,Physical Support 65 and over,Income,Client Contribution - Nursing,BOTHWELLS LTD,HA6 ,13/05/2022,"-5,185.00"
22327247,Physical Support,Adults,Physical Support 18 - 64,3rd Party Payments,Nursing Care,BOTHWELLS LTD,HA6 ,13/05/2022,"5,098.85"
22327247,Physical Support,Adults,Physical Support 65 and over,Income,Client Contribution - Nursing,BOTHWELLS LTD,HA6 ,13/05/2022,-810.35
22327247,Physical Support,Adults,Physical Support 65 and over,Income,Client Contribution - Nursing,BOTHWELLS LTD,HA6 ,13/05/2022,-711.75
22327247,Physical Support,Adults,Physical Support 65 and over,Income,Client Contribution - Nursing,BOTHWELLS LTD,HA6 ,13/05/2022,-824.75
22327247,Physical Support,Adults,Physical Support 18 - 64,3rd Party Payments,Nursing Care,BOTHWELLS LTD,HA6 ,13/05/2022,"8,595.20"
20299234,Early Help,"Children, Families and Community Health Services","Holiday, Activities & Food Grant",3rd Party Payments,Contracts - Child Care,BRAMBLE HOUSE DAY NURSERY LTD,SN2 ,04/05/2022,540.00
22896233,High Needs Block,DSG Skills and Attainment,SEN Resourcing Assessment Panel,3rd Party Payments,Top up funding - Maintained providers Pre 16,BRAMBLE HOUSE DAY NURSERY LTD,SN2 ,18/05/2022,624.00
24312234,High Needs Block,DSG Skills and Attainment,SEND Support,Supplies and Services,Payments to Educational Bodies,BRAMBLE HOUSE DAY NURSERY LTD,SN2 ,23/05/2022,"5,700.00"
23935242,Social Care,"Children, Families and Community Health Services",External Placements,3rd Party Payments,Residential Care,BRANAS ISAF LIMITED,EN6 ,20/05/2022,"24,578.66"
22920241,High Needs Block,DSG Skills and Attainment,SEN Resourcing Assessment Panel,3rd Party Payments,Top up funding - Maintained providers Pre 16,BRIDLEWOOD PRIMARY SCHOOL,SN25,18/05/2022,"6,428.67"
22718250,DSG Other Funding,DSG Skills and Attainment,DFE Additional Grants,3rd Party Payments,Payment of Pupil Premium to school,BRIDLEWOOD PRIMARY SCHOOL,SN25,18/05/2022,"4,152.00"
21728233,Early Years Block,DSG Skills and Attainment,Free Nursery Education Commissioning - three & four  year olds,3rd Party Payments,Contracts - Child Care,BRIDLEWOOD PRIMARY SCHOOL,SN25,11/05/2022,"6,834.35"
22694240,Schools - Primary,DSG Skills and Attainment,Primary School Budgets,3rd Party Payments,Mainstream Delegated Funding,BRIDLEWOOD PRIMARY SCHOOL,SN25,18/05/2022,"75,276.00"
20720233,DMJ Tower,Housing Services,DMJ Apartments,Premises Costs,Repairs - Buildings,BRISTOL FIRE,BS37,04/05/2022,583.00
20719233,Property Management,Property,Corporate Repairs & Maintenance Programme,Premises Costs,Repairs - Buildings,BRISTOL FIRE,BS37,04/05/2022,"1,673.15"
20717233,Property Management,Property,Corporate Repairs & Maintenance Programme,Premises Costs,Maintenance - Buildings,BRISTOL FIRE,BS37,04/05/2022,727.65
20485233,Other Repairs,Repairs,Unallocated job costs from OPEN system,3rd Party Payments,Contract Payments,BRISTOL FIRE,BS37,04/05/2022,573.50
24046233,Other Repairs,Repairs,Unallocated job costs from OPEN system,Premises Costs,Maintenance - Buildings,BRISTOL FIRE,BS37,20/05/2022,789.50
21762236,Other Repairs,Repairs,Unallocated job costs from OPEN system,3rd Party Payments,Contract Payments,BRISTOL FIRE,BS37,11/05/2022,"4,019.32"
24778233,Revenues & Benefits,Revenues & Benefits,Swindon Emergency Assistance Fund,Supplies and Services,Materials,BRITISH HEART FOUNDATION,NW1 ,25/05/2022,640.00
22605233,Corporate,Corporate Finance,Corporate Financial Management,Supplies and Services,Fees,BROADSTONE CONSULTANTS & ACTUARIES LTD,BS1 ,16/05/2022,"2,943.25"
21041233,Public Health,Public Health,DAAT,3rd Party Payments,Contract Payments,BROADWAY LODGE LTD,BS24,06/05/2022,"2,200.00"
22976233,High Needs Block,DSG Skills and Attainment,Post 16 - New Responsibilties,3rd Party Payments,Independent Service Provider- Post 16,BRUNEL EDUCATION,SN25,18/05/2022,"102,782.41"
24945233,High Needs Block,DSG Skills and Attainment,SEN Resourcing Assessment Panel,Supplies and Services,Services,REDACTED PERSONAL DATA,SN2 ,27/05/2022,"12,960.00"
22439235,High Needs Block,DSG Skills and Attainment,DSG Retained High Needs,Supplies and Services,Payments to Educational Bodies,REDACTED PERSONAL DATA,SN25,16/05/2022,"4,156.01"
22446238,High Needs Block,DSG Skills and Attainment,DSG Retained High Needs,Supplies and Services,Payments to Educational Bodies,REDACTED PERSONAL DATA,SN25,16/05/2022,"1,148.94"
22683236,High Needs Block,DSG Skills and Attainment,Advisory Teacher Services,Supplies and Services,Payments to Educational Bodies,REDACTED PERSONAL DATA,SN25,18/05/2022,"11,317.00"
22445233,High Needs Block,DSG Skills and Attainment,DSG Retained High Needs,Supplies and Services,Payments to Educational Bodies,REDACTED PERSONAL DATA,SN25,16/05/2022,"11,517.56"
22956233,High Needs Block,DSG Skills and Attainment,SEN Resourcing Assessment Panel,3rd Party Payments,Top up funding - Academies and Free Schools Pre 16,REDACTED PERSONAL DATA,SN25,18/05/2022,"124,598.61"
20920233,SEND Funds,Skills & Attainment,Education High Needs Provision,Capital,Contractor Payments,REDACTED PERSONAL DATA,SN25,06/05/2022,"3,645.00"
22957233,High Needs Block,DSG Skills and Attainment,SEN Resourcing Assessment Panel,3rd Party Payments,Top up funding - Academies and Free Schools Pre 16,REDACTED PERSONAL DATA,SN25,18/05/2022,"114,091.75"
22444233,High Needs Block,DSG Skills and Attainment,DSG Retained High Needs,Supplies and Services,Payments to Educational Bodies,REDACTED PERSONAL DATA,SN25,16/05/2022,"18,993.88"
22439234,High Needs Block,DSG Skills and Attainment,DSG Retained High Needs,Supplies and Services,Payments to Educational Bodies,REDACTED PERSONAL DATA,SN25,16/05/2022,"6,853.78"
22445236,High Needs Block,DSG Skills and Attainment,DSG Retained High Needs,Supplies and Services,Payments to Educational Bodies,REDACTED PERSONAL DATA,SN25,16/05/2022,"15,154.69"
22446236,High Needs Block,DSG Skills and Attainment,DSG Retained High Needs,Supplies and Services,Payments to Educational Bodies,REDACTED PERSONAL DATA,SN25,16/05/2022,"1,626.56"
22439236,High Needs Block,DSG Skills and Attainment,DSG Retained High Needs,Supplies and Services,Payments to Educational Bodies,REDACTED PERSONAL DATA,SN25,16/05/2022,"9,624.45"
22445234,High Needs Block,DSG Skills and Attainment,DSG Retained High Needs,Supplies and Services,Payments to Educational Bodies,REDACTED PERSONAL DATA,SN25,16/05/2022,"26,672.25"
22683235,High Needs Block,DSG Skills and Attainment,Advisory Teacher Services,Supplies and Services,Payments to Educational Bodies,REDACTED PERSONAL DATA,SN25,18/05/2022,"7,250.00"
22959233,High Needs Block,DSG Skills and Attainment,SEN Resourcing Assessment Panel,3rd Party Payments,Top up funding - Academies and Free Schools Pre 16,REDACTED PERSONAL DATA,SN25,18/05/2022,"114,774.44"
22962233,High Needs Block,DSG Skills and Attainment,SEN Resourcing Assessment Panel,3rd Party Payments,Top up funding - Academies and Free Schools Pre 16,REDACTED PERSONAL DATA,SN25,18/05/2022,"63,750.01"
22972233,High Needs Block,DSG Skills and Attainment,SEN Resourcing Assessment Panel,3rd Party Payments,Top up funding - Academies and Free Schools Post 16,REDACTED PERSONAL DATA,SN25,18/05/2022,"44,439.40"
22955233,High Needs Block,DSG Skills and Attainment,SEN Resourcing Assessment Panel,3rd Party Payments,Top up funding - Academies and Free Schools Pre 16,REDACTED PERSONAL DATA,SN25,18/05/2022,"6,829.58"
20921233,SEND Funds,Skills & Attainment,Education High Needs Provision,Capital,Contractor Payments,REDACTED PERSONAL DATA,SN25,06/05/2022,"5,156.00"
22446234,High Needs Block,DSG Skills and Attainment,DSG Retained High Needs,Supplies and Services,Payments to Educational Bodies,REDACTED PERSONAL DATA,SN25,16/05/2022,"5,719.90"
22439238,High Needs Block,DSG Skills and Attainment,DSG Retained High Needs,Supplies and Services,Payments to Educational Bodies,REDACTED PERSONAL DATA,SN25,16/05/2022,"5,468.44"
22954233,High Needs Block,DSG Skills and Attainment,SEN Resourcing Assessment Panel,3rd Party Payments,Top up funding - Academies and Free Schools Pre 16,REDACTED PERSONAL DATA,SN25,18/05/2022,"113,628.43"
23069233,NEV,"Economy, Growth and Place",Southern Connector Road,Capital,Consultants,BRUTON KNOWLES,GL2 ,18/05/2022,"4,507.35"
22209233,Architecture,Architecture,Construction and Facility Management,Supplies and Services,Subscriptions,BSI STANDARDS,MK1 ,13/05/2022,"1,435.00"
23493233,Supported Employment,Housing Services,EW - Timber,Supplies and Services,Materials,BSW TIMBER LIMITED,TD4 ,20/05/2022,"11,207.17"
21237233,Supported Employment,Housing Services,EW - Timber,Supplies and Services,Materials,BSW TIMBER LIMITED,TD4 ,06/05/2022,"4,137.32"
21236233,Supported Employment,Housing Services,EW - Timber,Supplies and Services,Materials,BSW TIMBER LIMITED,TD4 ,06/05/2022,"6,869.68"
23494233,Supported Employment,Housing Services,EW - Timber,Supplies and Services,Materials,BSW TIMBER LIMITED,TD4 ,20/05/2022,"10,606.87"
25190233,Schools Maintenance,Skills & Attainment,Condition Works,Capital,Contractor Payments,BUILDTECH SW LIMITED,GL53,30/05/2022,"42,022.08"
20437233,Schools Maintenance,Skills & Attainment,Condition Works,Capital,Contractor Payments,BUILDTECH SW LIMITED,GL53,04/05/2022,"21,725.68"
21439233,Schools Maintenance,Skills & Attainment,Condition Works,Capital,Contractor Payments,BUILDTECH SW LIMITED,GL53,09/05/2022,"1,726.72"
20437233,Schools Maintenance,Skills & Attainment,Condition Works,Capital,Contractor Payments,BUILDTECH SW LIMITED,GL53,04/05/2022,"9,311.01"
21439233,Schools Maintenance,Skills & Attainment,Condition Works,Capital,Contractor Payments,BUILDTECH SW LIMITED,GL53,09/05/2022,"3,669.28"
25190233,Schools Maintenance,Skills & Attainment,Condition Works,Capital,Contractor Payments,BUILDTECH SW LIMITED,GL53,30/05/2022,"8,728.53"
23971246,Neighbourhood Wardens,Special Services,Neighbourhood Wardens,Supplies and Services,Hire / Rental,BUNZL CLEANING & HYGIENE SUPPLIES,SL3 ,20/05/2022,725.14
23969233,Neighbourhood Wardens,Special Services,Neighbourhood Wardens,Supplies and Services,Hire / Rental,BUNZL CLEANING & HYGIENE SUPPLIES,BS11,20/05/2022,"1,049.84"
22895233,High Needs Block,DSG Skills and Attainment,SEN Resourcing Assessment Panel,3rd Party Payments,Top up funding - Maintained providers Pre 16,"BUSY BEES, BROOME MANOR",SN3 ,18/05/2022,"2,652.00"
23078233,Learning Disabilities,Adults,Learning Disability 26 - 64,3rd Party Payments,Supported Accommodation Scheme,REDACTED PERSONAL DATA,SN3 ,23/05/2022,108.54
23078233,Learning Disabilities,Adults,Learning Disability 26 - 64,3rd Party Payments,Supported Accommodation Scheme,REDACTED PERSONAL DATA,SN3 ,23/05/2022,"2,058.96"
23078233,Learning Disabilities,Adults,Learning Disability 26 - 64,3rd Party Payments,Supported Accommodation Scheme,REDACTED PERSONAL DATA,SN3 ,23/05/2022,-220.60
Corporate Card Transaction,Social Care,"Children, Families and Community Health Services",CP & CIN Social Work - South,Employees,Relocation,C2e816500769f Ukvi,,10/05/2022,"5,199.00"
Corporate Card Transaction,Social Care,"Children, Families and Community Health Services",CP & CIN Social Work - North,Employees,Relocation,C2e816500774c Ukvi,,10/05/2022,"5,199.00"
Corporate Card Transaction,Social Care,"Children, Families and Community Health Services",CP & CIN Social Work - South,Employees,Relocation,C2e816500782m Ukvi,,10/05/2022,"5,199.00"
Corporate Card Transaction,Social Care,"Children, Families and Community Health Services",Assessment and Child Protection Team,Employees,Relocation,C2e816600304h Ukvi,,11/05/2022,"5,199.00"
22338234,Learning Disabilities,Adults,Learning Disability 65 and over,3rd Party Payments,Residential Care,C.H.O.I.C.E LTD,RG12,13/05/2022,"-16,818.29"
22335233,Learning Disabilities,Adults,Learning Disability 26 - 64,3rd Party Payments,Residential Care,C.H.O.I.C.E LTD,RG12,13/05/2022,"11,434.25"
22338233,Learning Disabilities,Adults,Learning Disability 65 and over,3rd Party Payments,Residential Care,C.H.O.I.C.E LTD,RG12,13/05/2022,"18,750.96"
22340233,Physical Support,Adults,Physical Support 18 - 64,3rd Party Payments,Residential Care,C.H.O.I.C.E LTD,RG12,13/05/2022,"21,540.90"
22340233,Learning Disabilities,Adults,Learning Disability 26 - 64,3rd Party Payments,Residential Care,C.H.O.I.C.E LTD,RG12,13/05/2022,"-22,047.46"
22335233,Learning Disabilities,Adults,Learning Disability 26 - 64,Income,Client Contribution - Residential,C.H.O.I.C.E LTD,RG12,13/05/2022,-372.75
22336233,Learning Disabilities,Adults,Learning Disability 26 - 64,3rd Party Payments,Residential Care,C.H.O.I.C.E LTD,RG12,13/05/2022,"14,098.89"
22338234,Learning Disabilities,Adults,Learning Disability 26 - 64,Income,Client Contribution - Residential,C.H.O.I.C.E LTD,RG12,13/05/2022,-488.75
22338233,Learning Disabilities,Adults,Learning Disability 26 - 64,Income,Client Contribution - Residential,C.H.O.I.C.E LTD,RG12,13/05/2022,-744.15
22336233,Learning Disabilities,Adults,Learning Disability 26 - 64,Income,Client Contribution - Residential,C.H.O.I.C.E LTD,RG12,13/05/2022,-528.75
22337233,Learning Disabilities,Adults,Learning Disability 26 - 64,Income,Client Contribution - Residential,C.H.O.I.C.E LTD,RG12,13/05/2022,-518.75
22338233,Learning Disabilities,Adults,Learning Disability 65 and over,3rd Party Payments,Residential Care,C.H.O.I.C.E LTD,RG12,13/05/2022,"11,123.45"
22338234,Learning Disabilities,Adults,Learning Disability 65 and over,3rd Party Payments,Residential Care,C.H.O.I.C.E LTD,RG12,13/05/2022,"17,575.09"
22338234,Learning Disabilities,Adults,Learning Disability 65 and over,3rd Party Payments,Residential Care,C.H.O.I.C.E LTD,RG12,13/05/2022,"11,842.75"
22338233,Learning Disabilities,Adults,Learning Disability 65 and over,3rd Party Payments,Residential Care,C.H.O.I.C.E LTD,RG12,13/05/2022,"-16,938.39"
22338233,Learning Disabilities,Adults,Learning Disability 65 and over,3rd Party Payments,Residential Care,C.H.O.I.C.E LTD,RG12,13/05/2022,"10,559.65"
22340233,Physical Support,Adults,Physical Support 18 - 64,3rd Party Payments,Residential Care,C.H.O.I.C.E LTD,RG12,13/05/2022,"-20,613.34"
22340233,Physical Support,Adults,Physical Support 18 - 64,Income,Client Contribution - Residential,C.H.O.I.C.E LTD,RG12,13/05/2022,-517.75
22337233,Learning Disabilities,Adults,Learning Disability 26 - 64,3rd Party Payments,Residential Care,C.H.O.I.C.E LTD,RG12,13/05/2022,"-21,936.45"
22337233,Learning Disabilities,Adults,Learning Disability 26 - 64,3rd Party Payments,Residential Care,C.H.O.I.C.E LTD,RG12,13/05/2022,"23,052.99"
22340233,Learning Disabilities,Adults,Learning Disability 26 - 64,3rd Party Payments,Residential Care,C.H.O.I.C.E LTD,RG12,13/05/2022,"14,596.75"
22338234,Learning Disabilities,Adults,Learning Disability 26 - 64,3rd Party Payments,Residential Care,C.H.O.I.C.E LTD,RG12,13/05/2022,"-13,763.01"
22340233,Learning Disabilities,Adults,Learning Disability 26 - 64,Income,Client Contribution - Residential,C.H.O.I.C.E LTD,RG12,13/05/2022,-259.50
22338234,Learning Disabilities,Adults,Learning Disability 65 and over,3rd Party Payments,Residential Care,C.H.O.I.C.E LTD,RG12,13/05/2022,"-19,103.86"
22340233,Physical Support,Adults,Physical Support 18 - 64,3rd Party Payments,Residential Care,C.H.O.I.C.E LTD,RG12,13/05/2022,"12,778.50"
22338234,Learning Disabilities,Adults,Learning Disability 65 and over,Income,Client Contribution - Residential,C.H.O.I.C.E LTD,RG12,13/05/2022,-795.40
22336233,Learning Disabilities,Adults,Learning Disability 26 - 64,3rd Party Payments,Residential Care,C.H.O.I.C.E LTD,RG12,13/05/2022,"8,335.85"
22336233,Learning Disabilities,Adults,Learning Disability 26 - 64,3rd Party Payments,Residential Care,C.H.O.I.C.E LTD,RG12,13/05/2022,"8,363.75"
22335233,Learning Disabilities,Adults,Learning Disability 26 - 64,3rd Party Payments,Residential Care,C.H.O.I.C.E LTD,RG12,13/05/2022,"19,274.88"
22340233,Learning Disabilities,Adults,Learning Disability 26 - 64,3rd Party Payments,Residential Care,C.H.O.I.C.E LTD,RG12,13/05/2022,"13,667.55"
22338234,Learning Disabilities,Adults,Learning Disability 65 and over,3rd Party Payments,Residential Care,C.H.O.I.C.E LTD,RG12,13/05/2022,"19,963.49"
22338233,Learning Disabilities,Adults,Learning Disability 65 and over,3rd Party Payments,Residential Care,C.H.O.I.C.E LTD,RG12,13/05/2022,"17,800.55"
22338233,Learning Disabilities,Adults,Learning Disability 65 and over,3rd Party Payments,Residential Care,C.H.O.I.C.E LTD,RG12,13/05/2022,"-17,842.78"
22338234,Learning Disabilities,Adults,Learning Disability 65 and over,Income,Client Contribution - Residential,C.H.O.I.C.E LTD,RG12,13/05/2022,-688.55
22338234,Learning Disabilities,Adults,Learning Disability 26 - 64,3rd Party Payments,Residential Care,C.H.O.I.C.E LTD,RG12,13/05/2022,"8,531.90"
22339233,Mental Health,Adults,Mental Health 18-64,3rd Party Payments,Residential Care,C.H.O.I.C.E LTD,RG12,13/05/2022,"9,498.30"
22338234,Learning Disabilities,Adults,Learning Disability 26 - 64,3rd Party Payments,Residential Care,C.H.O.I.C.E LTD,RG12,13/05/2022,"14,382.35"
22337233,Learning Disabilities,Adults,Learning Disability 26 - 64,3rd Party Payments,Residential Care,C.H.O.I.C.E LTD,RG12,13/05/2022,"13,675.50"
22336233,Learning Disabilities,Adults,Learning Disability 26 - 64,3rd Party Payments,Residential Care,C.H.O.I.C.E LTD,RG12,13/05/2022,"-13,511.42"
22336233,Learning Disabilities,Adults,Learning Disability 26 - 64,3rd Party Payments,Residential Care,C.H.O.I.C.E LTD,RG12,13/05/2022,"-13,556.60"
22340233,Learning Disabilities,Adults,Learning Disability 26 - 64,3rd Party Payments,Residential Care,C.H.O.I.C.E LTD,RG12,13/05/2022,"23,039.58"
22340233,Learning Disabilities,Adults,Learning Disability 26 - 64,3rd Party Payments,Residential Care,C.H.O.I.C.E LTD,RG12,13/05/2022,"-23,546.39"
22340233,Learning Disabilities,Adults,Learning Disability 26 - 64,3rd Party Payments,Residential Care,C.H.O.I.C.E LTD,RG12,13/05/2022,"24,605.95"
22340233,Learning Disabilities,Adults,Learning Disability 26 - 64,Income,Client Contribution - Residential,C.H.O.I.C.E LTD,RG12,13/05/2022,-517.75
22338233,Learning Disabilities,Adults,Learning Disability 65 and over,Income,Client Contribution - Residential,C.H.O.I.C.E LTD,RG12,13/05/2022,-759.50
22336233,Learning Disabilities,Adults,Learning Disability 26 - 64,3rd Party Payments,Residential Care,C.H.O.I.C.E LTD,RG12,13/05/2022,"14,051.86"
22335233,Learning Disabilities,Adults,Learning Disability 26 - 64,3rd Party Payments,Residential Care,C.H.O.I.C.E LTD,RG12,13/05/2022,"-18,444.83"
22338234,Learning Disabilities,Adults,Learning Disability 65 and over,3rd Party Payments,Residential Care,C.H.O.I.C.E LTD,RG12,13/05/2022,"10,425.90"
21988233,Homeline,Special Services,Homeline,Supplies and Services,Materials,CAIR (UK) LTD,HX1 ,11/05/2022,"1,100.00"
25148263,Learning Disabilities,Adults,Learning Disability 26 - 64,Transfer Payments,Personal Budget - Direct Payments - Domiciliary Care,REDACTED PERSONAL DATA,SP11,30/05/2022,"1,844.31"
25158254,Learning Disabilities,Adults,Learning Disability 26 - 64,Transfer Payments,Personal Budget - Direct Payments - Domiciliary Care,REDACTED PERSONAL DATA,SP11,30/05/2022,631.33
23935241,Social Care,"Children, Families and Community Health Services",External Placements,3rd Party Payments,Residential Care,CAMBIAN CHILDCARE LTD,EN6 ,20/05/2022,"24,481.01"
23935240,Social Care,"Children, Families and Community Health Services",External Placements,3rd Party Payments,Residential Care,CAMBIAN CHILDCARE LTD,EN6 ,20/05/2022,"26,274.67"
23378233,High Needs Block,DSG Skills and Attainment,Out of Borough School Fees,3rd Party Payments,Independent Special school- Post 16,CAMBIAN WHINFELL SCHOOL LTD,EN6 ,18/05/2022,"26,802.66"
25128253,Physical Support,Adults,Physical Support 18 - 64,Transfer Payments,Personal Budget - Direct Payments - Domiciliary Care,REDACTED PERSONAL DATA,SN25,30/05/2022,832.29
21149233,Planned Maintenance Programme,HRA Capital Financing,Kitchens,Capital,Contractor Payments,CANTILLON GROUP LTD,SN25,06/05/2022,"3,806.66"
21149233,Acquisitions,HRA Capital Financing,HRA Acquisitions Programme,Capital,Contractor Payments,CANTILLON GROUP LTD,SN25,06/05/2022,"2,861.43"
21149233,Planned Maintenance Programme,HRA Capital Financing,Bathrooms,Capital,Contractor Payments,CANTILLON GROUP LTD,SN25,06/05/2022,"1,568.29"
21149233,Planned Maintenance Programme,HRA Capital Financing,Bathrooms,Capital,Contractor Payments,CANTILLON GROUP LTD,SN25,06/05/2022,"1,990.62"
21149233,Planned Maintenance Programme,HRA Capital Financing,Bathrooms,Capital,Contractor Payments,CANTILLON GROUP LTD,SN25,06/05/2022,"100,000.00"
22492233,Acquisitions,HRA Capital Financing,HRA Acquisitions Programme,Capital,Contractor Payments,CANTILLON GROUP LTD,SN25,16/05/2022,164.46
22492233,Acquisitions,HRA Capital Financing,HRA Acquisitions Programme,Capital,Contractor Payments,CANTILLON GROUP LTD,SN25,16/05/2022,629.19
21149233,Planned Maintenance Programme,HRA Capital Financing,Bathrooms,Capital,Contractor Payments,CANTILLON GROUP LTD,SN25,06/05/2022,"-100,000.00"
21149233,Planned Maintenance Programme,HRA Capital Financing,Bathrooms,Capital,Contractor Payments,CANTILLON GROUP LTD,SN25,06/05/2022,"1,940.78"
21149233,Planned Maintenance Programme,HRA Capital Financing,Bathrooms,Capital,Contractor Payments,CANTILLON GROUP LTD,SN25,06/05/2022,"1,289.60"
21149233,Planned Maintenance Programme,HRA Capital Financing,Central Heating,Capital,Contractor Payments,CANTILLON GROUP LTD,SN25,06/05/2022,"6,865.50"
22492233,Void Repairs,Supervision & Management,Void Property Repairs,3rd Party Payments,Contract Payments,CANTILLON GROUP LTD,SN25,16/05/2022,336.96
22492233,Void Repairs,Supervision & Management,Void Property Repairs,3rd Party Payments,Contract Payments,CANTILLON GROUP LTD,SN25,16/05/2022,"4,067.11"
21149233,Void Repairs,Supervision & Management,Void Property Repairs,3rd Party Payments,Contract Payments,CANTILLON GROUP LTD,SN25,06/05/2022,"2,583.11"
21149233,Void Repairs,Supervision & Management,Void Property Repairs,3rd Party Payments,Contract Payments,CANTILLON GROUP LTD,SN25,06/05/2022,"8,666.97"
21149233,Void Repairs,Supervision & Management,Void Property Repairs,3rd Party Payments,Contract Payments,CANTILLON GROUP LTD,SN25,06/05/2022,"2,269.54"
21149233,Void Repairs,Supervision & Management,Void Property Repairs,3rd Party Payments,Contract Payments,CANTILLON GROUP LTD,SN25,06/05/2022,"6,457.07"
21149233,Void Repairs,Supervision & Management,Void Property Repairs,3rd Party Payments,Contract Payments,CANTILLON GROUP LTD,SN25,06/05/2022,"7,616.40"
21149233,Void Repairs,Supervision & Management,Void Property Repairs,3rd Party Payments,Contract Payments,CANTILLON GROUP LTD,SN25,06/05/2022,"2,905.10"
21149233,Void Repairs,Supervision & Management,Void Property Repairs,3rd Party Payments,Contract Payments,CANTILLON GROUP LTD,SN25,06/05/2022,"8,157.31"
21149233,Planned Maintenance Programme,HRA Capital Financing,Kitchens,Capital,Contractor Payments,CANTILLON GROUP LTD,SN25,06/05/2022,"3,336.47"
21149233,Planned Maintenance Programme,HRA Capital Financing,Kitchens,Capital,Contractor Payments,CANTILLON GROUP LTD,SN25,06/05/2022,"2,249.84"
22492233,Planned Maintenance Programme,HRA Capital Financing,Kitchens,Capital,Contractor Payments,CANTILLON GROUP LTD,SN25,16/05/2022,732.58
22492233,Void Repairs,Supervision & Management,Void Property Repairs,3rd Party Payments,Contract Payments,CANTILLON GROUP LTD,SN25,16/05/2022,542.53
21149233,Void Repairs,Supervision & Management,Void Property Repairs,3rd Party Payments,Contract Payments,CANTILLON GROUP LTD,SN25,06/05/2022,"4,022.30"
21149233,Void Repairs,Supervision & Management,Void Property Repairs,3rd Party Payments,Contract Payments,CANTILLON GROUP LTD,SN25,06/05/2022,874.71
21149233,Void Repairs,Supervision & Management,Void Property Repairs,3rd Party Payments,Contract Payments,CANTILLON GROUP LTD,SN25,06/05/2022,"2,046.07"
21149233,Void Repairs,Supervision & Management,Void Property Repairs,3rd Party Payments,Contract Payments,CANTILLON GROUP LTD,SN25,06/05/2022,802.79
21149233,Void Repairs,Supervision & Management,Void Property Repairs,3rd Party Payments,Contract Payments,CANTILLON GROUP LTD,SN25,06/05/2022,"6,913.91"
21149233,Planned Maintenance Programme,HRA Capital Financing,Kitchens,Capital,Contractor Payments,CANTILLON GROUP LTD,SN25,06/05/2022,"2,627.18"
21149233,Acquisitions,HRA Capital Financing,HRA Acquisitions Programme,Capital,Contractor Payments,CANTILLON GROUP LTD,SN25,06/05/2022,"1,684.53"
21149233,Acquisitions,HRA Capital Financing,HRA Acquisitions Programme,Capital,Contractor Payments,CANTILLON GROUP LTD,SN25,06/05/2022,"3,526.81"
21149233,Acquisitions,HRA Capital Financing,HRA Acquisitions Programme,Capital,Contractor Payments,CANTILLON GROUP LTD,SN25,06/05/2022,"5,143.82"
21149233,Planned Maintenance Programme,HRA Capital Financing,Bathrooms,Capital,Contractor Payments,CANTILLON GROUP LTD,SN25,06/05/2022,"1,488.33"
22492233,Acquisitions,HRA Capital Financing,HRA Acquisitions Programme,Capital,Contractor Payments,CANTILLON GROUP LTD,SN25,16/05/2022,207.97
21149233,Acquisitions,HRA Capital Financing,HRA Acquisitions Programme,Capital,Contractor Payments,CANTILLON GROUP LTD,SN25,06/05/2022,"5,994.95"
21149233,Planned Maintenance Programme,HRA Capital Financing,Bathrooms,Capital,Contractor Payments,CANTILLON GROUP LTD,SN25,06/05/2022,"1,475.13"
21149233,Planned Maintenance Programme,HRA Capital Financing,Bathrooms,Capital,Contractor Payments,CANTILLON GROUP LTD,SN25,06/05/2022,"1,884.16"
21149233,Planned Maintenance Programme,HRA Capital Financing,Bathrooms,Capital,Contractor Payments,CANTILLON GROUP LTD,SN25,06/05/2022,"1,232.96"
21149233,Planned Maintenance Programme,HRA Capital Financing,Bathrooms,Capital,Contractor Payments,CANTILLON GROUP LTD,SN25,06/05/2022,"1,700.76"
21149233,Planned Maintenance Programme,HRA Capital Financing,Central Heating,Capital,Contractor Payments,CANTILLON GROUP LTD,SN25,06/05/2022,"4,901.83"
21149233,Planned Maintenance Programme,HRA Capital Financing,Central Heating,Capital,Contractor Payments,CANTILLON GROUP LTD,SN25,06/05/2022,"7,072.26"
22492233,Void Repairs,Supervision & Management,Void Property Repairs,3rd Party Payments,Contract Payments,CANTILLON GROUP LTD,SN25,16/05/2022,"1,110.83"
21149233,Void Repairs,Supervision & Management,Void Property Repairs,3rd Party Payments,Contract Payments,CANTILLON GROUP LTD,SN25,06/05/2022,"7,347.76"
21149233,Void Repairs,Supervision & Management,Void Property Repairs,3rd Party Payments,Contract Payments,CANTILLON GROUP LTD,SN25,06/05/2022,"6,661.79"
21149233,Planned Maintenance Programme,HRA Capital Financing,Kitchens,Capital,Contractor Payments,CANTILLON GROUP LTD,SN25,06/05/2022,"3,180.24"
21149233,Planned Maintenance Programme,HRA Capital Financing,Kitchens,Capital,Contractor Payments,CANTILLON GROUP LTD,SN25,06/05/2022,"1,948.34"
21149233,Void Repairs,Supervision & Management,Void Property Repairs,3rd Party Payments,Contract Payments,CANTILLON GROUP LTD,SN25,06/05/2022,"7,408.11"
21149233,Void Repairs,Supervision & Management,Void Property Repairs,3rd Party Payments,Contract Payments,CANTILLON GROUP LTD,SN25,06/05/2022,"1,511.75"
21149233,Void Repairs,Supervision & Management,Void Property Repairs,3rd Party Payments,Contract Payments,CANTILLON GROUP LTD,SN25,06/05/2022,"7,650.03"
21149233,Void Repairs,Supervision & Management,Void Property Repairs,3rd Party Payments,Contract Payments,CANTILLON GROUP LTD,SN25,06/05/2022,"3,415.80"
21149233,Planned Maintenance Programme,HRA Capital Financing,Kitchens,Capital,Contractor Payments,CANTILLON GROUP LTD,SN25,06/05/2022,"3,642.94"
21149233,Acquisitions,HRA Capital Financing,HRA Acquisitions Programme,Capital,Contractor Payments,CANTILLON GROUP LTD,SN25,06/05/2022,"5,683.90"
21149233,Acquisitions,HRA Capital Financing,HRA Acquisitions Programme,Capital,Contractor Payments,CANTILLON GROUP LTD,SN25,06/05/2022,"5,301.25"
21149233,Acquisitions,HRA Capital Financing,HRA Acquisitions Programme,Capital,Contractor Payments,CANTILLON GROUP LTD,SN25,06/05/2022,"3,803.29"
24967233,Streetsmart,Streetsmart,Lydiard House - Maintenance,Capital,Contractor Payments,CANTILLON GROUP LTD,SN25,27/05/2022,"21,543.96"
21149233,Planned Maintenance Programme,HRA Capital Financing,Bathrooms,Capital,Contractor Payments,CANTILLON GROUP LTD,SN25,06/05/2022,"1,608.56"
24967233,Planned Maintenance Programme,HRA Capital Financing,Improvements,Capital,Contractor Payments,CANTILLON GROUP LTD,SN25,27/05/2022,"11,386.93"
22492233,Void Repairs,Supervision & Management,Void Property Repairs,3rd Party Payments,Contract Payments,CANTILLON GROUP LTD,SN25,16/05/2022,"-10,000.00"
22492233,Void Repairs,Supervision & Management,Void Property Repairs,3rd Party Payments,Contract Payments,CANTILLON GROUP LTD,SN25,16/05/2022,"2,723.01"
22492233,Void Repairs,Supervision & Management,Void Property Repairs,3rd Party Payments,Contract Payments,CANTILLON GROUP LTD,SN25,16/05/2022,412.93
22492233,Void Repairs,Supervision & Management,Void Property Repairs,3rd Party Payments,Contract Payments,CANTILLON GROUP LTD,SN25,16/05/2022,116.29
21149233,Void Repairs,Supervision & Management,Void Property Repairs,3rd Party Payments,Contract Payments,CANTILLON GROUP LTD,SN25,06/05/2022,"8,233.98"
21149233,Void Repairs,Supervision & Management,Void Property Repairs,3rd Party Payments,Contract Payments,CANTILLON GROUP LTD,SN25,06/05/2022,"2,142.43"
21149233,Void Repairs,Supervision & Management,Void Property Repairs,3rd Party Payments,Contract Payments,CANTILLON GROUP LTD,SN25,06/05/2022,"4,558.50"
24967233,Streetsmart,Streetsmart,Lydiard House - Maintenance,Capital,Contractor Payments,CANTILLON GROUP LTD,SN25,27/05/2022,"12,000.00"
21149233,Planned Maintenance Programme,HRA Capital Financing,Bathrooms,Capital,Contractor Payments,CANTILLON GROUP LTD,SN25,06/05/2022,"1,844.73"
21149233,Planned Maintenance Programme,HRA Capital Financing,Bathrooms,Capital,Contractor Payments,CANTILLON GROUP LTD,SN25,06/05/2022,"1,627.25"
21149233,Void Repairs,Supervision & Management,Void Property Repairs,3rd Party Payments,Contract Payments,CANTILLON GROUP LTD,SN25,06/05/2022,"5,674.72"
21149233,Void Repairs,Supervision & Management,Void Property Repairs,3rd Party Payments,Contract Payments,CANTILLON GROUP LTD,SN25,06/05/2022,"1,825.50"
21149233,Void Repairs,Supervision & Management,Void Property Repairs,3rd Party Payments,Contract Payments,CANTILLON GROUP LTD,SN25,06/05/2022,"5,656.27"
21149233,Void Repairs,Supervision & Management,Void Property Repairs,3rd Party Payments,Contract Payments,CANTILLON GROUP LTD,SN25,06/05/2022,"5,650.18"
21149233,Void Repairs,Supervision & Management,Void Property Repairs,3rd Party Payments,Contract Payments,CANTILLON GROUP LTD,SN25,06/05/2022,"5,197.93"
21149233,Void Repairs,Supervision & Management,Void Property Repairs,3rd Party Payments,Contract Payments,CANTILLON GROUP LTD,SN25,06/05/2022,"1,993.95"
21149233,Void Repairs,Supervision & Management,Void Property Repairs,3rd Party Payments,Contract Payments,CANTILLON GROUP LTD,SN25,06/05/2022,"6,306.96"
21149233,Void Repairs,Supervision & Management,Void Property Repairs,3rd Party Payments,Contract Payments,CANTILLON GROUP LTD,SN25,06/05/2022,102.86
21149233,Void Repairs,Supervision & Management,Void Property Repairs,3rd Party Payments,Contract Payments,CANTILLON GROUP LTD,SN25,06/05/2022,"5,095.96"
21149233,Planned Maintenance Programme,HRA Capital Financing,Kitchens,Capital,Contractor Payments,CANTILLON GROUP LTD,SN25,06/05/2022,"2,755.69"
21149233,Planned Maintenance Programme,HRA Capital Financing,Kitchens,Capital,Contractor Payments,CANTILLON GROUP LTD,SN25,06/05/2022,"2,130.75"
21149233,Planned Maintenance Programme,HRA Capital Financing,Kitchens,Capital,Contractor Payments,CANTILLON GROUP LTD,SN25,06/05/2022,"1,567.97"
22492233,Void Repairs,Supervision & Management,Void Property Repairs,3rd Party Payments,Contract Payments,CANTILLON GROUP LTD,SN25,16/05/2022,982.24
22492233,Void Repairs,Supervision & Management,Void Property Repairs,3rd Party Payments,Contract Payments,CANTILLON GROUP LTD,SN25,16/05/2022,41.28
22492233,Void Repairs,Supervision & Management,Void Property Repairs,3rd Party Payments,Contract Payments,CANTILLON GROUP LTD,SN25,16/05/2022,"1,100.18"
21149233,Void Repairs,Supervision & Management,Void Property Repairs,3rd Party Payments,Contract Payments,CANTILLON GROUP LTD,SN25,06/05/2022,65.30
21149233,Void Repairs,Supervision & Management,Void Property Repairs,3rd Party Payments,Contract Payments,CANTILLON GROUP LTD,SN25,06/05/2022,"8,965.22"
21149233,Void Repairs,Supervision & Management,Void Property Repairs,3rd Party Payments,Contract Payments,CANTILLON GROUP LTD,SN25,06/05/2022,"4,419.62"
21149233,Void Repairs,Supervision & Management,Void Property Repairs,3rd Party Payments,Contract Payments,CANTILLON GROUP LTD,SN25,06/05/2022,"1,315.42"
21149233,Planned Maintenance Programme,HRA Capital Financing,Kitchens,Capital,Contractor Payments,CANTILLON GROUP LTD,SN25,06/05/2022,"3,006.98"
22492233,Acquisitions,HRA Capital Financing,HRA Acquisitions Programme,Capital,Contractor Payments,CANTILLON GROUP LTD,SN25,16/05/2022,32.75
21149233,Acquisitions,HRA Capital Financing,HRA Acquisitions Programme,Capital,Contractor Payments,CANTILLON GROUP LTD,SN25,06/05/2022,"1,280.07"
21149233,Acquisitions,HRA Capital Financing,HRA Acquisitions Programme,Capital,Contractor Payments,CANTILLON GROUP LTD,SN25,06/05/2022,"4,080.84"
24967233,Streetsmart,Streetsmart,Lydiard House - Maintenance,Capital,Contractor Payments,CANTILLON GROUP LTD,SN25,27/05/2022,"-12,000.00"
22492233,Acquisitions,HRA Capital Financing,HRA Acquisitions Programme,Capital,Contractor Payments,CANTILLON GROUP LTD,SN25,16/05/2022,536.50
21149233,Acquisitions,HRA Capital Financing,HRA Acquisitions Programme,Capital,Contractor Payments,CANTILLON GROUP LTD,SN25,06/05/2022,"6,866.71"
21149233,Planned Maintenance Programme,HRA Capital Financing,Central Heating,Capital,Contractor Payments,CANTILLON GROUP LTD,SN25,06/05/2022,"5,253.15"
21149233,Planned Maintenance Programme,HRA Capital Financing,Improvements,Capital,Contractor Payments,CANTILLON GROUP LTD,SN25,06/05/2022,482.12
24967233,Planned Maintenance Programme,HRA Capital Financing,Planned Maintenance,Capital,Contractor Payments,CANTILLON GROUP LTD,SN25,27/05/2022,344.48
22492233,Void Repairs,Supervision & Management,Void Property Repairs,3rd Party Payments,Contract Payments,CANTILLON GROUP LTD,SN25,16/05/2022,"10,000.00"
22492233,Void Repairs,Supervision & Management,Void Property Repairs,3rd Party Payments,Contract Payments,CANTILLON GROUP LTD,SN25,16/05/2022,"2,717.20"
22492233,Void Repairs,Supervision & Management,Void Property Repairs,3rd Party Payments,Contract Payments,CANTILLON GROUP LTD,SN25,16/05/2022,"1,745.72"
22492233,Void Repairs,Supervision & Management,Void Property Repairs,3rd Party Payments,Contract Payments,CANTILLON GROUP LTD,SN25,16/05/2022,438.86
22492233,Void Repairs,Supervision & Management,Void Property Repairs,3rd Party Payments,Contract Payments,CANTILLON GROUP LTD,SN25,16/05/2022,320.66
22492233,Void Repairs,Supervision & Management,Void Property Repairs,3rd Party Payments,Contract Payments,CANTILLON GROUP LTD,SN25,16/05/2022,"3,118.81"
22492233,Void Repairs,Supervision & Management,Void Property Repairs,3rd Party Payments,Contract Payments,CANTILLON GROUP LTD,SN25,16/05/2022,220.59
22492233,Void Repairs,Supervision & Management,Void Property Repairs,3rd Party Payments,Contract Payments,CANTILLON GROUP LTD,SN25,16/05/2022,"1,656.28"
22492233,Void Repairs,Supervision & Management,Void Property Repairs,3rd Party Payments,Contract Payments,CANTILLON GROUP LTD,SN25,16/05/2022,"2,011.84"
21149233,Void Repairs,Supervision & Management,Void Property Repairs,3rd Party Payments,Contract Payments,CANTILLON GROUP LTD,SN25,06/05/2022,"5,640.16"
21149233,Void Repairs,Supervision & Management,Void Property Repairs,3rd Party Payments,Contract Payments,CANTILLON GROUP LTD,SN25,06/05/2022,"3,924.57"
21149233,Void Repairs,Supervision & Management,Void Property Repairs,3rd Party Payments,Contract Payments,CANTILLON GROUP LTD,SN25,06/05/2022,"1,623.71"
21149233,Void Repairs,Supervision & Management,Void Property Repairs,3rd Party Payments,Contract Payments,CANTILLON GROUP LTD,SN25,06/05/2022,"4,895.46"
21149233,Void Repairs,Supervision & Management,Void Property Repairs,3rd Party Payments,Contract Payments,CANTILLON GROUP LTD,SN25,06/05/2022,"3,245.11"
21149233,Void Repairs,Supervision & Management,Void Property Repairs,3rd Party Payments,Contract Payments,CANTILLON GROUP LTD,SN25,06/05/2022,"4,173.31"
23536233,Revenues & Benefits,Revenues & Benefits,Revenues,3rd Party Payments,Capita Strategic Partnership Service Charges,CAPITA BUSINESS SERVICES LTD,DL1 ,20/05/2022,"110,984.36"
25362233,Business Development,Supervision & Management,ICT & Administration,3rd Party Payments,Contract Payments,CAPITA BUSINESS SERVICES LTD,DL1 ,30/05/2022,"3,075.00"
23536233,Revenues & Benefits,Revenues & Benefits,Benefits,3rd Party Payments,Capita Strategic Partnership Service Charges,CAPITA BUSINESS SERVICES LTD,DL1 ,20/05/2022,"2,613.00"
23536233,Revenues & Benefits,Revenues & Benefits,Benefits,3rd Party Payments,Capita Strategic Partnership Service Charges,CAPITA BUSINESS SERVICES LTD,DL1 ,20/05/2022,"196,361.57"
23536233,Revenues & Benefits,Revenues & Benefits,Revenues,3rd Party Payments,Capita Strategic Partnership Service Charges,CAPITA BUSINESS SERVICES LTD,DL1 ,20/05/2022,"12,838.24"
21941233,Treasury,Corporate Finance,Treasury,Supplies and Services,Contracts,CAPITA BUSINESS SERVICES LTD,DL1 ,11/05/2022,"13,584.85"
22392233,Education,Inclusion and Achievement,Premature Retirement and Redundancy Costs,Employees,Pension - Added Years,CAPITA PENSION SOLUTIONS LTD,EC2V,13/05/2022,"5,303.40"
21052233,Human Resources and Organisational Development,"People, Culture and Organisational Resilience",Human Resources Operations,Supplies and Services,Fees,CAPITA RESOURCING LTD,RG22,06/05/2022,"4,676.00"
21052233,Human Resources and Organisational Development,"People, Culture and Organisational Resilience",Human Resources Operations,Supplies and Services,Fees,CAPITA RESOURCING LTD,RG22,06/05/2022,"1,471.03"
24583233,Social Care,"Children, Families and Community Health Services",External Placements,3rd Party Payments,Independent Fostering Agency Placements,CAPSTONE FOSTER CARE (SW) LTD,TQ12,25/05/2022,"3,587.01"
21164235,Social Care,"Children, Families and Community Health Services",External Placements,3rd Party Payments,Independent Fostering Agency Placements,CAPSTONE FOSTER CARE (SW) LTD,TQ12,06/05/2022,"-1,201.83"
23362233,Social Care,"Children, Families and Community Health Services",External Placements,3rd Party Payments,Independent Fostering Agency Placements,CAPSTONE FOSTER CARE (SW) LTD,TQ12,18/05/2022,"3,587.01"
21165233,Social Care,"Children, Families and Community Health Services",External Placements,3rd Party Payments,Independent Fostering Agency Placements,CAPSTONE FOSTER CARE (SW) LTD,TQ12,06/05/2022,"-1,214.64"
21165238,Social Care,"Children, Families and Community Health Services",External Placements,3rd Party Payments,Independent Fostering Agency Placements,CAPSTONE FOSTER CARE (SW) LTD,TQ12,06/05/2022,"3,471.30"
21165237,Social Care,"Children, Families and Community Health Services",External Placements,3rd Party Payments,Independent Fostering Agency Placements,CAPSTONE FOSTER CARE (SW) LTD,TQ12,06/05/2022,"3,165.13"
24582233,Social Care,"Children, Families and Community Health Services",External Placements,3rd Party Payments,Independent Fostering Agency Placements,CAPSTONE FOSTER CARE (SW) LTD,TQ12,25/05/2022,"3,270.63"
21165236,Social Care,"Children, Families and Community Health Services",External Placements,3rd Party Payments,Independent Fostering Agency Placements,CAPSTONE FOSTER CARE (SW) LTD,TQ12,06/05/2022,"3,471.30"
24746233,Streetsmart,Streetsmart,Waterside Fleet Workshops,Supplies and Services,Materials,CAR AND TRUCK SERVICES (SWINDON) LTD,SN1 ,25/05/2022,86.67
21806233,Streetsmart,Streetsmart,Waterside Fleet Workshops,Supplies and Services,Equipment,CAR AND TRUCK SERVICES (SWINDON) LTD,SN1 ,11/05/2022,486.54
21807233,Streetsmart,Streetsmart,Waterside Fleet Workshops,Supplies and Services,Materials,CAR AND TRUCK SERVICES (SWINDON) LTD,SN1 ,13/05/2022,486.54
22451233,Streetsmart,Streetsmart,Waterside Fleet Workshops,Supplies and Services,Materials,CAR AND TRUCK SERVICES (SWINDON) LTD,SN1 ,16/05/2022,10.22
22451233,Streetsmart,Streetsmart,Waterside Fleet Workshops,Supplies and Services,Materials,CAR AND TRUCK SERVICES (SWINDON) LTD,SN1 ,16/05/2022,35.63
24746233,Streetsmart,Streetsmart,Waterside Fleet Workshops,Supplies and Services,Materials,CAR AND TRUCK SERVICES (SWINDON) LTD,SN1 ,25/05/2022,716.95
22451233,Streetsmart,Streetsmart,Waterside Fleet Workshops,Supplies and Services,Materials,CAR AND TRUCK SERVICES (SWINDON) LTD,SN1 ,16/05/2022,339.08
24746233,Streetsmart,Streetsmart,Waterside Fleet Workshops,Supplies and Services,Materials,CAR AND TRUCK SERVICES (SWINDON) LTD,SN1 ,25/05/2022,192.50
22451233,Streetsmart,Streetsmart,Waterside Fleet Workshops,Supplies and Services,Materials,CAR AND TRUCK SERVICES (SWINDON) LTD,SN1 ,16/05/2022,8.12
24746233,Streetsmart,Streetsmart,Waterside Fleet Workshops,Supplies and Services,Materials,CAR AND TRUCK SERVICES (SWINDON) LTD,SN1 ,25/05/2022,134.40
22451233,Streetsmart,Streetsmart,Waterside Fleet Workshops,Supplies and Services,Materials,CAR AND TRUCK SERVICES (SWINDON) LTD,SN1 ,16/05/2022,2.05
22451233,Streetsmart,Streetsmart,Waterside Fleet Workshops,Supplies and Services,Materials,CAR AND TRUCK SERVICES (SWINDON) LTD,SN1 ,16/05/2022,78.10
22451233,Streetsmart,Streetsmart,Waterside Fleet Workshops,Supplies and Services,Materials,CAR AND TRUCK SERVICES (SWINDON) LTD,SN1 ,16/05/2022,17.78
20316234,Physical Support,Adults,Physical Support 65 and over,3rd Party Payments,Personal Budget - Domiciliary care,CARE 1ST LIMITED T/A CARE 1ST HOMECARE,BS9 ,04/05/2022,"6,088.56"
22323236,Learning Disabilities,Adults,Learning Disability 65 and over,Income,Client Contribution - Residential,CARE LTD,BS16,13/05/2022,"-1,068.75"
22323236,Learning Disabilities,Adults,Learning Disability 65 and over,3rd Party Payments,Residential Care,CARE LTD,BS16,13/05/2022,"-13,048.78"
22323236,Learning Disabilities,Adults,Learning Disability 65 and over,3rd Party Payments,Residential Care,CARE LTD,BS16,13/05/2022,"8,050.45"
22323236,Learning Disabilities,Adults,Learning Disability 65 and over,3rd Party Payments,Residential Care,CARE LTD,BS16,13/05/2022,"13,570.76"
21283234,Physical Support,Adults,Physical Support 65 and over,3rd Party Payments,Personal Budget - Domiciliary care,CAREWATCH (SWINDON),BA14,11/05/2022,"1,639.44"
21286234,Physical Support,Adults,Physical Support 65 and over,3rd Party Payments,Personal Budget - Domiciliary care,CAREWATCH (SWINDON),BA14,09/05/2022,"1,251.50"
21285234,Physical Support,Adults,Physical Support 65 and over,3rd Party Payments,Personal Budget - Domiciliary care,CAREWATCH (SWINDON),BA14,11/05/2022,802.10
21282233,Physical Support,Adults,Physical Support 65 and over,3rd Party Payments,Personal Budget - Domiciliary care,CAREWATCH (SWINDON),BA14,11/05/2022,840.80
21284233,Physical Support,Adults,Physical Support 65 and over,3rd Party Payments,Personal Budget - Domiciliary care,CAREWATCH (SWINDON),BA14,11/05/2022,871.44
21285241,Physical Support,Adults,Physical Support 65 and over,3rd Party Payments,Personal Budget - Domiciliary care,CAREWATCH (SWINDON),BA14,11/05/2022,"1,442.28"
21285238,Physical Support,Adults,Physical Support 65 and over,3rd Party Payments,Personal Budget - Domiciliary care,CAREWATCH (SWINDON),BA14,11/05/2022,"1,329.18"
21285237,Physical Support,Adults,Physical Support 65 and over,3rd Party Payments,Personal Budget - Domiciliary care,CAREWATCH (SWINDON),BA14,11/05/2022,"3,100.08"
21285235,Physical Support,Adults,Physical Support 65 and over,3rd Party Payments,Personal Budget - Domiciliary care,CAREWATCH (SWINDON),BA14,11/05/2022,"2,563.72"
21286233,Physical Support,Adults,Physical Support 65 and over,3rd Party Payments,Personal Budget - Domiciliary care,CAREWATCH (SWINDON),BA14,11/05/2022,"2,394.68"
21285239,Physical Support,Adults,Physical Support 65 and over,3rd Party Payments,Personal Budget - Domiciliary care,CAREWATCH (SWINDON),BA14,11/05/2022,580.96
21285240,Physical Support,Adults,Physical Support 18 - 64,3rd Party Payments,Personal Budget - Domiciliary care,CAREWATCH (SWINDON),BA14,11/05/2022,"2,972.08"
23676234,"Children, Families & Community Health Services","Children, Familities & Community Health Services",Children's ICS Project,Capital,Contractor Payments,CAREWORKS LTD,SL3 ,20/05/2022,"7,380.00"
24462234,Social Care,"Children, Families and Community Health Services",Unaccompanied Asylum Seeking Children (UASC),3rd Party Payments,Cash Support,CARING FOR COMMUNITIES AND PEOPLE (CCP),GL50,25/05/2022,592.00
21165242,Social Care,"Children, Families and Community Health Services",Unaccompanied Asylum Seeking Children (UASC),3rd Party Payments,Supported Living,CARING FOR COMMUNITIES AND PEOPLE (CCP),GL50,06/05/2022,"5,231.43"
21165239,Social Care,"Children, Families and Community Health Services",Placement - Care Leaver Team,3rd Party Payments,Supported Living,CARING FOR COMMUNITIES AND PEOPLE (CCP),GL50,06/05/2022,"2,247.14"
21166233,Social Care,"Children, Families and Community Health Services",Unaccompanied Asylum Seeking Children (UASC),3rd Party Payments,Supported Living,CARING FOR COMMUNITIES AND PEOPLE (CCP),GL50,06/05/2022,"5,231.43"
21167233,Social Care,"Children, Families and Community Health Services",External Placements,3rd Party Payments,Supported Living,CARING FOR COMMUNITIES AND PEOPLE (CCP),GL50,06/05/2022,"12,716.43"
21165241,Social Care,"Children, Families and Community Health Services",Unaccompanied Asylum Seeking Children (UASC),3rd Party Payments,Supported Living,CARING FOR COMMUNITIES AND PEOPLE (CCP),GL50,06/05/2022,"2,386.43"
21165240,Social Care,"Children, Families and Community Health Services",Unaccompanied Asylum Seeking Children (UASC),3rd Party Payments,Supported Living,CARING FOR COMMUNITIES AND PEOPLE (CCP),GL50,06/05/2022,"2,386.43"
21167234,Social Care,"Children, Families and Community Health Services",External Placements,3rd Party Payments,Supported Living,CARING FOR COMMUNITIES AND PEOPLE (CCP),GL50,06/05/2022,850.00
21023233,Physical Support,Adults,Physical Support 65 and over,3rd Party Payments,Personal Budget - Domiciliary care,CARING HEART CARERS LIMITED,SN25,06/05/2022,883.37
21022233,Physical Support,Adults,Physical Support 18 - 64,3rd Party Payments,Personal Budget - Domiciliary care,CARING HEART CARERS LIMITED,SN25,06/05/2022,926.40
21023233,Physical Support,Adults,Physical Support 65 and over,3rd Party Payments,Personal Budget - Domiciliary care,CARING HEART CARERS LIMITED,SN25,06/05/2022,78.93
21024233,Physical Support,Adults,Physical Support 18 - 64,3rd Party Payments,Personal Budget - Domiciliary care,CARING HEART CARERS LIMITED,SN25,06/05/2022,104.23
22747233,Physical Support,Adults,Physical Support 65 and over,3rd Party Payments,Personal Budget - Domiciliary care,CARING HEART CARERS LIMITED,SN25,18/05/2022,857.76
21024233,Physical Support,Adults,Physical Support 18 - 64,3rd Party Payments,Personal Budget - Domiciliary care,CARING HEART CARERS LIMITED,SN25,06/05/2022,"1,010.49"
25134234,Learning Disabilities,Adults,Learning Disability 26 - 64,Transfer Payments,Personal Budget - Direct Payments - Domiciliary Care,REDACTED PERSONAL DATA,SN2 ,30/05/2022,"2,357.18"
25156233,Learning Disabilities,Adults,Learning Disability 26 - 64,Transfer Payments,Direct Payments - ILF,REDACTED PERSONAL DATA,SN2 ,30/05/2022,"1,864.74"
25155260,Learning Disabilities,Adults,Learning Disability 26 - 64,Transfer Payments,Personal Budget - Direct Payments - Domiciliary Care,REDACTED PERSONAL DATA,SN2 ,30/05/2022,"1,755.30"
21732233,Early Years Block,DSG Skills and Attainment,Free Nursery Education Commissioning - three & four  year olds,3rd Party Payments,Contracts - Child Care,REDACTED PERSONAL DATA,SN3 ,11/05/2022,681.09
23025233,Responsive Repairs,Repairs,Responsive Repairs,Supplies and Services,Materials,CARPET WAREHOUSE SWINDON LTD,SN2 ,18/05/2022,700.00
22046233,Social Care,"Children, Families and Community Health Services",Legal Fees,Supplies and Services,Fees,CARTER BROWN LTD,B15 ,13/05/2022,"1,190.00"
22133233,Social Care,"Children, Families and Community Health Services",Legal Fees,Supplies and Services,Fees,CARTER BROWN LTD,B15 ,13/05/2022,912.30
22131233,Social Care,"Children, Families and Community Health Services",Legal Fees,Supplies and Services,Fees,CARTER BROWN LTD,B15 ,13/05/2022,"1,239.20"
22130233,Disabled Children,"Children, Families and Community Health Services",DCT Daytime Short Breaks,3rd Party Payments,Day Care,CARTER BROWN LTD,B15 ,13/05/2022,"1,301.70"
22166233,Social Care,"Children, Families and Community Health Services",Legal Fees,Supplies and Services,Fees,CARTER BROWN LTD,B15 ,13/05/2022,818.67
22047233,Social Care,"Children, Families and Community Health Services",Legal Fees,Supplies and Services,Fees,CARTER BROWN LTD,B15 ,13/05/2022,"1,190.00"
22132233,Social Care,"Children, Families and Community Health Services",Legal Fees,Supplies and Services,Fees,CARTER BROWN LTD,B15 ,13/05/2022,877.00
22052233,Social Care,"Children, Families and Community Health Services",Legal Fees,Supplies and Services,Fees,CARTER BROWN LTD,B15 ,13/05/2022,"1,910.40"
25134251,Learning Disabilities,Adults,Learning Disability 26 - 64,Transfer Payments,Personal Budget - Direct Payments - Domiciliary Care,REDACTED PERSONAL DATA,SN6 ,30/05/2022,"2,562.99"
21761388,Traded Services,Inclusion and Achievement,Plas Pencelli Outdoor Education Centre,Supplies and Services,Materials,CASTELL HOWELL FOOD LIMITED,SA14,11/05/2022,184.18
24405233,Traded Services,Inclusion and Achievement,Plas Pencelli Outdoor Education Centre,Supplies and Services,Materials,CASTELL HOWELL FOOD LIMITED,SA14,25/05/2022,277.05
21580233,Traded Services,Inclusion and Achievement,Plas Pencelli Outdoor Education Centre,Supplies and Services,Materials,CASTELL HOWELL FOOD LIMITED,SA14,11/05/2022,941.54
21218233,Traded Services,Inclusion and Achievement,Plas Pencelli Outdoor Education Centre,Supplies and Services,Materials,CASTELL HOWELL FOOD LIMITED,SA14,06/05/2022,420.95
21761388,Traded Services,Inclusion and Achievement,Plas Pencelli Outdoor Education Centre,Supplies and Services,Materials,CASTELL HOWELL FOOD LIMITED,SA14,11/05/2022,665.84
21230233,Traded Services,Inclusion and Achievement,Plas Pencelli Outdoor Education Centre,Supplies and Services,Materials,CASTELL HOWELL FOOD LIMITED,SA14,06/05/2022,671.56
21230233,Traded Services,Inclusion and Achievement,Plas Pencelli Outdoor Education Centre,Supplies and Services,Materials,CASTELL HOWELL FOOD LIMITED,SA14,06/05/2022,88.80
22304233,Traded Services,Inclusion and Achievement,Plas Pencelli Outdoor Education Centre,Supplies and Services,Materials,CASTELL HOWELL FOOD LIMITED,SA14,13/05/2022,"2,187.45"
21580233,Traded Services,Inclusion and Achievement,Plas Pencelli Outdoor Education Centre,Supplies and Services,Materials,CASTELL HOWELL FOOD LIMITED,SA14,11/05/2022,275.14
24405233,Traded Services,Inclusion and Achievement,Plas Pencelli Outdoor Education Centre,Supplies and Services,Materials,CASTELL HOWELL FOOD LIMITED,SA14,25/05/2022,678.43
21218233,Traded Services,Inclusion and Achievement,Plas Pencelli Outdoor Education Centre,Supplies and Services,Materials,CASTELL HOWELL FOOD LIMITED,SA14,06/05/2022,153.76
22304233,Traded Services,Inclusion and Achievement,Plas Pencelli Outdoor Education Centre,Supplies and Services,Materials,CASTELL HOWELL FOOD LIMITED,SA14,13/05/2022,554.92
21034233,Treasury,Corporate Finance,Private Finance Initiatives (PFI),Supplies and Services,Contracts,CASTLE GATE LEGAL & COMMERCIAL LTD,NG12,06/05/2022,"2,250.00"
24162233,Treasury,Corporate Finance,Private Finance Initiatives (PFI),Supplies and Services,Services,CASTLE GATE LEGAL & COMMERCIAL LTD,NG12,23/05/2022,"2,250.00"
20621233,Property Community Facilities,Property,Community Centres,Premises Costs,Water,CASTLE WATER LTD,PH10,04/05/2022,365.67
20621233,Property Community Facilities,Property,Community Centres,Premises Costs,Water,CASTLE WATER LTD,PH10,04/05/2022,376.48
21669233,,,Balance Sheet,Balance Sheet & Recharge,Water invoices,CASTLE WATER LTD,PH10,11/05/2022,"18,073.62"
23928241,Homelessness and Travellers,Housing Services,Homelessness Prevention,Transfer Payments,Payment of Costs,CASTLES ESTATE AGENTS & MORTGAGE SERVICES LTD,SN1 ,20/05/2022,"1,507.00"
22326234,Learning Disabilities,Adults,Learning Disability 26 - 64,3rd Party Payments,Residential Care,CATHEDRAL HOMES,GL1 ,13/05/2022,"-10,540.18"
22326234,Learning Disabilities,Adults,Learning Disability 26 - 64,3rd Party Payments,Residential Care,CATHEDRAL HOMES,GL1 ,13/05/2022,"7,452.00"
22326234,Learning Disabilities,Adults,Learning Disability 26 - 64,3rd Party Payments,Residential Care,CATHEDRAL HOMES,GL1 ,13/05/2022,"12,561.94"
22326234,Learning Disabilities,Adults,Learning Disability 26 - 64,3rd Party Payments,Residential Care,CATHEDRAL HOMES,GL1 ,13/05/2022,"6,575.30"
22326234,Learning Disabilities,Adults,Learning Disability 26 - 64,Income,Client Contribution - Residential,CATHEDRAL HOMES,GL1 ,13/05/2022,-517.75
22326234,Learning Disabilities,Adults,Learning Disability 26 - 64,3rd Party Payments,Residential Care,CATHEDRAL HOMES,GL1 ,13/05/2022,"-11,945.56"
22326234,Learning Disabilities,Adults,Learning Disability 26 - 64,3rd Party Payments,Residential Care,CATHEDRAL HOMES,GL1 ,13/05/2022,"11,084.08"
21735233,Early Years Block,DSG Skills and Attainment,Free Nursery Education Commissioning - three & four  year olds,3rd Party Payments,Contracts - Child Care,REDACTED PERSONAL DATA,SN5 ,11/05/2022,513.24
23176233,Learning Disabilities,Adults,Learning Disability 26 - 64,3rd Party Payments,Supported Accommodation Scheme,REDACTED PERSONAL DATA,SN6 ,23/05/2022,"1,671.04"
23176233,Learning Disabilities,Adults,Learning Disability 26 - 64,3rd Party Payments,Supported Accommodation Scheme,REDACTED PERSONAL DATA,SN6 ,23/05/2022,88.08
23176233,Learning Disabilities,Adults,Learning Disability 26 - 64,3rd Party Payments,Supported Accommodation Scheme,REDACTED PERSONAL DATA,SN6 ,23/05/2022,"2,444.96"
23176233,Learning Disabilities,Adults,Learning Disability 26 - 64,3rd Party Payments,Supported Accommodation Scheme,REDACTED PERSONAL DATA,SN6 ,23/05/2022,108.54
23176233,Learning Disabilities,Adults,Learning Disability 26 - 64,3rd Party Payments,Supported Accommodation Scheme,REDACTED PERSONAL DATA,SN6 ,23/05/2022,"2,058.96"
23352233,Social Care,"Children, Families and Community Health Services",External Placements,3rd Party Payments,Independent Fostering Agency Placements,CAUSEWAY CARE HOMES LTD,RG30,18/05/2022,"15,500.00"
23935244,Social Care,"Children, Families and Community Health Services",External Placements,3rd Party Payments,Supported Living,CEDAR HOPE CARE SERVICES LTD,RG1 ,20/05/2022,"8,618.00"
23935243,Social Care,"Children, Families and Community Health Services",External Placements,3rd Party Payments,Supported Living,CEDAR HOPE CARE SERVICES LTD,RG1 ,20/05/2022,"6,672.00"
23935245,Social Care,"Children, Families and Community Health Services",External Placements,3rd Party Payments,Supported Living,CEDAR HOPE CARE SERVICES LTD,RG1 ,20/05/2022,"2,750.00"
21473236,Physical Support,Adults,Physical Support 65 and over,3rd Party Payments,Personal Budget - Domiciliary care,CELTIC CARE SERVICES LTD,SN15,09/05/2022,190.14
24919236,Mental Health,Adults,Mental Health 65 and over,3rd Party Payments,Personal Budget - Domiciliary care,CELTIC CARE SERVICES LTD,SN15,27/05/2022,573.84
21473237,Physical Support,Adults,Physical Support 65 and over,3rd Party Payments,Personal Budget - Domiciliary care,CELTIC CARE SERVICES LTD,SN15,09/05/2022,867.60
24919235,Physical Support,Adults,Physical Support 65 and over,3rd Party Payments,Personal Budget - Domiciliary care,CELTIC CARE SERVICES LTD,SN15,27/05/2022,"2,582.28"
21473236,Physical Support,Adults,Physical Support 65 and over,3rd Party Payments,Personal Budget - Domiciliary care,CELTIC CARE SERVICES LTD,SN15,09/05/2022,610.38
21473235,Physical Support,Adults,Physical Support 65 and over,3rd Party Payments,Personal Budget - Domiciliary care,CELTIC CARE SERVICES LTD,SN15,09/05/2022,"1,458.90"
24921234,Physical Support,Adults,Physical Support 65 and over,3rd Party Payments,Personal Budget - Domiciliary care,CELTIC CARE SERVICES LTD,SN15,27/05/2022,"1,083.68"
21473233,Physical Support,Adults,Physical Support 65 and over,3rd Party Payments,Carers,CELTIC CARE SERVICES LTD,SN15,09/05/2022,621.20
4451165,Physical Support,Adults,Physical Support 65 and over,3rd Party Payments,Personal Budget - Domiciliary care,CELTIC CARE SERVICES LTD,SN15,06/05/2022,"2,490.12"
24921233,Physical Support,Adults,Physical Support 65 and over,3rd Party Payments,Personal Budget - Domiciliary care,CELTIC CARE SERVICES LTD,SN15,27/05/2022,"1,434.60"
21473238,Physical Support,Adults,Physical Support 65 and over,3rd Party Payments,Personal Budget - Domiciliary care,CELTIC CARE SERVICES LTD,SN15,09/05/2022,"1,214.64"
21472233,Physical Support,Adults,Physical Support 65 and over,3rd Party Payments,Carers,CELTIC CARE SERVICES LTD,SN15,09/05/2022,542.50
24920233,Physical Support,Adults,Physical Support 65 and over,3rd Party Payments,Personal Budget - Domiciliary care,CELTIC CARE SERVICES LTD,SN15,27/05/2022,"1,640.56"
21473234,Physical Support,Adults,Physical Support 65 and over,3rd Party Payments,Personal Budget - Domiciliary care,CELTIC CARE SERVICES LTD,SN15,09/05/2022,"1,400.00"
21473237,Physical Support,Adults,Physical Support 65 and over,3rd Party Payments,Personal Budget - Domiciliary care,CELTIC CARE SERVICES LTD,SN15,09/05/2022,231.36
20300233,Early Help,"Children, Families and Community Health Services","Holiday, Activities & Food Grant",3rd Party Payments,Contracts - Child Care,CENTRAL PRE-SCHOOL,SN1 ,04/05/2022,576.00
22699233,Public Health,Public Health,Affordable Warmth,Supplies and Services,Service Charges,CENTRE FOR SUSTAINABLE ENERGY,BS1 ,18/05/2022,"5,000.00"
21291234,Local Transport Plan Funded,Strategic Planning and Highways,Rights of way Improvement Plan,Capital,Contractor Payments,CENTREWIRE LTD,ST3 ,06/05/2022,"5,358.00"
24147233,Human Resources and Organisational Development,"People, Culture and Organisational Resilience",Human Resources & Organisational Development,Employees,Training,CERTSURE LLP,LU5 ,23/05/2022,"1,500.00"
20638233,Other Repairs,Repairs,Delivery Team & Overheads,Supplies and Services,Materials,CERTSURE LLP,LU5 ,04/05/2022,495.00
22602233,Homelessness and Travellers,Housing Services,Homelessness Prevention,Transfer Payments,Payment of Costs,CHAPPELLS ESTATE AGENTS,SN1 ,16/05/2022,642.50
21206233,Lydiard Park,Streetsmart,Lydiard : Forest Caf�,Supplies and Services,Confectionary,CHAPPLE & JENKINS LTD,BS15,06/05/2022,825.73
21206233,Lydiard Park,Streetsmart,Lydiard : Forest Caf�,Supplies and Services,Food,CHAPPLE & JENKINS LTD,BS15,06/05/2022,25.70
23011233,Lydiard Park,Streetsmart,Lydiard : Forest Caf�,Supplies and Services,Confectionary,CHAPPLE & JENKINS LTD,BS15,18/05/2022,37.35
20977233,Lydiard Park,Streetsmart,Lydiard : Forest Caf�,Supplies and Services,Food,CHAPPLE & JENKINS LTD,BS15,06/05/2022,9.44
20977233,Lydiard Park,Streetsmart,Lydiard : Forest Caf�,Supplies and Services,Confectionary,CHAPPLE & JENKINS LTD,BS15,06/05/2022,38.82
21206233,Lydiard Park,Streetsmart,Lydiard : Forest Caf�,Supplies and Services,Confectionary,CHAPPLE & JENKINS LTD,BS15,06/05/2022,46.91
23011233,Lydiard Park,Streetsmart,Lydiard : Forest Caf�,Supplies and Services,Food,CHAPPLE & JENKINS LTD,BS15,18/05/2022,9.44
21788233,Lydiard Park,Streetsmart,Lydiard : Forest Caf�,Supplies and Services,Confectionary,CHAPPLE & JENKINS LTD,BS15,11/05/2022,423.28
21788233,Lydiard Park,Streetsmart,Lydiard : Forest Caf�,Supplies and Services,Confectionary,CHAPPLE & JENKINS LTD,BS15,11/05/2022,16.75
21208233,Facilities Management,"People, Culture and Organisational Resilience",Waterside Canteen,Supplies and Services,Confectionary,CHAPPLE & JENKINS LTD,BS15,06/05/2022,592.81
20977233,Lydiard Park,Streetsmart,Lydiard : Forest Caf�,Supplies and Services,Confectionary,CHAPPLE & JENKINS LTD,BS15,06/05/2022,556.67
22723233,Facilities Management,"People, Culture and Organisational Resilience",Waterside Canteen,Supplies and Services,Confectionary,CHAPPLE & JENKINS LTD,BS15,18/05/2022,573.92
23011233,Lydiard Park,Streetsmart,Lydiard : Hotel Operations,Supplies and Services,Confectionary,CHAPPLE & JENKINS LTD,BS15,18/05/2022,708.63
20753234,Void Repairs,Supervision & Management,Void Property Repairs,3rd Party Payments,Contract Payments,CHARLES HARDING ESTATE AGENTS LIMITED,SN1 ,09/05/2022,35.00
23570233,Other Repairs,Repairs,Unallocated job costs from OPEN system,Premises Costs,Maintenance - Buildings,CHARLES HARDING ESTATE AGENTS LIMITED,SN1 ,23/05/2022,30.00
24960233,Lydiard Park,Streetsmart,Lydiard : Coach House Caf�,Supplies and Services,Materials,CHARLES SAUNDERS LTD,BS37,27/05/2022,11.33
20964234,Lydiard Park,Streetsmart,Lydiard : Forest Caf�,Supplies and Services,Materials,CHARLES SAUNDERS LTD,BS37,06/05/2022,27.56
20953233,Facilities Management,"People, Culture and Organisational Resilience",Waterside Canteen,Supplies and Services,Confectionary,CHARLES SAUNDERS LTD,BS37,06/05/2022,34.72
21790233,Facilities Management,"People, Culture and Organisational Resilience",Waterside Canteen,Supplies and Services,Food,CHARLES SAUNDERS LTD,BS37,11/05/2022,466.65
22590234,Physical Support,Adults,Fessey House,Supplies and Services,Food,CHARLES SAUNDERS LTD,BS37,16/05/2022,763.79
20387233,Physical Support,Adults,Fessey House,Supplies and Services,Food,CHARLES SAUNDERS LTD,BS37,04/05/2022,133.42
20384234,Physical Support,Adults,Fessey House,Supplies and Services,Food,CHARLES SAUNDERS LTD,BS37,04/05/2022,40.02
20384234,Physical Support,Adults,Fessey House,Supplies and Services,Food,CHARLES SAUNDERS LTD,BS37,04/05/2022,655.01
23083233,Lydiard Park,Streetsmart,Lydiard : Forest Caf�,Supplies and Services,Confectionary,CHARLES SAUNDERS LTD,BS37,18/05/2022,18.07
20964234,Lydiard Park,Streetsmart,Lydiard : Forest Caf�,Supplies and Services,Confectionary,CHARLES SAUNDERS LTD,BS37,06/05/2022,389.59
20936233,Lydiard Park,Streetsmart,Lydiard : Forest Caf�,Supplies and Services,Confectionary,CHARLES SAUNDERS LTD,BS37,06/05/2022,7.67
20953233,Facilities Management,"People, Culture and Organisational Resilience",Waterside Canteen,Supplies and Services,Food,CHARLES SAUNDERS LTD,BS37,06/05/2022,650.69
21874233,Facilities Management,"People, Culture and Organisational Resilience",Waterside Canteen,Supplies and Services,Materials,CHARLES SAUNDERS LTD,BS37,11/05/2022,9.72
20387233,Physical Support,Adults,Fessey House,Supplies and Services,Food,CHARLES SAUNDERS LTD,BS37,04/05/2022,"1,080.45"
20943233,Lydiard Park,Streetsmart,Lydiard : Coach House Caf�,Supplies and Services,Confectionary,CHARLES SAUNDERS LTD,BS37,06/05/2022,24.44
20964234,Lydiard Park,Streetsmart,Lydiard : Forest Caf�,Supplies and Services,Confectionary,CHARLES SAUNDERS LTD,BS37,06/05/2022,"1,060.22"
23083233,Lydiard Park,Streetsmart,Lydiard : Forest Caf�,Supplies and Services,Food,CHARLES SAUNDERS LTD,BS37,18/05/2022,908.14
20936233,Lydiard Park,Streetsmart,Lydiard : Forest Caf�,Supplies and Services,Food,CHARLES SAUNDERS LTD,BS37,06/05/2022,661.52
24197233,Physical Support,Adults,Fessey House,Supplies and Services,Food,CHARLES SAUNDERS LTD,BS37,23/05/2022,152.22
24197233,Physical Support,Adults,Fessey House,Supplies and Services,Food,CHARLES SAUNDERS LTD,BS37,23/05/2022,796.97
23083233,Lydiard Park,Streetsmart,Lydiard : Forest Caf�,Supplies and Services,Materials,CHARLES SAUNDERS LTD,BS37,18/05/2022,4.84
22730236,Lydiard Park,Streetsmart,Lydiard : Forest Caf�,Supplies and Services,Confectionary,CHARLES SAUNDERS LTD,BS37,18/05/2022,219.26
21779233,Lydiard Park,Streetsmart,Lydiard : Forest Caf�,Supplies and Services,Food,CHARLES SAUNDERS LTD,BS37,11/05/2022,125.84
24965233,Lydiard Park,Streetsmart,Lydiard : Forest Caf�,Supplies and Services,Food,CHARLES SAUNDERS LTD,BS37,27/05/2022,204.00
20964234,Lydiard Park,Streetsmart,Lydiard : Forest Caf�,Supplies and Services,Food,CHARLES SAUNDERS LTD,BS37,06/05/2022,785.05
22730236,Lydiard Park,Streetsmart,Lydiard : Forest Caf�,Supplies and Services,Confectionary,CHARLES SAUNDERS LTD,BS37,18/05/2022,834.51
20943233,Lydiard Park,Streetsmart,Lydiard : Coach House Caf�,Supplies and Services,Confectionary,CHARLES SAUNDERS LTD,BS37,06/05/2022,749.88
22730236,Lydiard Park,Streetsmart,Lydiard : Forest Caf�,Supplies and Services,Food,CHARLES SAUNDERS LTD,BS37,18/05/2022,227.67
20936233,Lydiard Park,Streetsmart,Lydiard : Forest Caf�,Supplies and Services,Confectionary,CHARLES SAUNDERS LTD,BS37,06/05/2022,36.33
21779233,Lydiard Park,Streetsmart,Lydiard : Forest Caf�,Supplies and Services,Confectionary,CHARLES SAUNDERS LTD,BS37,11/05/2022,782.46
24965233,Lydiard Park,Streetsmart,Lydiard : Forest Caf�,Supplies and Services,Confectionary,CHARLES SAUNDERS LTD,BS37,27/05/2022,764.77
20936233,Lydiard Park,Streetsmart,Lydiard : Forest Caf�,Supplies and Services,Materials,CHARLES SAUNDERS LTD,BS37,06/05/2022,51.96
24960233,Lydiard Park,Streetsmart,Lydiard : Coach House Caf�,Supplies and Services,Confectionary,CHARLES SAUNDERS LTD,BS37,27/05/2022,229.78
23106234,Lydiard Park,Streetsmart,Lydiard : Coach House Caf�,Supplies and Services,Food,CHARLES SAUNDERS LTD,BS37,18/05/2022,13.27
21874233,Facilities Management,"People, Culture and Organisational Resilience",Waterside Canteen,Supplies and Services,Food,CHARLES SAUNDERS LTD,BS37,11/05/2022,534.82
21779233,Lydiard Park,Streetsmart,Lydiard : Forest Caf�,Supplies and Services,Materials,CHARLES SAUNDERS LTD,BS37,11/05/2022,10.38
23106234,Lydiard Park,Streetsmart,Lydiard : Coach House Caf�,Supplies and Services,Materials,CHARLES SAUNDERS LTD,BS37,18/05/2022,14.99
23106234,Lydiard Park,Streetsmart,Lydiard : Coach House Caf�,Supplies and Services,Confectionary,CHARLES SAUNDERS LTD,BS37,18/05/2022,585.50
22590234,Physical Support,Adults,Fessey House,Supplies and Services,Food,CHARLES SAUNDERS LTD,BS37,16/05/2022,182.51
24960233,Lydiard Park,Streetsmart,Lydiard : Coach House Caf�,Supplies and Services,Food,CHARLES SAUNDERS LTD,BS37,27/05/2022,233.03
24960233,Lydiard Park,Streetsmart,Lydiard : Coach House Caf�,Supplies and Services,Confectionary,CHARLES SAUNDERS LTD,BS37,27/05/2022,119.57
21790233,Facilities Management,"People, Culture and Organisational Resilience",Waterside Canteen,Supplies and Services,Confectionary,CHARLES SAUNDERS LTD,BS37,11/05/2022,61.62
21584233,Customer Strategy & Operations,"People, Culture and Organisational Resilience",Cemeteries & Crematoria,Premises Costs,Maintenance - Grounds,CHARLTON ENVIRONMENTAL LTD,OX12,11/05/2022,"1,250.00"
24310235,High Needs Block,DSG Skills and Attainment,SEND Support,Supplies and Services,Payments to Educational Bodies,CHEEKY CHIMPS,SN2 ,23/05/2022,"1,266.00"
22320233,Physical Support,Adults,Physical Support 65 and over,Income,Client Contribution - Nursing,CHERITON (SW CARE) LTD,GL52,13/05/2022,-848.10
22320233,Physical Support,Adults,Physical Support 65 and over,3rd Party Payments,Residential Care,CHERITON (SW CARE) LTD,GL52,13/05/2022,"3,335.90"
22320233,Physical Support,Adults,Physical Support 65 and over,3rd Party Payments,Residential Care,CHERITON (SW CARE) LTD,GL52,13/05/2022,"5,023.51"
22320233,Physical Support,Adults,Physical Support 65 and over,3rd Party Payments,Residential Care,CHERITON (SW CARE) LTD,GL52,13/05/2022,"-5,137.64"
22320233,Physical Support,Adults,Physical Support 65 and over,3rd Party Payments,Residential Care,CHERITON (SW CARE) LTD,GL52,13/05/2022,"5,623.37"
22320233,Physical Support,Adults,Physical Support 65 and over,3rd Party Payments,Nursing Care,CHERITON (SW CARE) LTD,GL52,13/05/2022,"3,358.33"
22320233,Physical Support,Adults,Physical Support 65 and over,Income,Client Contribution - Nursing,CHERITON (SW CARE) LTD,GL52,13/05/2022,-605.79
22320233,Physical Support,Adults,Physical Support 18 - 64,3rd Party Payments,Residential Care,CHERITON (SW CARE) LTD,GL52,13/05/2022,"-4,784.31"
22320233,Physical Support,Adults,Physical Support 65 and over,3rd Party Payments,Residential Care,CHERITON (SW CARE) LTD,GL52,13/05/2022,"2,980.05"
22320233,Physical Support,Adults,Physical Support 65 and over,3rd Party Payments,Nursing Care,CHERITON (SW CARE) LTD,GL52,13/05/2022,"5,023.51"
22320233,Physical Support,Adults,Physical Support 65 and over,Income,Client Contribution - Residential,CHERITON (SW CARE) LTD,GL52,13/05/2022,-761.00
22320233,Physical Support,Adults,Physical Support 65 and over,3rd Party Payments,Nursing Care,CHERITON (SW CARE) LTD,GL52,13/05/2022,"3,918.05"
22320233,Physical Support,Adults,Physical Support 65 and over,Income,Client Contribution - Residential,CHERITON (SW CARE) LTD,GL52,13/05/2022,-715.25
22320233,Physical Support,Adults,Physical Support 65 and over,Income,Client Contribution - Residential,CHERITON (SW CARE) LTD,GL52,13/05/2022,-756.75
22320233,Physical Support,Adults,Physical Support 65 and over,3rd Party Payments,Residential Care,CHERITON (SW CARE) LTD,GL52,13/05/2022,"3,200.15"
22320233,Physical Support,Adults,Physical Support 65 and over,3rd Party Payments,Residential Care,CHERITON (SW CARE) LTD,GL52,13/05/2022,"5,394.54"
22320233,Physical Support,Adults,Physical Support 65 and over,3rd Party Payments,Nursing Care,CHERITON (SW CARE) LTD,GL52,13/05/2022,"4,138.15"
22320233,Physical Support,Adults,Physical Support 65 and over,3rd Party Payments,Nursing Care,CHERITON (SW CARE) LTD,GL52,13/05/2022,"-4,784.31"
22320233,Physical Support,Adults,Physical Support 65 and over,Income,Client Contribution - Residential,CHERITON (SW CARE) LTD,GL52,13/05/2022,-762.50
22320233,Physical Support,Adults,Physical Support 65 and over,3rd Party Payments,Residential Care,CHERITON (SW CARE) LTD,GL52,13/05/2022,"-4,784.31"
22200233,Physical Support,Adults,Physical Support 65 and over,3rd Party Payments,Residential Care,CHERITON (SW CARE) LTD,GL52,13/05/2022,"2,612.36"
22320233,Physical Support,Adults,Physical Support 65 and over,3rd Party Payments,Nursing Care,CHERITON (SW CARE) LTD,GL52,13/05/2022,"-7,737.43"
22320233,Physical Support,Adults,Physical Support 65 and over,3rd Party Payments,Nursing Care,CHERITON (SW CARE) LTD,GL52,13/05/2022,"8,046.93"
22320233,Physical Support,Adults,Physical Support 65 and over,3rd Party Payments,Nursing Care,CHERITON (SW CARE) LTD,GL52,13/05/2022,"2,980.05"
22320233,Physical Support,Adults,Physical Support 65 and over,3rd Party Payments,Nursing Care,CHERITON (SW CARE) LTD,GL52,13/05/2022,"2,027.25"
22320233,Physical Support,Adults,Physical Support 65 and over,Income,Client Contribution - Nursing,CHERITON (SW CARE) LTD,GL52,13/05/2022,"-1,849.40"
23282233,Physical Support,Adults,Physical Support 65 and over,3rd Party Payments,Other Care Packages,CHERITON (SW CARE) LTD,SN1 ,18/05/2022,"11,571.43"
23281233,Physical Support,Adults,Physical Support 65 and over,3rd Party Payments,Other Care Packages,CHERITON (SW CARE) LTD,SN1 ,18/05/2022,"13,285.71"
22320233,Physical Support,Adults,Physical Support 65 and over,3rd Party Payments,Residential Care,CHERITON (SW CARE) LTD,GL52,13/05/2022,"-5,355.60"
22320233,Physical Support,Adults,Physical Support 65 and over,3rd Party Payments,Nursing Care,CHERITON (SW CARE) LTD,GL52,13/05/2022,"-3,546.10"
22488233,Early Years Block,DSG Skills and Attainment,Free Nursery Education Commissioning - three & four  year olds,3rd Party Payments,Contracts - Child Care,CHILD BASE NURSERIES,MK16,18/05/2022,750.00
23269233,Responsive Repairs,Repairs,Responsive Repairs,Supplies and Services,Materials,CHILD SCAFFOLDING LTD,SN1 ,18/05/2022,"4,332.38"
20489234,Responsive Repairs,Repairs,Responsive Repairs,3rd Party Payments,Contract Payments,CHILD SCAFFOLDING LTD,SN1 ,04/05/2022,409.60
20489234,Responsive Repairs,Repairs,Responsive Repairs,3rd Party Payments,Contract Payments,CHILD SCAFFOLDING LTD,SN1 ,04/05/2022,105.60
20489234,Responsive Repairs,Repairs,Responsive Repairs,3rd Party Payments,Contract Payments,CHILD SCAFFOLDING LTD,SN1 ,04/05/2022,236.80
23307233,Responsive Repairs,Repairs,Responsive Repairs,3rd Party Payments,Contract Payments,CHILD SCAFFOLDING LTD,SN1 ,18/05/2022,260.00
23307233,Responsive Repairs,Repairs,Responsive Repairs,3rd Party Payments,Contract Payments,CHILD SCAFFOLDING LTD,SN1 ,18/05/2022,130.00
20489234,Responsive Repairs,Repairs,Responsive Repairs,3rd Party Payments,Contract Payments,CHILD SCAFFOLDING LTD,SN1 ,04/05/2022,319.20
20489234,Responsive Repairs,Repairs,Responsive Repairs,3rd Party Payments,Contract Payments,CHILD SCAFFOLDING LTD,SN1 ,04/05/2022,"2,772.40"
23307233,Responsive Repairs,Repairs,Responsive Repairs,3rd Party Payments,Contract Payments,CHILD SCAFFOLDING LTD,SN1 ,18/05/2022,325.00
23307233,Responsive Repairs,Repairs,Responsive Repairs,3rd Party Payments,Contract Payments,CHILD SCAFFOLDING LTD,SN1 ,18/05/2022,65.00
20489234,Responsive Repairs,Repairs,Responsive Repairs,3rd Party Payments,Contract Payments,CHILD SCAFFOLDING LTD,SN1 ,04/05/2022,216.00
23269233,Responsive Repairs,Repairs,Responsive Repairs,Supplies and Services,Materials,CHILD SCAFFOLDING LTD,SN1 ,18/05/2022,0.00
20489234,Responsive Repairs,Repairs,Responsive Repairs,3rd Party Payments,Contract Payments,CHILD SCAFFOLDING LTD,SN1 ,04/05/2022,96.00
24587234,Social Care,"Children, Families and Community Health Services",Unaccompanied Asylum Seeking Children (UASC),3rd Party Payments,Independent Fostering Agency Placements,REDACTED PERSONAL DATA,B60 ,25/05/2022,"3,506.10"
21167237,Social Care,"Children, Families and Community Health Services",Unaccompanied Asylum Seeking Children (UASC),3rd Party Payments,Independent Fostering Agency Placements,REDACTED PERSONAL DATA,B60 ,06/05/2022,"3,393.00"
23411233,Parking & Bus lanes,Highway Operations and Car Parking,Street Parking,Supplies and Services,Materials,CHIPSIDE LTD,SN15,18/05/2022,682.86
23411233,Parking & Bus lanes,Highway Operations and Car Parking,Bus Lane Enforcement,Supplies and Services,Materials,CHIPSIDE LTD,SN15,18/05/2022,"2,945.76"
23411233,Parking & Bus lanes,Highway Operations and Car Parking,Street Parking,Supplies and Services,Materials,CHIPSIDE LTD,SN15,18/05/2022,334.95
23411233,Parking & Bus lanes,Highway Operations and Car Parking,Bus Lane Enforcement,Supplies and Services,Materials,CHIPSIDE LTD,SN15,18/05/2022,345.45
21738233,Early Years Block,DSG Skills and Attainment,Free Nursery Education Commissioning - three & four  year olds,3rd Party Payments,Contracts - Child Care,CHISELDON PRIMARY SCHOOL,SN4 ,11/05/2022,"4,771.32"
21739233,Early Years Block,DSG Skills and Attainment,Free Nursery Education Commissioning - two year olds,3rd Party Payments,Contracts - Child Care,CHISELDON PRIMARY SCHOOL,SN4 ,11/05/2022,559.73
22694236,Schools - Primary,DSG Skills and Attainment,Primary School Budgets,3rd Party Payments,Mainstream Delegated Funding,CHISELDON PRIMARY SCHOOL,SN4 ,18/05/2022,"62,191.00"
22718246,DSG Other Funding,DSG Skills and Attainment,DFE Additional Grants,3rd Party Payments,Payment of Pupil Premium to school,CHISELDON PRIMARY SCHOOL,SN4 ,18/05/2022,"3,482.00"
22329233,Learning Disabilities,Adults,Learning Disability 26 - 64,3rd Party Payments,Residential Care,CHOSEN CARE LTD,GL3 ,13/05/2022,"-14,311.80"
22329233,Learning Disabilities,Adults,Learning Disability 26 - 64,3rd Party Payments,Residential Care,CHOSEN CARE LTD,GL3 ,13/05/2022,"15,040.28"
22329233,Learning Disabilities,Adults,Learning Disability 26 - 64,3rd Party Payments,Residential Care,CHOSEN CARE LTD,GL3 ,13/05/2022,"14,011.45"
22329233,Learning Disabilities,Adults,Learning Disability 65 and over,3rd Party Payments,Residential Care,CHOSEN CARE LTD,GL3 ,13/05/2022,"15,376.24"
22329233,Learning Disabilities,Adults,Learning Disability 26 - 64,3rd Party Payments,Residential Care,CHOSEN CARE LTD,GL3 ,13/05/2022,"-14,326.46"
22329233,Learning Disabilities,Adults,Learning Disability 65 and over,3rd Party Payments,Residential Care,CHOSEN CARE LTD,GL3 ,13/05/2022,"-14,631.49"
22329233,Learning Disabilities,Adults,Learning Disability 65 and over,Income,Client Contribution - Residential,CHOSEN CARE LTD,GL3 ,13/05/2022,-757.25
22329233,Learning Disabilities,Adults,Learning Disability 26 - 64,3rd Party Payments,Residential Care,CHOSEN CARE LTD,GL3 ,13/05/2022,"8,922.20"
22329233,Learning Disabilities,Adults,Learning Disability 26 - 64,Income,Client Contribution - Residential,CHOSEN CARE LTD,GL3 ,13/05/2022,-448.75
22329233,Learning Disabilities,Adults,Learning Disability 26 - 64,3rd Party Payments,Residential Care,CHOSEN CARE LTD,GL3 ,13/05/2022,"15,055.70"
22329233,Learning Disabilities,Adults,Learning Disability 26 - 64,3rd Party Payments,Residential Care,CHOSEN CARE LTD,GL3 ,13/05/2022,"-22,475.29"
22329233,Learning Disabilities,Adults,Learning Disability 26 - 64,3rd Party Payments,Residential Care,CHOSEN CARE LTD,GL3 ,13/05/2022,"8,931.35"
22329233,Learning Disabilities,Adults,Learning Disability 26 - 64,Income,Client Contribution - Residential,CHOSEN CARE LTD,GL3 ,13/05/2022,-398.75
22329233,Learning Disabilities,Adults,Learning Disability 65 and over,3rd Party Payments,Residential Care,CHOSEN CARE LTD,GL3 ,13/05/2022,"9,121.50"
22329233,Learning Disabilities,Adults,Learning Disability 26 - 64,3rd Party Payments,Residential Care,CHOSEN CARE LTD,GL3 ,13/05/2022,"23,619.30"
25142240,Physical Support,Adults,Physical Support 18 - 64,Transfer Payments,Personal Budget - Direct Payments - Domiciliary Care,REDACTED PERSONAL DATA,SN25,30/05/2022,752.60
24256371,Social Care,"Children, Families and Community Health Services",Placement Adoption Service,3rd Party Payments,Adoption Allowances,REDACTED PERSONAL DATA,SN6 ,23/05/2022,"1,055.64"
21440371,Social Care,"Children, Families and Community Health Services",Placement Adoption Service,3rd Party Payments,Adoption Allowances,REDACTED PERSONAL DATA,SN6 ,09/05/2022,699.84
24256370,Social Care,"Children, Families and Community Health Services",Placement Adoption Service,3rd Party Payments,Adoption Allowances,REDACTED PERSONAL DATA,SN6 ,23/05/2022,699.84
21440372,Social Care,"Children, Families and Community Health Services",Placement Adoption Service,3rd Party Payments,Adoption Allowances,REDACTED PERSONAL DATA,SN6 ,09/05/2022,"1,055.64"
24651233,Disabled Children,"Children, Families and Community Health Services",DCT Daytime Short Breaks,3rd Party Payments,Respite Care,REDACTED PERSONAL DATA,CV1 ,25/05/2022,520.00
24153233,Homeline,Special Services,Homeline,Supplies and Services,Repairs & Maintenance,CHUBB FIRE & SECURITY T/A CHUBB COMMUNITY CARE,BB1 ,23/05/2022,543.84
23322233,Other Repairs,Repairs,Asbestos Services,Premises Costs,Permanent Fixtures and Fittings,CHUBB FIRE & SECURITY T/A CHUBB COMMUNITY CARE,BB1 ,18/05/2022,"1,273.00"
20423233,Homeline,Special Services,Homeline,Supplies and Services,Materials,CHUBB FIRE & SECURITY T/A CHUBB COMMUNITY CARE,BB1 ,04/05/2022,947.50
23796233,Homeline,Special Services,Homeline,Supplies and Services,Repairs & Maintenance,CHUBB FIRE & SECURITY T/A CHUBB COMMUNITY CARE,BB1 ,20/05/2022,"6,243.22"
22350233,Physical Support,Adults,Physical Support 65 and over,Income,Client Contribution - Nursing,CHURCH VIEW,SN3 ,13/05/2022,-669.85
22350233,Physical Support,Adults,Physical Support 65 and over,3rd Party Payments,Residential Care,CHURCH VIEW,SN3 ,13/05/2022,"-5,137.64"
22350233,Physical Support,Adults,Physical Support 65 and over,3rd Party Payments,Nursing Care,CHURCH VIEW,SN3 ,13/05/2022,"2,980.05"
22350233,Physical Support,Adults,Physical Support 65 and over,Income,Client Contribution - Nursing,CHURCH VIEW,SN3 ,13/05/2022,"-1,608.26"
22350233,Physical Support,Adults,Physical Support 65 and over,Income,Client Contribution - Nursing,CHURCH VIEW,SN3 ,13/05/2022,"-2,253.10"
22350233,Physical Support,Adults,Physical Support 65 and over,Income,Client Contribution - Nursing,CHURCH VIEW,SN3 ,13/05/2022,-758.15
22350233,Physical Support,Adults,Physical Support 65 and over,3rd Party Payments,Nursing Care,CHURCH VIEW,SN3 ,13/05/2022,"5,394.54"
22350233,Physical Support,Adults,Physical Support 65 and over,3rd Party Payments,Nursing Care,CHURCH VIEW,SN3 ,13/05/2022,"4,138.15"
22350233,Physical Support,Adults,Physical Support 65 and over,3rd Party Payments,Nursing Care,CHURCH VIEW,SN3 ,13/05/2022,"-4,965.78"
22350233,Physical Support,Adults,Physical Support 65 and over,3rd Party Payments,Nursing Care,CHURCH VIEW,SN3 ,13/05/2022,"-4,480.21"
22350233,Physical Support,Adults,Physical Support 65 and over,Income,Client Contribution - Nursing,CHURCH VIEW,SN3 ,13/05/2022,"1,013.86"
22350233,Physical Support,Adults,Physical Support 65 and over,Income,Client Contribution - Nursing,CHURCH VIEW,SN3 ,13/05/2022,-954.05
22350233,Physical Support,Adults,Physical Support 65 and over,Income,Client Contribution - Nursing,CHURCH VIEW,SN3 ,13/05/2022,-438.95
22350233,Physical Support,Adults,Physical Support 65 and over,Income,Client Contribution - Nursing,CHURCH VIEW,SN3 ,13/05/2022,-762.50
22350233,Physical Support,Adults,Physical Support 65 and over,Income,Client Contribution - Nursing,CHURCH VIEW,SN3 ,13/05/2022,"1,639.47"
22350233,Physical Support,Adults,Physical Support 65 and over,Income,Client Contribution - Nursing,CHURCH VIEW,SN3 ,13/05/2022,"-1,249.55"
22350233,Physical Support,Adults,Physical Support 65 and over,Income,Client Contribution - Nursing,CHURCH VIEW,SN3 ,13/05/2022,"-1,138.20"
22350233,Physical Support,Adults,Physical Support 65 and over,Income,Client Contribution - Nursing,CHURCH VIEW,SN3 ,13/05/2022,-775.35
22350233,Physical Support,Adults,Physical Support 65 and over,Income,Client Contribution - Nursing,CHURCH VIEW,SN3 ,13/05/2022,66.92
22350233,Physical Support,Adults,Physical Support 65 and over,3rd Party Payments,Nursing Care,CHURCH VIEW,SN3 ,13/05/2022,"3,383.02"
22350233,Physical Support,Adults,Physical Support 65 and over,3rd Party Payments,Nursing Care,CHURCH VIEW,SN3 ,13/05/2022,"-6,718.84"
22350233,Physical Support,Adults,Physical Support 65 and over,3rd Party Payments,Nursing Care,CHURCH VIEW,SN3 ,13/05/2022,"2,601.12"
22350233,Physical Support,Adults,Physical Support 65 and over,3rd Party Payments,Nursing Care,CHURCH VIEW,SN3 ,13/05/2022,"3,047.75"
22350233,Physical Support,Adults,Physical Support 65 and over,3rd Party Payments,Nursing Care,CHURCH VIEW,SN3 ,13/05/2022,"5,023.51"
22350233,Physical Support,Adults,Physical Support 65 and over,Income,Client Contribution - Nursing,CHURCH VIEW,SN3 ,13/05/2022,"-1,611.20"
22350233,Physical Support,Adults,Physical Support 65 and over,3rd Party Payments,Nursing Care,CHURCH VIEW,SN3 ,13/05/2022,"-4,784.31"
22350233,Physical Support,Adults,Physical Support 65 and over,Income,Client Contribution - Residential,CHURCH VIEW,SN3 ,13/05/2022,"1,608.26"
22350233,Physical Support,Adults,Physical Support 65 and over,3rd Party Payments,Nursing Care,CHURCH VIEW,SN3 ,13/05/2022,"3,200.15"
22350233,Physical Support,Adults,Physical Support 65 and over,3rd Party Payments,Nursing Care,CHURCH VIEW,SN3 ,13/05/2022,"-5,137.64"
22350233,Physical Support,Adults,Physical Support 65 and over,3rd Party Payments,Nursing Care,CHURCH VIEW,SN3 ,13/05/2022,"3,783.45"
22357236,Learning Disabilities,Adults,Learning Disability 26 - 64,3rd Party Payments,Residential Care,CIDERSTONE HOUSE,SN25,13/05/2022,"4,079.25"
22357236,Learning Disabilities,Adults,Learning Disability 26 - 64,3rd Party Payments,Residential Care,CIDERSTONE HOUSE,SN25,13/05/2022,"21,110.37"
22357236,Learning Disabilities,Adults,Learning Disability 26 - 64,3rd Party Payments,Residential Care,CIDERSTONE HOUSE,SN25,13/05/2022,"-15,587.35"
22357236,Learning Disabilities,Adults,Learning Disability 26 - 64,Income,Client Contribution - Residential,CIDERSTONE HOUSE,SN25,13/05/2022,-517.75
22357236,Learning Disabilities,Adults,Learning Disability 26 - 64,3rd Party Payments,Residential Care,CIDERSTONE HOUSE,SN25,13/05/2022,"12,369.85"
22357236,Learning Disabilities,Adults,Learning Disability 26 - 64,3rd Party Payments,Residential Care,CIDERSTONE HOUSE,SN25,13/05/2022,"23,282.67"
22357236,Learning Disabilities,Adults,Learning Disability 26 - 64,3rd Party Payments,Residential Care,CIDERSTONE HOUSE,SN25,13/05/2022,"-22,280.09"
22357236,Learning Disabilities,Adults,Learning Disability 26 - 64,Income,Client Contribution - Residential,CIDERSTONE HOUSE,SN25,13/05/2022,-548.50
22357236,Learning Disabilities,Adults,Learning Disability 26 - 64,3rd Party Payments,Residential Care,CIDERSTONE HOUSE,SN25,13/05/2022,"13,811.75"
22357236,Learning Disabilities,Adults,Learning Disability 26 - 64,3rd Party Payments,Residential Care,CIDERSTONE HOUSE,SN25,13/05/2022,"22,116.06"
22357236,Learning Disabilities,Adults,Learning Disability 26 - 64,3rd Party Payments,Residential Care,CIDERSTONE HOUSE,SN25,13/05/2022,"13,119.70"
22357236,Learning Disabilities,Adults,Learning Disability 26 - 64,3rd Party Payments,Residential Care,CIDERSTONE HOUSE,SN25,13/05/2022,"-21,163.72"
22357236,Learning Disabilities,Adults,Learning Disability 26 - 64,3rd Party Payments,Residential Care,CIDERSTONE HOUSE,SN25,13/05/2022,"15,977.05"
22357236,Learning Disabilities,Adults,Learning Disability 26 - 64,3rd Party Payments,Residential Care,CIDERSTONE HOUSE,SN25,13/05/2022,"-3,979.75"
22357236,Learning Disabilities,Adults,Learning Disability 26 - 64,3rd Party Payments,Residential Care,CIDERSTONE HOUSE,SN25,13/05/2022,391.34
22357236,Learning Disabilities,Adults,Learning Disability 26 - 64,Income,Client Contribution - Residential,CIDERSTONE HOUSE,SN25,13/05/2022,-532.00
22357236,Learning Disabilities,Adults,Learning Disability 26 - 64,Income,Client Contribution - Residential,CIDERSTONE HOUSE,SN25,13/05/2022,-847.00
22357236,Learning Disabilities,Adults,Learning Disability 26 - 64,Income,Client Contribution - Residential,CIDERSTONE HOUSE,SN25,13/05/2022,-528.75
22357236,Learning Disabilities,Adults,Learning Disability 26 - 64,3rd Party Payments,Residential Care,CIDERSTONE HOUSE,SN25,13/05/2022,"20,852.03"
22357236,Learning Disabilities,Adults,Learning Disability 26 - 64,3rd Party Payments,Residential Care,CIDERSTONE HOUSE,SN25,13/05/2022,"12,523.10"
22357236,Learning Disabilities,Adults,Learning Disability 26 - 64,3rd Party Payments,Residential Care,CIDERSTONE HOUSE,SN25,13/05/2022,"12,129.95"
22357236,Learning Disabilities,Adults,Learning Disability 26 - 64,3rd Party Payments,Residential Care,CIDERSTONE HOUSE,SN25,13/05/2022,"-19,954.14"
22357236,Learning Disabilities,Adults,Learning Disability 26 - 64,3rd Party Payments,Residential Care,CIDERSTONE HOUSE,SN25,13/05/2022,"-20,201.35"
20420233,Internal Audit,Internal Audit,Internal Audit,Supplies and Services,Services,CIPFA BUSINESS LIMITED,E1 8,04/05/2022,"2,205.00"
22976234,High Needs Block,DSG Skills and Attainment,Post 16 - New Responsibilties,3rd Party Payments,FE Colleges,CIRENCESTER COLLEGE,GL7 ,18/05/2022,"2,323.58"
22973235,High Needs Block,DSG Skills and Attainment,Out of Borough School Fees,3rd Party Payments,Other Local Authority Mainstream Schools- Pre 16,CIRENCESTER KINGSHILL SCHOOL,GL7 ,18/05/2022,582.00
22974233,High Needs Block,DSG Skills and Attainment,Out of Borough School Fees,3rd Party Payments,Other Local Authority Mainstream Schools- Pre 16,CIRENCESTER KINGSHILL SCHOOL,GL7 ,18/05/2022,582.00
24280235,Homelessness and Travellers,Housing Services,Leased Private Managed Accommodation,Transfer Payments,Payment of Costs,REDACTED PERSONAL DATA,SN5 ,25/05/2022,500.00
Corporate Card Transaction,Community Health & Wellbeing,Public Health,Community Health and Wellbeing Management,Supplies and Services,Materials,Citrix Systems Inc.,,09/05/2022,652.65
20306233,Planned Maintenance Programme,HRA Capital Financing,Exceptional Extensive,Capital,Contractor Payments,CITY ENERGY NETWORK LTD,CF10,04/05/2022,586.40
23616233,Elections & Democracy,Elections and Democracy,Register of Electors,Supplies and Services,Materials,CIVICA ELECTION SERVICES LIMITED,N8 0,20/05/2022,"3,487.99"
23616233,Elections & Democracy,Elections and Democracy,Register of Electors,Supplies and Services,Post,CIVICA ELECTION SERVICES LIMITED,N8 0,20/05/2022,"2,391.75"
25031233,Elections & Democracy,Elections and Democracy,Local Elections,Supplies and Services,Post,CIVICA ELECTION SERVICES LIMITED,N8 0,27/05/2022,"1,727.81"
25031233,Elections & Democracy,Elections and Democracy,Local Elections,Supplies and Services,Materials,CIVICA ELECTION SERVICES LIMITED,N8 0,27/05/2022,"2,335.00"
24951233,Elections & Democracy,Elections and Democracy,Committees,Supplies and Services,Services,CIVICA UK LTD,DY1 ,27/05/2022,"8,477.20"
24999233,Planning & Regulatory,Strategic Planning,Economy & Development Management,Employees,Temporary / Agency - by Accounts Payable,REDACTED PERSONAL DATA,BS37,27/05/2022,"8,815.20"
23321233,Planning & Regulatory,Strategic Planning,Economy & Development Management,Employees,Temporary / Agency - by Accounts Payable,REDACTED PERSONAL DATA,BS37,18/05/2022,"9,415.20"
22917235,High Needs Block,DSG Skills and Attainment,Statemented Pupils Equipment,Supplies and Services,Services,REDACTED PERSONAL DATA,SN6 ,18/05/2022,570.00
21745233,Early Years Block,DSG Skills and Attainment,Free Nursery Education Commissioning - three & four  year olds,3rd Party Payments,Contracts - Child Care,REDACTED PERSONAL DATA,SN2 ,11/05/2022,586.56
24317233,NEV,"Economy, Growth and Place",Gablecross Junction,Capital,Consultants,CLARKE WILLMOTT LLP,BS1 ,23/05/2022,"1,240.00"
20474233,Legal Services,Legal Services,Legal Services,Supplies and Services,Fees,CLARKE WILLMOTT LLP,BS1 ,04/05/2022,"3,108.00"
24029233,Education,Inclusion and Achievement,Education Standards and Quality,Supplies and Services,Fees,CLARKE WILLMOTT LLP,BS1 ,20/05/2022,930.00
22508233,Streetsmart,Streetsmart,Waterside Fleet Workshops,Supplies and Services,Equipment,CLEMAS & CO LTD,GL20,16/05/2022,"3,500.00"
24312233,High Needs Block,DSG Skills and Attainment,SEND Support,Supplies and Services,Payments to Educational Bodies,CLIFTON ST PRE-SCHOOL,SN1 ,23/05/2022,"1,900.00"
22491233,Early Years Block,DSG Skills and Attainment,Free Nursery Education Commissioning - three & four  year olds,3rd Party Payments,Contracts - Child Care,CLIFTON ST PRE-SCHOOL,SN1 ,18/05/2022,750.00
22344233,Physical Support,Adults,Physical Support 65 and over,Income,Client Contribution - Residential,COATE WATER CARE CO LTD,SN3 ,13/05/2022,"-1,192.50"
22344233,Physical Support,Adults,Physical Support 65 and over,Income,Client Contribution - Residential,COATE WATER CARE CO LTD,SN3 ,13/05/2022,-638.65
22344233,Physical Support,Adults,Physical Support 65 and over,3rd Party Payments,Residential Care,COATE WATER CARE CO LTD,SN3 ,13/05/2022,"-5,600.00"
22344233,Physical Support,Adults,Physical Support 65 and over,3rd Party Payments,Residential Care,COATE WATER CARE CO LTD,SN3 ,13/05/2022,"4,160.00"
22344233,Physical Support,Adults,Physical Support 65 and over,3rd Party Payments,Residential Care,COATE WATER CARE CO LTD,SN3 ,13/05/2022,"7,152.82"
22344233,Physical Support,Adults,Physical Support 65 and over,3rd Party Payments,Residential Care,COATE WATER CARE CO LTD,SN3 ,13/05/2022,"-6,877.71"
22344233,Physical Support,Adults,Physical Support 65 and over,3rd Party Payments,Residential Care,COATE WATER CARE CO LTD,SN3 ,13/05/2022,"3,047.75"
22344233,Physical Support,Adults,Physical Support 65 and over,3rd Party Payments,Residential Care,COATE WATER CARE CO LTD,SN3 ,13/05/2022,"-4,637.21"
22344233,Physical Support,Adults,Physical Support 65 and over,Income,Client Contribution - Residential,COATE WATER CARE CO LTD,SN3 ,13/05/2022,"-1,793.45"
22344233,Physical Support,Adults,Physical Support 65 and over,Income,Client Contribution - Residential,COATE WATER CARE CO LTD,SN3 ,13/05/2022,-915.00
22344233,Physical Support,Adults,Physical Support 65 and over,Income,Client Contribution - Residential,COATE WATER CARE CO LTD,SN3 ,13/05/2022,-746.75
22344233,Physical Support,Adults,Physical Support 65 and over,Income,Client Contribution - Residential,COATE WATER CARE CO LTD,SN3 ,13/05/2022,"-1,167.27"
22344233,Physical Support,Adults,Physical Support 65 and over,3rd Party Payments,Residential Care,COATE WATER CARE CO LTD,SN3 ,13/05/2022,"-5,137.64"
22344233,Physical Support,Adults,Physical Support 65 and over,Income,Client Contribution - Residential,COATE WATER CARE CO LTD,SN3 ,13/05/2022,"-1,138.95"
22344233,Physical Support,Adults,Physical Support 65 and over,Income,Client Contribution - Residential,COATE WATER CARE CO LTD,SN3 ,13/05/2022,"6,100.00"
22344233,Physical Support,Adults,Physical Support 65 and over,Income,Client Contribution - Residential,COATE WATER CARE CO LTD,SN3 ,13/05/2022,"1,108.34"
22344233,Physical Support,Adults,Physical Support 65 and over,Income,Client Contribution - Residential,COATE WATER CARE CO LTD,SN3 ,13/05/2022,61.57
22344233,Physical Support,Adults,Physical Support 65 and over,3rd Party Payments,Residential Care,COATE WATER CARE CO LTD,SN3 ,13/05/2022,"7,599.87"
22344233,Physical Support,Adults,Physical Support 65 and over,Income,Client Contribution - Residential,COATE WATER CARE CO LTD,SN3 ,13/05/2022,"-1,059.20"
22344233,Physical Support,Adults,Physical Support 65 and over,Income,Client Contribution - Residential,COATE WATER CARE CO LTD,SN3 ,13/05/2022,-674.25
22344233,Physical Support,Adults,Physical Support 65 and over,Income,Client Contribution - Residential,COATE WATER CARE CO LTD,SN3 ,13/05/2022,-898.50
22344233,Physical Support,Adults,Physical Support 65 and over,Income,Client Contribution - Residential,COATE WATER CARE CO LTD,SN3 ,13/05/2022,196.07
22344233,Physical Support,Adults,Physical Support 65 and over,3rd Party Payments,Residential Care,COATE WATER CARE CO LTD,SN3 ,13/05/2022,"-5,355.60"
22344233,Physical Support,Adults,Physical Support 65 and over,3rd Party Payments,Residential Care,COATE WATER CARE CO LTD,SN3 ,13/05/2022,"-1,142.86"
22344233,Physical Support,Adults,Physical Support 65 and over,3rd Party Payments,Residential Care,COATE WATER CARE CO LTD,SN3 ,13/05/2022,"1,188.57"
22344233,Physical Support,Adults,Physical Support 65 and over,Income,Client Contribution - Residential,COATE WATER CARE CO LTD,SN3 ,13/05/2022,-699.25
22344233,Physical Support,Adults,Physical Support 65 and over,Income,Client Contribution - Residential,COATE WATER CARE CO LTD,SN3 ,13/05/2022,-788.20
22344233,Physical Support,Adults,Physical Support 65 and over,Income,Client Contribution - Residential,COATE WATER CARE CO LTD,SN3 ,13/05/2022,"-1,081.01"
22344233,Physical Support,Adults,Physical Support 65 and over,3rd Party Payments,Residential Care,COATE WATER CARE CO LTD,SN3 ,13/05/2022,"-7,307.57"
22344233,Physical Support,Adults,Physical Support 65 and over,3rd Party Payments,Residential Care,COATE WATER CARE CO LTD,SN3 ,13/05/2022,"3,335.90"
22344233,Physical Support,Adults,Physical Support 65 and over,3rd Party Payments,Residential Care,COATE WATER CARE CO LTD,SN3 ,13/05/2022,"4,243.20"
22344233,Physical Support,Adults,Physical Support 65 and over,3rd Party Payments,Residential Care,COATE WATER CARE CO LTD,SN3 ,13/05/2022,"28,000.00"
22344233,Physical Support,Adults,Physical Support 65 and over,3rd Party Payments,Residential Care,COATE WATER CARE CO LTD,SN3 ,13/05/2022,"-28,000.00"
22344233,Physical Support,Adults,Physical Support 18 - 64,3rd Party Payments,Residential Care,COATE WATER CARE CO LTD,SN3 ,13/05/2022,"3,177.05"
22344233,Physical Support,Adults,Physical Support 65 and over,Income,Client Contribution - Residential,COATE WATER CARE CO LTD,SN3 ,13/05/2022,552.87
22344233,Physical Support,Adults,Physical Support 65 and over,3rd Party Payments,Residential Care,COATE WATER CARE CO LTD,SN3 ,13/05/2022,"5,628.68"
22344233,Physical Support,Adults,Physical Support 65 and over,3rd Party Payments,Residential Care,COATE WATER CARE CO LTD,SN3 ,13/05/2022,"5,394.54"
22344233,Physical Support,Adults,Physical Support 65 and over,3rd Party Payments,Residential Care,COATE WATER CARE CO LTD,SN3 ,13/05/2022,"5,623.37"
22344233,Physical Support,Adults,Physical Support 65 and over,3rd Party Payments,Residential Care,COATE WATER CARE CO LTD,SN3 ,13/05/2022,-900.00
22344233,Physical Support,Adults,Physical Support 18 - 64,3rd Party Payments,Residential Care,COATE WATER CARE CO LTD,SN3 ,13/05/2022,"-6,877.71"
22344233,Physical Support,Adults,Physical Support 18 - 64,3rd Party Payments,Residential Care,COATE WATER CARE CO LTD,SN3 ,13/05/2022,"-5,137.64"
22344233,Mental Health,Adults,Mental Health 65 and over,3rd Party Payments,Residential Care,COATE WATER CARE CO LTD,SN3 ,13/05/2022,"3,500.00"
22344233,Physical Support,Adults,Physical Support 18 - 64,Income,Client Contribution - Residential,COATE WATER CARE CO LTD,SN3 ,13/05/2022,-448.75
22344233,Physical Support,Adults,Physical Support 65 and over,Income,Client Contribution - Residential,COATE WATER CARE CO LTD,SN3 ,13/05/2022,"-1,502.30"
22344233,Physical Support,Adults,Physical Support 65 and over,Income,Client Contribution - Residential,COATE WATER CARE CO LTD,SN3 ,13/05/2022,"-1,419.30"
22344233,Physical Support,Adults,Physical Support 65 and over,Income,Client Contribution - Residential,COATE WATER CARE CO LTD,SN3 ,13/05/2022,"-1,117.15"
22344233,Physical Support,Adults,Physical Support 65 and over,3rd Party Payments,Residential Care,COATE WATER CARE CO LTD,SN3 ,13/05/2022,"3,339.05"
22344233,Physical Support,Adults,Physical Support 65 and over,3rd Party Payments,Residential Care,COATE WATER CARE CO LTD,SN3 ,13/05/2022,"3,177.05"
22344233,Physical Support,Adults,Physical Support 65 and over,3rd Party Payments,Residential Care,COATE WATER CARE CO LTD,SN3 ,13/05/2022,"3,200.15"
22344233,Physical Support,Adults,Physical Support 65 and over,3rd Party Payments,Residential Care,COATE WATER CARE CO LTD,SN3 ,13/05/2022,"5,824.00"
22344233,Physical Support,Adults,Physical Support 65 and over,Income,Client Contribution - Residential,COATE WATER CARE CO LTD,SN3 ,13/05/2022,-778.50
22344233,Physical Support,Adults,Physical Support 65 and over,Income,Client Contribution - Residential,COATE WATER CARE CO LTD,SN3 ,13/05/2022,-632.75
22344233,Physical Support,Adults,Physical Support 65 and over,Income,Client Contribution - Residential,COATE WATER CARE CO LTD,SN3 ,13/05/2022,"-1,194.35"
22344233,Physical Support,Adults,Physical Support 65 and over,Income,Client Contribution - Residential,COATE WATER CARE CO LTD,SN3 ,13/05/2022,43.57
22325233,Learning Disabilities,Adults,Learning Disability 26 - 64,3rd Party Payments,Residential Care,COCKLEBURY FARMHOUSE,SN15,13/05/2022,"10,360.00"
22325233,Learning Disabilities,Adults,Learning Disability 26 - 64,Income,Client Contribution - Residential,COCKLEBURY FARMHOUSE,SN15,13/05/2022,-532.00
22293233,Town Centre,"Economy, Growth and Place",Fleming Way Bus Boulevard,Capital,Contractor Payments,COLAS LTD,B37 ,13/05/2022,"101,584.11"
22324235,Physical Support,Adults,Physical Support 65 and over,Income,Client Contribution - Personal Budget � Fairer Charging,COMMUNITY ACCESS NETWORK LTD,SN25,13/05/2022,-35.70
22324235,Learning Disabilities,Adults,Learning Disability 26 - 64,3rd Party Payments,Supported Living,COMMUNITY ACCESS NETWORK LTD,SN25,13/05/2022,"-1,279.86"
22324234,Learning Disabilities,Adults,Learning Disability 65 and over,3rd Party Payments,Residential Care,COMMUNITY ACCESS NETWORK LTD,SN25,13/05/2022,"6,021.35"
22324235,Learning Disabilities,Adults,Learning Disability 26 - 64,3rd Party Payments,Supported Living,COMMUNITY ACCESS NETWORK LTD,SN25,13/05/2022,"-1,241.52"
22324235,Learning Disabilities,Adults,Learning Disability 26 - 64,3rd Party Payments,Supported Living,COMMUNITY ACCESS NETWORK LTD,SN25,13/05/2022,"1,509.60"
22324235,Learning Disabilities,Adults,Learning Disability 26 - 64,3rd Party Payments,Supported Living,COMMUNITY ACCESS NETWORK LTD,SN25,13/05/2022,"-4,030.71"
22324235,Learning Disabilities,Adults,Learning Disability 26 - 64,3rd Party Payments,Supported Living,COMMUNITY ACCESS NETWORK LTD,SN25,13/05/2022,-2.66
22324235,Physical Support,Adults,Physical Support 65 and over,Income,Client Contribution - Personal Budget � Fairer Charging,COMMUNITY ACCESS NETWORK LTD,SN25,13/05/2022,392.70
22324234,Learning Disabilities,Adults,Learning Disability 65 and over,Income,Client Contribution - Residential,COMMUNITY ACCESS NETWORK LTD,SN25,13/05/2022,-722.75
22324235,Learning Disabilities,Adults,Learning Disability 26 - 64,Income,Client Contribution - Supported Living,COMMUNITY ACCESS NETWORK LTD,SN25,13/05/2022,20.40
22324234,Learning Disabilities,Adults,Learning Disability 26 - 64,3rd Party Payments,Residential Care,COMMUNITY ACCESS NETWORK LTD,SN25,13/05/2022,"10,156.59"
22324235,Learning Disabilities,Adults,Learning Disability 26 - 64,3rd Party Payments,Supported Living,COMMUNITY ACCESS NETWORK LTD,SN25,13/05/2022,-24.84
22324235,Learning Disabilities,Adults,Learning Disability 26 - 64,3rd Party Payments,Supported Living,COMMUNITY ACCESS NETWORK LTD,SN25,13/05/2022,"-1,422.59"
22324235,Learning Disabilities,Adults,Learning Disability 26 - 64,3rd Party Payments,Supported Living,COMMUNITY ACCESS NETWORK LTD,SN25,13/05/2022,"-4,105.29"
22324235,Learning Disabilities,Adults,Learning Disability 26 - 64,3rd Party Payments,Supported Living,COMMUNITY ACCESS NETWORK LTD,SN25,13/05/2022,"4,603.85"
22324235,Learning Disabilities,Adults,Learning Disability 26 - 64,Income,Client Contribution - Supported Living,COMMUNITY ACCESS NETWORK LTD,SN25,13/05/2022,"-1,428.00"
22324235,Learning Disabilities,Adults,Learning Disability 26 - 64,3rd Party Payments,Supported Living,COMMUNITY ACCESS NETWORK LTD,SN25,13/05/2022,-133.02
22324235,Learning Disabilities,Adults,Learning Disability 26 - 64,3rd Party Payments,Supported Living,COMMUNITY ACCESS NETWORK LTD,SN25,13/05/2022,"1,337.07"
22324235,Learning Disabilities,Adults,Learning Disability 26 - 64,3rd Party Payments,Supported Living,COMMUNITY ACCESS NETWORK LTD,SN25,13/05/2022,621.60
22324235,Learning Disabilities,Adults,Learning Disability 26 - 64,Income,Client Contribution - Supported Living,COMMUNITY ACCESS NETWORK LTD,SN25,13/05/2022,178.50
22324234,Learning Disabilities,Adults,Learning Disability 26 - 64,3rd Party Payments,Residential Care,COMMUNITY ACCESS NETWORK LTD,SN25,13/05/2022,"6,025.10"
22324235,Learning Disabilities,Adults,Learning Disability 26 - 64,3rd Party Payments,Supported Living,COMMUNITY ACCESS NETWORK LTD,SN25,13/05/2022,26.57
22324235,Learning Disabilities,Adults,Learning Disability 26 - 64,3rd Party Payments,Supported Living,COMMUNITY ACCESS NETWORK LTD,SN25,13/05/2022,550.56
22324235,Learning Disabilities,Adults,Learning Disability 26 - 64,3rd Party Payments,Supported Living,COMMUNITY ACCESS NETWORK LTD,SN25,13/05/2022,"4,077.70"
22324235,Learning Disabilities,Adults,Learning Disability 26 - 64,3rd Party Payments,Supported Living,COMMUNITY ACCESS NETWORK LTD,SN25,13/05/2022,"1,678.45"
22324235,Learning Disabilities,Adults,Learning Disability 26 - 64,Income,Client Contribution - Supported Living,COMMUNITY ACCESS NETWORK LTD,SN25,13/05/2022,15.30
22324235,Learning Disabilities,Adults,Learning Disability 26 - 64,Income,Client Contribution - Supported Living,COMMUNITY ACCESS NETWORK LTD,SN25,13/05/2022,-178.50
22324234,Learning Disabilities,Adults,Learning Disability 26 - 64,3rd Party Payments,Residential Care,COMMUNITY ACCESS NETWORK LTD,SN25,13/05/2022,"-9,719.24"
22324235,Learning Disabilities,Adults,Learning Disability 26 - 64,3rd Party Payments,Supported Living,COMMUNITY ACCESS NETWORK LTD,SN25,13/05/2022,-527.00
22324235,Learning Disabilities,Adults,Learning Disability 26 - 64,3rd Party Payments,Supported Living,COMMUNITY ACCESS NETWORK LTD,SN25,13/05/2022,-26.57
22324235,Learning Disabilities,Adults,Learning Disability 26 - 64,3rd Party Payments,Supported Living,COMMUNITY ACCESS NETWORK LTD,SN25,13/05/2022,30.00
22324235,Learning Disabilities,Adults,Learning Disability 26 - 64,3rd Party Payments,Supported Living,COMMUNITY ACCESS NETWORK LTD,SN25,13/05/2022,"1,486.63"
22324234,Learning Disabilities,Adults,Learning Disability 26 - 64,Income,Client Contribution - Residential,COMMUNITY ACCESS NETWORK LTD,SN25,13/05/2022,-367.00
22324234,Learning Disabilities,Adults,Learning Disability 65 and over,3rd Party Payments,Residential Care,COMMUNITY ACCESS NETWORK LTD,SN25,13/05/2022,"-9,713.17"
22324234,Learning Disabilities,Adults,Learning Disability 65 and over,3rd Party Payments,Residential Care,COMMUNITY ACCESS NETWORK LTD,SN25,13/05/2022,"10,150.28"
22324235,Learning Disabilities,Adults,Learning Disability 26 - 64,Income,Client Contribution - Supported Living,COMMUNITY ACCESS NETWORK LTD,SN25,13/05/2022,-142.80
22324235,Learning Disabilities,Adults,Learning Disability 26 - 64,Income,Client Contribution - Supported Living,COMMUNITY ACCESS NETWORK LTD,SN25,13/05/2022,-35.70
22324235,Learning Disabilities,Adults,Learning Disability 26 - 64,Income,Client Contribution - Supported Living,COMMUNITY ACCESS NETWORK LTD,SN25,13/05/2022,"1,071.00"
21163249,Social Care,"Children, Families and Community Health Services",External Placements,3rd Party Payments,Independent Fostering Agency Placements,COMMUNITY FOSTER CARE,GL1 ,06/05/2022,"3,953.43"
21163247,Social Care,"Children, Families and Community Health Services",External Placements,3rd Party Payments,Independent Fostering Agency Placements,COMMUNITY FOSTER CARE,GL1 ,06/05/2022,"5,139.80"
21163245,Social Care,"Children, Families and Community Health Services",External Placements,3rd Party Payments,Independent Fostering Agency Placements,COMMUNITY FOSTER CARE,GL1 ,06/05/2022,"4,058.21"
21163246,Social Care,"Children, Families and Community Health Services",External Placements,3rd Party Payments,Independent Fostering Agency Placements,COMMUNITY FOSTER CARE,GL1 ,06/05/2022,"3,927.30"
21163248,Social Care,"Children, Families and Community Health Services",External Placements,3rd Party Payments,Independent Fostering Agency Placements,COMMUNITY FOSTER CARE,GL1 ,06/05/2022,"4,974.00"
21163250,Social Care,"Children, Families and Community Health Services",External Placements,3rd Party Payments,Independent Fostering Agency Placements,COMMUNITY FOSTER CARE,GL1 ,06/05/2022,"3,825.90"
22345233,Learning Disabilities,Adults,Learning Disability 26 - 64,3rd Party Payments,Residential Care,COMMUNITY THERAPEUTIC SERVICES LTD,BS22,13/05/2022,"13,530.50"
23351233,Social Care,"Children, Families and Community Health Services",Placement - Care Leaver Team,3rd Party Payments,Staying Put,COMPASS FOSTERING LONDON LTD,LE11,18/05/2022,"2,568.66"
21168233,Social Care,"Children, Families and Community Health Services",Placement - Care Leaver Team,3rd Party Payments,Staying Put,COMPASS FOSTERING LONDON LTD,LE11,06/05/2022,"2,485.80"
21163236,Social Care,"Children, Families and Community Health Services",External Placements,3rd Party Payments,Independent Fostering Agency Placements,COMPASS FOSTERING WEST LTD,LE11,06/05/2022,"5,995.80"
21163242,Social Care,"Children, Families and Community Health Services",External Placements,3rd Party Payments,Independent Fostering Agency Placements,COMPASS FOSTERING WEST LTD,LE11,06/05/2022,"4,928.70"
21163240,Social Care,"Children, Families and Community Health Services",External Placements,3rd Party Payments,Independent Fostering Agency Placements,COMPASS FOSTERING WEST LTD,LE11,06/05/2022,"3,135.00"
21163234,Social Care,"Children, Families and Community Health Services",External Placements,3rd Party Payments,Independent Fostering Agency Placements,COMPASS FOSTERING WEST LTD,LE11,06/05/2022,"-1,484.98"
21163241,Social Care,"Children, Families and Community Health Services",External Placements,3rd Party Payments,Independent Fostering Agency Placements,COMPASS FOSTERING WEST LTD,LE11,06/05/2022,"5,092.99"
21163239,Social Care,"Children, Families and Community Health Services",External Placements,3rd Party Payments,Independent Fostering Agency Placements,COMPASS FOSTERING WEST LTD,LE11,06/05/2022,"3,239.50"
21163237,Social Care,"Children, Families and Community Health Services",External Placements,3rd Party Payments,Independent Fostering Agency Placements,COMPASS FOSTERING WEST LTD,LE11,06/05/2022,"3,627.00"
21163235,Social Care,"Children, Families and Community Health Services",External Placements,3rd Party Payments,Independent Fostering Agency Placements,COMPASS FOSTERING WEST LTD,LE11,06/05/2022,"6,195.66"
21163238,Social Care,"Children, Families and Community Health Services",External Placements,3rd Party Payments,Independent Fostering Agency Placements,COMPASS FOSTERING WEST LTD,LE11,06/05/2022,"3,334.50"
21163233,Social Care,"Children, Families and Community Health Services",External Placements,3rd Party Payments,Independent Fostering Agency Placements,COMPASS FOSTERING WEST LTD,LE11,06/05/2022,"3,288.17"
23592235,Housing & Supported Living,Adults,Disabled Facilities Grants,Capital,Grant Payments,COMPLETE CONSTRUCTION SWINDON,SN5 ,20/05/2022,"7,490.00"
24446233,Disabled Children,"Children, Families and Community Health Services",DCT Daytime Short Breaks,3rd Party Payments,Respite Care,COMPLETELY CARE RECRUITMENT CONSULTANTS LIMITED,GL17,25/05/2022,"1,021.73"
23299233,Disabled Children,"Children, Families and Community Health Services",DCT Daytime Short Breaks,3rd Party Payments,Respite Care,COMPLETELY CARE RECRUITMENT CONSULTANTS LIMITED,GL17,18/05/2022,513.85
24432233,Disabled Children,"Children, Families and Community Health Services",DCT Daytime Short Breaks,3rd Party Payments,Respite Care,COMPLETELY CARE RECRUITMENT CONSULTANTS LIMITED,GL17,25/05/2022,"1,342.55"
Corporate Card Transaction,Homeline,Special Services,Homeline,Supplies and Services,Equipment,Complete Care Shop,,27/04/2022,"2,246.48"
21293233,Disabled Children,"Children, Families and Community Health Services",ICES Paediatric,Supplies and Services,Equipment,CONNEVANS LTD,RH1 ,06/05/2022,560.00
25133237,Learning Disabilities,Adults,Learning Disability 26 - 64,Transfer Payments,Personal Budget - Direct Payments - Domiciliary Care,REDACTED PERSONAL DATA,GL2 ,30/05/2022,"4,199.53"
25108233,Property Management,Property,Corporate Repairs & Maintenance Programme,Premises Costs,Maintenance - Buildings,COOLINK LTD,SN11,30/05/2022,243.60
25111233,Property Management,Property,Corporate Repairs & Maintenance Programme,Premises Costs,Maintenance - Buildings,COOLINK LTD,SN11,30/05/2022,216.00
25108233,Property Management,Property,Corporate Repairs & Maintenance Programme,Premises Costs,Maintenance - Buildings,COOLINK LTD,SN11,30/05/2022,433.89
25107233,Property Management,Property,Corporate Repairs & Maintenance Programme,Premises Costs,Maintenance - Buildings,COOLINK LTD,SN11,30/05/2022,"3,582.00"
23737233,Facilities Management,"People, Culture and Organisational Resilience",Office Accommodation,Premises Costs,Maintenance - Buildings,COOLINK LTD,SN11,20/05/2022,207.20
25111233,Property Management,Property,Corporate Repairs & Maintenance Programme,Premises Costs,Maintenance - Buildings,COOLINK LTD,SN11,30/05/2022,374.00
22998233,Facilities Management,"People, Culture and Organisational Resilience",Office Accommodation,Premises Costs,Maintenance - Buildings,COOLINK LTD,SN11,18/05/2022,837.20
23737233,Property Management,Property,Corporate Repairs & Maintenance Programme,Premises Costs,Maintenance - Buildings,COOLINK LTD,SN11,20/05/2022,324.67
24256277,Social Care,"Children, Families and Community Health Services",Placement Adoption Service,3rd Party Payments,Adoption Allowances,REDACTED PERSONAL DATA,BA15,23/05/2022,860.00
21440278,Social Care,"Children, Families and Community Health Services",Placement Adoption Service,3rd Party Payments,Adoption Allowances,REDACTED PERSONAL DATA,BA15,09/05/2022,860.00
Corporate Card Transaction,ASC Finance Services Teams,ASC Finance Services,ASC Money Management Team,Supplies and Services,Services,Co-Operative.Coop,,20/05/2022,"4,150.00"
22329236,Learning Disabilities,Adults,Learning Disability 26 - 64,Income,Client Contribution - Residential,CORNERSTONES UK LTD,SN9 ,13/05/2022,-512.75
22329236,Learning Disabilities,Adults,Learning Disability 26 - 64,3rd Party Payments,Residential Care,CORNERSTONES UK LTD,SN9 ,13/05/2022,"-14,025.06"
22329236,Learning Disabilities,Adults,Learning Disability 26 - 64,3rd Party Payments,Residential Care,CORNERSTONES UK LTD,SN9 ,13/05/2022,"13,172.09"
22329236,Learning Disabilities,Adults,Learning Disability 26 - 64,3rd Party Payments,Residential Care,CORNERSTONES UK LTD,SN9 ,13/05/2022,"16,827.90"
22329236,Learning Disabilities,Adults,Learning Disability 26 - 64,3rd Party Payments,Residential Care,CORNERSTONES UK LTD,SN9 ,13/05/2022,"17,195.89"
22329236,Learning Disabilities,Adults,Learning Disability 26 - 64,3rd Party Payments,Residential Care,CORNERSTONES UK LTD,SN9 ,13/05/2022,"11,215.39"
22329236,Learning Disabilities,Adults,Learning Disability 26 - 64,3rd Party Payments,Residential Care,CORNERSTONES UK LTD,SN9 ,13/05/2022,"7,813.95"
22329236,Learning Disabilities,Adults,Learning Disability 26 - 64,3rd Party Payments,Residential Care,CORNERSTONES UK LTD,SN9 ,13/05/2022,"10,200.95"
22329236,Learning Disabilities,Adults,Learning Disability 26 - 64,3rd Party Payments,Residential Care,CORNERSTONES UK LTD,SN9 ,13/05/2022,"14,586.06"
22329236,Learning Disabilities,Adults,Learning Disability 26 - 64,3rd Party Payments,Residential Care,CORNERSTONES UK LTD,SN9 ,13/05/2022,"9,982.65"
22329236,Learning Disabilities,Adults,Learning Disability 26 - 64,Income,Client Contribution - Residential,CORNERSTONES UK LTD,SN9 ,13/05/2022,-528.75
22329236,Learning Disabilities,Adults,Learning Disability 26 - 64,Income,Client Contribution - Residential,CORNERSTONES UK LTD,SN9 ,13/05/2022,-517.75
22329236,Learning Disabilities,Adults,Learning Disability 26 - 64,3rd Party Payments,Residential Care,CORNERSTONES UK LTD,SN9 ,13/05/2022,"-16,534.50"
22329236,Learning Disabilities,Adults,Learning Disability 26 - 64,3rd Party Payments,Residential Care,CORNERSTONES UK LTD,SN9 ,13/05/2022,"-8,466.75"
22329236,Learning Disabilities,Adults,Learning Disability 26 - 64,3rd Party Payments,Residential Care,CORNERSTONES UK LTD,SN9 ,13/05/2022,"-12,665.45"
22329236,Learning Disabilities,Adults,Learning Disability 26 - 64,3rd Party Payments,Residential Care,CORNERSTONES UK LTD,SN9 ,13/05/2022,"-10,784.02"
22329236,Learning Disabilities,Adults,Learning Disability 26 - 64,3rd Party Payments,Residential Care,CORNERSTONES UK LTD,SN9 ,13/05/2022,"6,653.20"
22329236,Learning Disabilities,Adults,Learning Disability 26 - 64,3rd Party Payments,Residential Care,CORNERSTONES UK LTD,SN9 ,13/05/2022,"-16,180.67"
22329236,Learning Disabilities,Adults,Learning Disability 26 - 64,3rd Party Payments,Residential Care,CORNERSTONES UK LTD,SN9 ,13/05/2022,"8,805.41"
22329236,Learning Disabilities,Adults,Learning Disability 26 - 64,3rd Party Payments,Residential Care,CORNERSTONES UK LTD,SN9 ,13/05/2022,"8,652.75"
22329236,Learning Disabilities,Adults,Learning Disability 26 - 64,3rd Party Payments,Residential Care,CORNERSTONES UK LTD,SN9 ,13/05/2022,"5,223.55"
22329236,Learning Disabilities,Adults,Learning Disability 26 - 64,Income,Client Contribution - Residential,CORNERSTONES UK LTD,SN9 ,13/05/2022,-451.25
23521234,High Needs Block,DSG Skills and Attainment,Out of Borough School Fees,3rd Party Payments,Independent Special School- Pre 16,COTSWOLD CHINE SCHOOL,GL5 ,20/05/2022,"27,553.76"
23520233,High Needs Block,DSG Skills and Attainment,Out of Borough School Fees,3rd Party Payments,Independent Special School- Pre 16,COTSWOLD CHINE SCHOOL,GL5 ,20/05/2022,"27,553.76"
25156252,Learning Disabilities,Adults,Learning Disability 26 - 64,Transfer Payments,Personal Budget - Direct Payments - Domiciliary Care,REDACTED PERSONAL DATA,SP11,30/05/2022,"1,604.83"
24378233,Early Years Block,DSG Skills and Attainment,Free Nursery Education Commissioning - three & four  year olds,3rd Party Payments,Contracts - Child Care,COVINGHAM KINGFISHER PRE-SCHOOL,SN3 ,25/05/2022,800.00
22920236,High Needs Block,DSG Skills and Attainment,SEN Resourcing Assessment Panel,3rd Party Payments,Top up funding - Maintained providers Pre 16,COVINGHAM PARK PRIMARY SCHOOL,SN3 ,18/05/2022,"1,561.67"
22694237,Schools - Primary,DSG Skills and Attainment,Primary School Budgets,3rd Party Payments,Mainstream Delegated Funding,COVINGHAM PARK PRIMARY SCHOOL,SN3 ,18/05/2022,"130,175.00"
22718247,DSG Other Funding,DSG Skills and Attainment,DFE Additional Grants,3rd Party Payments,Payment of Pupil Premium to school,COVINGHAM PARK PRIMARY SCHOOL,SN3 ,18/05/2022,"8,157.00"
22361235,Memory & Cognition,Adults,Support for Memory and Cognition 65 and over,3rd Party Payments,Residential Care,COXWELL HALL AND MEWS NURSING HOME,TW20,13/05/2022,"7,460.30"
22361235,Memory & Cognition,Adults,Support for Memory and Cognition 65 and over,3rd Party Payments,Residential Care,COXWELL HALL AND MEWS NURSING HOME,TW20,13/05/2022,"12,575.93"
22361235,Memory & Cognition,Adults,Support for Memory and Cognition 65 and over,3rd Party Payments,Residential Care,COXWELL HALL AND MEWS NURSING HOME,TW20,13/05/2022,"-11,864.06"
23422233,Streetsmart,Streetsmart,Lydiard House - Maintenance,Capital,Contractor Payments,CPS CONSTRUCTION LTD,BS15,18/05/2022,"10,477.00"
22324240,Learning Disabilities,Adults,Learning Disability 26 - 64,Income,Client Contribution - Residential,CRAEGMOOR HEALTHCARE,BA14,13/05/2022,-517.75
22324240,Learning Disabilities,Adults,Learning Disability 26 - 64,3rd Party Payments,Residential Care,CRAEGMOOR HEALTHCARE,BA14,13/05/2022,"10,334.80"
23800233,Streetsmart,Streetsmart,Refuse Collection,Supplies and Services,Equipment,CRAEMER UK LTD,TF1 ,20/05/2022,"12,975.00"
20959233,DSG Other Funding,DSG Skills and Attainment,LAC pupil premium,3rd Party Payments,Education / Training,CRANBURY COLLEGE,RG30,06/05/2022,"6,481.00"
22401233,Lydiard Park,Streetsmart,Lydiard House & Park,Supplies and Services,Materials,CRE8TIVE MARKETING LTD,N1 7,13/05/2022,"1,371.00"
24901234,Town Centre,"Economy, Growth and Place",Economic Development,Supplies and Services,Publicity,CREATE STUDIOS DIGITAL MEDIA LTD,SN1 ,27/05/2022,"2,497.50"
21676233,Town Centre,"Economy, Growth and Place",Economic Development,Supplies and Services,Publicity,CREATE STUDIOS DIGITAL MEDIA LTD,SN1 ,11/05/2022,"19,400.00"
25066233,Disabled Children,"Children, Families and Community Health Services",ICES Paediatric,Supplies and Services,Equipment,CRELLING HARNESSES LIMITED,FY5 ,27/05/2022,797.50
22660233,School Transport,Inclusion and Achievement,Special Educational Needs Transport,Transport Costs,Home to School Transport,CROSS STREET RADIO CARS,SN1 ,16/05/2022,"1,100.00"
22659234,School Transport,Inclusion and Achievement,Special Educational Needs Transport,Transport Costs,Home to School Transport,CROSS STREET RADIO CARS,SN1 ,16/05/2022,770.00
20304233,School Transport,Inclusion and Achievement,Special Educational Needs Transport,Transport Costs,Home to School Transport,CROSS STREET RADIO CARS,SN1 ,04/05/2022,"5,520.00"
22658233,School Transport,Inclusion and Achievement,Mainstream School Transport,Transport Costs,Home to School Transport,CROSS STREET RADIO CARS,SN1 ,16/05/2022,550.00
24881233,School Transport,Inclusion and Achievement,Special Educational Needs Transport,Transport Costs,Home to School Transport,CROSS STREET RADIO CARS,SN1 ,27/05/2022,"1,100.00"
22656234,School Transport,Inclusion and Achievement,Special Educational Needs Transport,Transport Costs,Home to School Transport,CROSS STREET RADIO CARS,SN1 ,16/05/2022,"2,400.00"
22445238,High Needs Block,DSG Skills and Attainment,DSG Retained High Needs,Supplies and Services,Payments to Educational Bodies,CROWDYS HILL SCHOOL,SN2 ,16/05/2022,"44,251.69"
22694248,High Needs Block,DSG Skills and Attainment,Special School Place,3rd Party Payments,HNB- Place Funding pre 16,CROWDYS HILL SCHOOL,SN2 ,18/05/2022,"170,000.00"
24833233,DSG Other Funding,DSG Skills and Attainment,DFE Additional Grants,Supplies and Services,Payments to Educational Bodies,CROWDYS HILL SCHOOL,SN2 ,27/05/2022,"2,749.77"
22928234,High Needs Block,DSG Skills and Attainment,SEN Resourcing Assessment Panel,3rd Party Payments,Top up funding - Maintained providers Pre 16,CROWDYS HILL SCHOOL,SN2 ,18/05/2022,"130,803.41"
22440234,High Needs Block,DSG Skills and Attainment,DSG Retained High Needs,Supplies and Services,Payments to Educational Bodies,CROWDYS HILL SCHOOL,SN2 ,16/05/2022,"15,967.84"
25363233,DSG Other Funding,DSG Skills and Attainment,DFE Additional Grants,Supplies and Services,Payments to Educational Bodies,CROWDYS HILL SCHOOL,SN2 ,30/05/2022,"1,142.50"
22694247,High Needs Block,DSG Skills and Attainment,Special School Place,3rd Party Payments,HNB- Place Funding post 16,CROWDYS HILL SCHOOL,SN2 ,18/05/2022,"38,333.00"
22932233,High Needs Block,DSG Skills and Attainment,SEN Resourcing Assessment Panel,3rd Party Payments,Top up funding - Maintained providers Post 16,CROWDYS HILL SCHOOL,SN2 ,18/05/2022,"54,216.71"
24833233,DSG Other Funding,DSG Skills and Attainment,DFE Additional Grants,Supplies and Services,Payments to Educational Bodies,CROWDYS HILL SCHOOL,SN2 ,27/05/2022,"9,242.97"
22718257,DSG Other Funding,DSG Skills and Attainment,DFE Additional Grants,3rd Party Payments,Payment of Pupil Premium to school,CROWDYS HILL SCHOOL,SN2 ,18/05/2022,"9,577.00"
22928233,High Needs Block,DSG Skills and Attainment,SEN Resourcing Assessment Panel,3rd Party Payments,Top up funding - Maintained providers Pre 16,CROWDYS HILL SCHOOL,SN2 ,18/05/2022,"45,478.21"
24326233,NEV,"Economy, Growth and Place",Southern Connector Road,Capital,Consultants,CROWN ENERGY LTD,BL9 ,23/05/2022,"6,675.00"
24584235,NEV,"Economy, Growth and Place",Southern Connector Road,Capital,Consultants,CROWN ENERGY LTD,BL9 ,25/05/2022,"315,000.00"
24326233,NEV,"Economy, Growth and Place",Southern Connector Road,Capital,Consultants,CROWN ENERGY LTD,BL9 ,23/05/2022,"18,380.24"
20576233,Physical Support,Adults,Physical Support 65 and over,3rd Party Payments,Personal Budget - Domiciliary care,CRYSTAL CARING LIMITED,SN2 ,04/05/2022,"1,341.12"
20575239,Physical Support,Adults,Physical Support 65 and over,3rd Party Payments,Personal Budget - Domiciliary care,CRYSTAL CARING LIMITED,SN2 ,04/05/2022,235.94
20575239,Physical Support,Adults,Physical Support 65 and over,3rd Party Payments,Personal Budget - Domiciliary care,CRYSTAL CARING LIMITED,SN2 ,04/05/2022,"2,287.30"
20578233,Physical Support,Adults,Physical Support 18 - 64,3rd Party Payments,Personal Budget - Domiciliary care,CRYSTAL CARING LIMITED,SN2 ,04/05/2022,"3,633.44"
20578233,Physical Support,Adults,Physical Support 18 - 64,3rd Party Payments,Personal Budget - Domiciliary care,CRYSTAL CARING LIMITED,SN2 ,04/05/2022,374.80
20575237,Physical Support,Adults,Physical Support 65 and over,3rd Party Payments,Personal Budget - Domiciliary care,CRYSTAL CARING LIMITED,SN2 ,04/05/2022,118.15
20575237,Physical Support,Adults,Physical Support 65 and over,3rd Party Payments,Personal Budget - Domiciliary care,CRYSTAL CARING LIMITED,SN2 ,04/05/2022,"1,163.71"
20576233,Physical Support,Adults,Physical Support 65 and over,3rd Party Payments,Personal Budget - Domiciliary care,CRYSTAL CARING LIMITED,SN2 ,04/05/2022,122.90
20078234,Responsive Repairs,Repairs,Responsive Repairs,3rd Party Payments,Contract Payments,CRYSTAL ELECTRONICS LTD,NN6 ,09/05/2022,473.00
21148233,Property Management,Property,Corporate Repairs & Maintenance Programme,Premises Costs,Maintenance - Buildings,CULLIGAN (UK) LTD,HP12,06/05/2022,"1,650.00"
Corporate Card Transaction,ASC Finance Services Teams,ASC Finance Services,ASC Money Management Team,Supplies and Services,Services,Currys Online,,18/05/2022,723.99
Corporate Card Transaction,ASC Finance Services Teams,ASC Finance Services,ASC Money Management Team,Supplies and Services,Services,Currys Online,,27/04/2022,634.99
25134267,Physical Support,Adults,Physical Support 18 - 64,Transfer Payments,Personal Budget - Direct Payments - Domiciliary Care,REDACTED PERSONAL DATA,SN25,30/05/2022,"3,076.26"
25162233,Physical Support,Adults,Physical Support 18 - 64,Transfer Payments,Personal Budget - Direct Payments - Domiciliary Care,REDACTED PERSONAL DATA,SP11,30/05/2022,"4,468.00"
25132241,Physical Support,Adults,Physical Support 18 - 64,Transfer Payments,Personal Budget - Direct Payments - Domiciliary Care,REDACTED PERSONAL DATA,SN3 ,30/05/2022,"2,686.43"
25146234,Learning Disabilities,Adults,Learning Disability 26 - 64,Transfer Payments,Personal Budget - Direct Payments - Domiciliary Care,REDACTED PERSONAL DATA,SN2 ,30/05/2022,"1,445.84"
25151235,Learning Disabilities,Adults,Learning Disability 26 - 64,Transfer Payments,Personal Budget - Direct Payments - Domiciliary Care,REDACTED PERSONAL DATA,SN2 ,30/05/2022,"9,937.71"
24643233,Landscaping & Open Space,Culture & Heritage & Art,Moredon Recreation - Multi Sports Hub,Capital,Professional Fees,DARNTONB3 ARCHITECTURE,LS1 ,25/05/2022,"4,584.00"
25139253,Physical Support,Adults,Physical Support 18 - 64,Transfer Payments,Personal Budget - Direct Payments - Domiciliary Care,REDACTED PERSONAL DATA,SN2 ,30/05/2022,599.56
